Workbook

Sheet INTRO
C1: Cette version sera utilisée par les pays endémiques à la Loase
B2: Formulaire de demande commune de médicaments pour CP v.3.1 (L)
B4: Dans le cadre des efforts mondiaux entrepris pour accélérer l'expansion de la chimioprévention (CP) pour l'élimination de la filariose lymphatique et la lutte contre la schistosomiase et les géohelminthiases, l'Organisation mondiale de la Santé (OMS) facilite l'approvisionnement en albendazole, comprimés de 400 mg (GSK), pour les programmes nationaux d'élimination de la filariose lymphatique et programmes nationaux de lutte contre les géohelminthiases; en diethylcarbamazine, comprimés de 100 mg (Eisai), pour les programmes nationaux d'élimination de la filariose lymphatique; en mebendazole, comprimés de 500 mg (J&J) pour les programmes nationaux de lutte contre les géohelminthiases et en praziquantel, comprimés de 600 mg (Merck KGaA), destinés aux enfants d'âge scolaire, pour les programmes nationaux de lutte contre la schistosomiase. L'OMS contribue également à l'approvisionnement en ivermectine, comprimés de 3 mg (Merck), pour les programmes de donation pour l'onchocercose et la filariose lymphatique. Cet outil Excel est concu pour aider les pays à quantifier le nombre de comprimés nécessaires, selon le traitement de chimioprévention requis, pour atteindre les objectifs de couverture de traitement de populations et districts pour l'année de la demande de médicaments. Le résultat de cet outil est une demande commune de médicaments pour la chimioprévention des maladies tropicales négligées, qui peut être imprimée, signée et soumise à l'OMS pour la demande de ces médicaments.
B6: Structure de l'application (feuilles de travail) :
B8: INTRO | C8: Cette feuille contient des instructions pour compléter le formulaire de demande de médicaments pour la chimioprévention et des informations sur le statut de la chimioprévention pour les maladies d'endémie du pays.
B9: COUNTRY_INFO | C9: Cette feuille contient des informations sur la structure administrative du pays, la population par groupe d'âge, le statut d'endémicité pour chaque maladie, la population devant être traitée par chimioprévention et les interventions prévues.
B10: DEC, ALB_MBD, PZQ et IVM | C10: Ces feuilles contiennent des informations sur l'endémicité des districts ciblés pour le traitement aux médicaments spécifiques à la chimioprévention, les plans de traitement, et le nombre de comprimés requis et demandés.
B11: SUMMARY | C11: Cette feuille inclut un résumé du nombre de comprimés demandés, des informations concernant le stock et les dates de soumission de la demande de médicaments. Avant de générer le rapport (run macros), veuillez sélectionner le médicament pour lequel le rapport est nécessaire. Veuillez suivre la même règle pour voir le nombre de personnes à traiter pour les maladies spécifiques. Cette feuille doit être imprimée et soumise en tant que "Formulaire de demande commune de médicaments pour chimioprévention" (voir les instructions pour la soumission du formulaire sous la feuille SUMMARY).
B13: Instructions pour la saisie des données
B15: La plupart des cellules des feuilles de travail mentionnées ci-dessus contiennent des formules calculées automatiquement en fonction du protocole de traitement recommandé par l'OMS pour chaque maladie. Voir : http://www.who.int/neglected_diseases/preventive_chemotherapy/pct_manual/en/index.html
B17: Veuillez entrer vos données dans les cellules en fonction de leur code de couleur :
C19: Blanc - la cellule n'est pas protégée. Veuillez entrer la valeur de l'indicateur demandé.
C21: Jaune - la cellule est protégée et inclut le nom de l'indicateur. Aucune entrée de données requise.
C23: Orange - la cellule n'est pas protégée et contient un menu déroulant. Veuillez sélectionner la valeur dans le menu déroulant.
C26: Vert - la cellule n'est pas protégée et contient des formules. Veuillez changer la valeur indiquée uniquement si vos données sont différentes de celles calculées automatiquement.
C29: Bleu - la cellule est protégée et contient des formules. Aucune entrée de données requise.
B31: Données pays
B33: PAYS | E33: CAR
B35: Année de la demande de médicaments | E35: 2020
B37: Le pays est-il endémique à la filariose lymphatique (FL) ? | E37: Endémique
B39: Le pays est-il endémique à l'onchocercose (ONCHO) ? | E39: Endémique
B41: Le pays est-il endémique aux géohelminthiases (STH) ? | E41: Endémique
B43: Le pays est-il endémique à la schistosomiase (SCH) ? | E43: Endémique
B45: Combien d'unités administratives compte le pays ? | E45: 35
B47: Si les données démographiques par groupe d'âge ne sont pas disponibles au second niveau administratif, veuillez entrer la proportion (%) de population, par groupe d'âge, du pays. Si les données sont disponibles, veuillez laisser les cellules vierges.
B48: 1-4 ans | C48: Enfants d'âge pré-scolaire (EAPréS) | E48: 0.1381
B49: 5-14 ans | C49: Enfants d'âge scolaire (EAS) | E49: 0.227
B50: 15 ans et plus | C50: Adultes | E50: 0.5999

Sheet COUNTRY_INFO
A1: INFORMATIONS PAYS
A2: Struture administrative, population par groupe d'âge, statut d'endémicité et interventions planifiées
A4: TOTAL | D4: =SUM(D$9:D$1000) -> 5494265 | E4: =SUM(E$9:E$1000) -> 758761 | F4: =SUM(F$9:F$1000) -> 1247198 | G4: =SUM(G$9:G$1000) -> 3296006 | M4: =SUM(M$9:M$1000) -> 4545756 | N4: =SUM(N$9:N$1000) -> 2662937 | O4: =SUM(O$9:O$1000) -> 1021562 | P4: =SUM(P$9:P$1000) -> 1511811
A6: Structure administrative du pays | D6: Population | H6: Endémicité | M6: Population nécessitant la CP | Q6: Nombre de tournées de traitement prévues pour l'année | U6: Enquêtes épidémiologiques planifiées pour l’année
A7: Pays | B7: Région/Département | C7: District | D7: Total | E7: EAPréS | F7: EAS | G7: Adultes | H7: FL | I7: Oncho | J7: STH | K7: SCH | L7: Loa | M7: FL | N7: Oncho | O7: STH | P7: SCH | Q7: FL | R7: Oncho | S7: STH | T7: SCH | U7: FL | V7: Oncho | W7: STH | X7: SCH | Y7: IU_ID | Z7: IU_NAME | AB7: Anciens districts
A9: =IF(INTRO!$E$33<>0,INTRO!$E$33, " ") -> CAR | B9: RS N° 1 | C9: BEGOUA | D9: 172159 | E9: =IF(INTRO!$E$48="","",ROUND($D9*INTRO!$E$48,0)) -> 23775 | F9: =IF(INTRO!$E$49="","",ROUND($D9*INTRO!$E$49,0)) -> 39080 | G9: =IF(INTRO!$E$50="","",ROUND($D9*INTRO!$E$50,0)) -> 103278 | H9: 1 | I9: 4 | J9: 2 | K9: 1 | L9: 1 | M9: =IF(INTRO!$E$37="Endémique",IF($H9>0,IF($H9=4,"Inconnu",IF($H9=99,"Interrompu",$D9)),0),"Non requis") -> 172159 | N9: =IF(INTRO!$E$39="Endémique", IF($I9>0, IF($I9=4,"Inconnu",IF($I9=99,"Interrompu",$D9)), 0),"Non requis") -> Inconnu | O9: =IF(INTRO!$E$41="Endémique", IF(AND($J9>1,$J9<5), IF($J9=4, "Inconnu", E9+F9), 0),"Non requis") -> 62855 | P9: 38833 | Q9: 1 | R9: 0 | S9: 1 | T9: 1 | V9: Oui | Y9: 9661 | Z9: BEGUA | AB9: Ombella M'Poko
A10: =IF(INTRO!$E$33<>0,INTRO!$E$33, " ") -> CAR | B10: RS N° 1 | C10: BIMBO | D10: 177740 | E10: =IF(INTRO!$E$48="","",ROUND($D10*INTRO!$E$48,0)) -> 24546 | F10: =IF(INTRO!$E$49="","",ROUND($D10*INTRO!$E$49,0)) -> 40347 | G10: =IF(INTRO!$E$50="","",ROUND($D10*INTRO!$E$50,0)) -> 106626 | H10: 1 | I10: 4 | J10: 2 | K10: 1 | L10: 1 | M10: =IF(INTRO!$E$37="Endémique",IF($H10>0,IF($H10=4,"Inconnu",IF($H10=99,"Interrompu",$D10)),0),"Non requis") -> 177740 | N10: =IF(INTRO!$E$39="Endémique", IF($I10>0, IF($I10=4,"Inconnu",IF($I10=99,"Interrompu",$D10)), 0),"Non requis") -> Inconnu | O10: =IF(INTRO!$E$41="Endémique", IF(AND($J10>1,$J10<5), IF($J10=4, "Inconnu", E10+F10), 0),"Non requis") -> 64893 | P10: 40092 | Q10: 1 | R10: 0 | S10: 1 | T10: 0 | V10: Oui | Y10: 9662 | Z10: BIMBO | AB10: Ombella M'Poko
A11: =IF(INTRO!$E$33<>0,INTRO!$E$33, " ") -> CAR | B11: RS N° 1 | C11: BOSSEMBELE | D11: 145640 | E11: =IF(INTRO!$E$48="","",ROUND($D11*INTRO!$E$48,0)) -> 20113 | F11: =IF(INTRO!$E$49="","",ROUND($D11*INTRO!$E$49,0)) -> 33060 | G11: =IF(INTRO!$E$50="","",ROUND($D11*INTRO!$E$50,0)) -> 87369 | H11: 1 | I11: 4 | J11: 2 | K11: 1 | L11: 1 | M11: =IF(INTRO!$E$37="Endémique",IF($H11>0,IF($H11=4,"Inconnu",IF($H11=99,"Interrompu",$D11)),0),"Non requis") -> 145640 | N11: =IF(INTRO!$E$39="Endémique", IF($I11>0, IF($I11=4,"Inconnu",IF($I11=99,"Interrompu",$D11)), 0),"Non requis") -> Inconnu | O11: =IF(INTRO!$E$41="Endémique", IF(AND($J11>1,$J11<5), IF($J11=4, "Inconnu", E11+F11), 0),"Non requis") -> 53173 | P11: 32852 | Q11: 1 | R11: 0 | S11: 1 | T11: 1 | V11: Oui | Y11: 9664 | Z11: BOSSEMBELE | AB11: Ombella M'Poko
A12: =IF(INTRO!$E$33<>0,INTRO!$E$33, " ") -> CAR | B12: RS N° 1 | C12: BODA | D12: 121211 | E12: =IF(INTRO!$E$48="","",ROUND($D12*INTRO!$E$48,0)) -> 16739 | F12: =IF(INTRO!$E$49="","",ROUND($D12*INTRO!$E$49,0)) -> 27515 | G12: =IF(INTRO!$E$50="","",ROUND($D12*INTRO!$E$50,0)) -> 72714 | H12: 1 | I12: 4 | J12: 2 | K12: 1 | L12: 1 | M12: =IF(INTRO!$E$37="Endémique",IF($H12>0,IF($H12=4,"Inconnu",IF($H12=99,"Interrompu",$D12)),0),"Non requis") -> 121211 | N12: =IF(INTRO!$E$39="Endémique", IF($I12>0, IF($I12=4,"Inconnu",IF($I12=99,"Interrompu",$D12)), 0),"Non requis") -> Inconnu | O12: =IF(INTRO!$E$41="Endémique", IF(AND($J12>1,$J12<5), IF($J12=4, "Inconnu", E12+F12), 0),"Non requis") -> 44254 | P12: 27341 | Q12: 1 | R12: 0 | S12: 1 | T12: 1 | V12: Oui | Y12: 9663 | Z12: BODA | AB12: Lobaye
A13: =IF(INTRO!$E$33<>0,INTRO!$E$33, " ") -> CAR | B13: RS N° 1 | C13: MBAIKI | D13: 221732 | E13: =IF(INTRO!$E$48="","",ROUND($D13*INTRO!$E$48,0)) -> 30621 | F13: =IF(INTRO!$E$49="","",ROUND($D13*INTRO!$E$49,0)) -> 50333 | G13: =IF(INTRO!$E$50="","",ROUND($D13*INTRO!$E$50,0)) -> 133017 | H13: 1 | I13: 4 | J13: 3 | K13: 1 | L13: 1 | M13: =IF(INTRO!$E$37="Endémique",IF($H13>0,IF($H13=4,"Inconnu",IF($H13=99,"Interrompu",$D13)),0),"Non requis") -> 221732 | N13: =IF(INTRO!$E$39="Endémique", IF($I13>0, IF($I13=4,"Inconnu",IF($I13=99,"Interrompu",$D13)), 0),"Non requis") -> Inconnu | O13: =IF(INTRO!$E$41="Endémique", IF(AND($J13>1,$J13<5), IF($J13=4, "Inconnu", E13+F13), 0),"Non requis") -> 80954 | P13: 43206 | Q13: 1 | R13: 0 | S13: 2 | T13: 0 | V13: Oui | Y13: 9665 | Z13: MBAIKI | AB13: Lobaye
A14: =IF(INTRO!$E$33<>0,INTRO!$E$33, " ") -> CAR | B14: RS N° 2 | C14: BERBERATI | D14: 189906 | E14: =IF(INTRO!$E$48="","",ROUND($D14*INTRO!$E$48,0)) -> 26226 | F14: =IF(INTRO!$E$49="","",ROUND($D14*INTRO!$E$49,0)) -> 43109 | G14: =IF(INTRO!$E$50="","",ROUND($D14*INTRO!$E$50,0)) -> 113925 | H14: 1 | I14: 4 | J14: 2 | K14: 0 | L14: 1 | M14: =IF(INTRO!$E$37="Endémique",IF($H14>0,IF($H14=4,"Inconnu",IF($H14=99,"Interrompu",$D14)),0),"Non requis") -> 189906 | N14: =IF(INTRO!$E$39="Endémique", IF($I14>0, IF($I14=4,"Inconnu",IF($I14=99,"Interrompu",$D14)), 0),"Non requis") -> Inconnu | O14: =IF(INTRO!$E$41="Endémique", IF(AND($J14>1,$J14<5), IF($J14=4, "Inconnu", E14+F14), 0),"Non requis") -> 69335 | P14: 0 | Q14: 1 | R14: 0 | S14: 1 | T14: 0 | V14: Oui | Y14: 9667 | Z14: BERBERATI | AB14: Mambéré-Kadéï
A15: =IF(INTRO!$E$33<>0,INTRO!$E$33, " ") -> CAR | B15: RS N° 2 | C15: CARNOT-GADZI | D15: 203978 | E15: =IF(INTRO!$E$48="","",ROUND($D15*INTRO!$E$48,0)) -> 28169 | F15: =IF(INTRO!$E$49="","",ROUND($D15*INTRO!$E$49,0)) -> 46303 | G15: =IF(INTRO!$E$50="","",ROUND($D15*INTRO!$E$50,0)) -> 122366 | H15: 1 | I15: 4 | J15: 3 | K15: 1 | L15: 1 | M15: =IF(INTRO!$E$37="Endémique",IF($H15>0,IF($H15=4,"Inconnu",IF($H15=99,"Interrompu",$D15)),0),"Non requis") -> 203978 | N15: =IF(INTRO!$E$39="Endémique", IF($I15>0, IF($I15=4,"Inconnu",IF($I15=99,"Interrompu",$D15)), 0),"Non requis") -> Inconnu | O15: =IF(INTRO!$E$41="Endémique", IF(AND($J15>1,$J15<5), IF($J15=4, "Inconnu", E15+F15), 0),"Non requis") -> 74472 | P15: 46011 | Q15: 1 | R15: 0 | S15: 2 | T15: 1 | V15: Oui | Y15: 9669 | Z15: CARNOT-GADZI | AB15: Mambéré-Kadéï
A16: =IF(INTRO!$E$33<>0,INTRO!$E$33, " ") -> CAR | B16: RS N° 2 | C16: GAMBOULA | D16: 112865 | E16: =IF(INTRO!$E$48="","",ROUND($D16*INTRO!$E$48,0)) -> 15587 | F16: =IF(INTRO!$E$49="","",ROUND($D16*INTRO!$E$49,0)) -> 25620 | G16: =IF(INTRO!$E$50="","",ROUND($D16*INTRO!$E$50,0)) -> 67708 | H16: 1 | I16: 4 | J16: 3 | K16: 0 | L16: 1 | M16: =IF(INTRO!$E$37="Endémique",IF($H16>0,IF($H16=4,"Inconnu",IF($H16=99,"Interrompu",$D16)),0),"Non requis") -> 112865 | N16: =IF(INTRO!$E$39="Endémique", IF($I16>0, IF($I16=4,"Inconnu",IF($I16=99,"Interrompu",$D16)), 0),"Non requis") -> Inconnu | O16: =IF(INTRO!$E$41="Endémique", IF(AND($J16>1,$J16<5), IF($J16=4, "Inconnu", E16+F16), 0),"Non requis") -> 41207 | P16: 0 | Q16: 1 | R16: 0 | S16: 2 | T16: 0 | V16: Oui | Y16: 9670 | Z16: GAMBOULA | AB16: Mambéré-Kadéï
A17: =IF(INTRO!$E$33<>0,INTRO!$E$33, " ") -> CAR | B17: RS N° 2 | C17: BABOUA-ABBA | D17: 105218 | E17: =IF(INTRO!$E$48="","",ROUND($D17*INTRO!$E$48,0)) -> 14531 | F17: =IF(INTRO!$E$49="","",ROUND($D17*INTRO!$E$49,0)) -> 23884 | G17: =IF(INTRO!$E$50="","",ROUND($D17*INTRO!$E$50,0)) -> 63120 | H17: 1 | I17: 4 | J17: 2 | K17: 2 | L17: 1 | M17: =IF(INTRO!$E$37="Endémique",IF($H17>0,IF($H17=4,"Inconnu",IF($H17=99,"Interrompu",$D17)),0),"Non requis") -> 105218 | N17: =IF(INTRO!$E$39="Endémique", IF($I17>0, IF($I17=4,"Inconnu",IF($I17=99,"Interrompu",$D17)), 0),"Non requis") -> Inconnu | O17: =IF(INTRO!$E$41="Endémique", IF(AND($J17>1,$J17<5), IF($J17=4, "Inconnu", E17+F17), 0),"Non requis") -> 38415 | P17: 36278 | Q17: 1 | R17: 0 | S17: 1 | T17: 1 | V17: Oui | Y17: 9666 | Z17: BABOUA-ABBA | AB17: Nana-Mambéré
A18: =IF(INTRO!$E$33<>0,INTRO!$E$33, " ") -> CAR | B18: RS N° 2 | C18: BOUAR-BAORO | D18: 219375 | E18: =IF(INTRO!$E$48="","",ROUND($D18*INTRO!$E$48,0)) -> 30296 | F18: =IF(INTRO!$E$49="","",ROUND($D18*INTRO!$E$49,0)) -> 49798 | G18: =IF(INTRO!$E$50="","",ROUND($D18*INTRO!$E$50,0)) -> 131603 | H18: 1 | I18: 4 | J18: 1 | K18: 2 | L18: 1 | M18: =IF(INTRO!$E$37="Endémique",IF($H18>0,IF($H18=4,"Inconnu",IF($H18=99,"Interrompu",$D18)),0),"Non requis") -> 219375 | N18: =IF(INTRO!$E$39="Endémique", IF($I18>0, IF($I18=4,"Inconnu",IF($I18=99,"Interrompu",$D18)), 0),"Non requis") -> Inconnu | O18: =IF(INTRO!$E$41="Endémique", IF(AND($J18>1,$J18<5), IF($J18=4, "Inconnu", E18+F18), 0),"Non requis") -> 0 | P18: 75639 | Q18: 1 | R18: 0 | S18: 1 | T18: 1 | V18: Oui | Y18: 9668 | Z18: BOUAR-BAORO | AB18: Nana-Mambéré
A19: =IF(INTRO!$E$33<>0,INTRO!$E$33, " ") -> CAR | B19: RS N° 2 | C19: SANGHA-MBAERE | D19: 140406 | E19: =IF(INTRO!$E$48="","",ROUND($D19*INTRO!$E$48,0)) -> 19390 | F19: =IF(INTRO!$E$49="","",ROUND($D19*INTRO!$E$49,0)) -> 31872 | G19: =IF(INTRO!$E$50="","",ROUND($D19*INTRO!$E$50,0)) -> 84230 | H19: 1 | I19: 4 | J19: 2 | K19: 0 | L19: 1 | M19: =IF(INTRO!$E$37="Endémique",IF($H19>0,IF($H19=4,"Inconnu",IF($H19=99,"Interrompu",$D19)),0),"Non requis") -> 140406 | N19: =IF(INTRO!$E$39="Endémique", IF($I19>0, IF($I19=4,"Inconnu",IF($I19=99,"Interrompu",$D19)), 0),"Non requis") -> Inconnu | O19: =IF(INTRO!$E$41="Endémique", IF(AND($J19>1,$J19<5), IF($J19=4, "Inconnu", E19+F19), 0),"Non requis") -> 51262 | P19: 0 | Q19: 1 | R19: 0 | S19: 1 | T19: 0 | V19: Oui | Y19: 9671 | Z19: SANGHA-MBAERE | AB19: Sangha-Mbaéré
A20: =IF(INTRO!$E$33<>0,INTRO!$E$33, " ") -> CAR | B20: RS N° 3 | C20: BATANGAFO | D20: 143231 | E20: =IF(INTRO!$E$48="","",ROUND($D20*INTRO!$E$48,0)) -> 19780 | F20: =IF(INTRO!$E$49="","",ROUND($D20*INTRO!$E$49,0)) -> 32513 | G20: =IF(INTRO!$E$50="","",ROUND($D20*INTRO!$E$50,0)) -> 85924 | H20: 1 | I20: 1 | J20: 1 | K20: 4 | L20: 1 | M20: =IF(INTRO!$E$37="Endémique",IF($H20>0,IF($H20=4,"Inconnu",IF($H20=99,"Interrompu",$D20)),0),"Non requis") -> 143231 | N20: =IF(INTRO!$E$39="Endémique", IF($I20>0, IF($I20=4,"Inconnu",IF($I20=99,"Interrompu",$D20)), 0),"Non requis") -> 143231 | O20: =IF(INTRO!$E$41="Endémique", IF(AND($J20>1,$J20<5), IF($J20=4, "Inconnu", E20+F20), 0),"Non requis") -> 0 | P20: 0 | Q20: 1 | R20: 1 | S20: 0 | T20: 0 | Y20: 9672 | Z20: BATANGAFO | AB20: Ouham
A21: =IF(INTRO!$E$33<>0,INTRO!$E$33, " ") -> CAR | B21: RS N° 3 | C21: BOUCA | D21: 77748 | E21: =IF(INTRO!$E$48="","",ROUND($D21*INTRO!$E$48,0)) -> 10737 | F21: =IF(INTRO!$E$49="","",ROUND($D21*INTRO!$E$49,0)) -> 17649 | G21: =IF(INTRO!$E$50="","",ROUND($D21*INTRO!$E$50,0)) -> 46641 | H21: 1 | I21: 1 | J21: 1 | K21: 3 | L21: 1 | M21: =IF(INTRO!$E$37="Endémique",IF($H21>0,IF($H21=4,"Inconnu",IF($H21=99,"Interrompu",$D21)),0),"Non requis") -> 77748 | N21: =IF(INTRO!$E$39="Endémique", IF($I21>0, IF($I21=4,"Inconnu",IF($I21=99,"Interrompu",$D21)), 0),"Non requis") -> 77748 | O21: =IF(INTRO!$E$41="Endémique", IF(AND($J21>1,$J21<5), IF($J21=4, "Inconnu", E21+F21), 0),"Non requis") -> 0 | P21: 63885 | Q21: 1 | R21: 1 | S21: 0 | T21: 1 | Y21: 9675 | Z21: BOUCA | AB21: Ouham
A22: =IF(INTRO!$E$33<>0,INTRO!$E$33, " ") -> CAR | B22: RS N° 3 | C22: BOSSANGOA | D22: 174199 | E22: =IF(INTRO!$E$48="","",ROUND($D22*INTRO!$E$48,0)) -> 24057 | F22: =IF(INTRO!$E$49="","",ROUND($D22*INTRO!$E$49,0)) -> 39543 | G22: =IF(INTRO!$E$50="","",ROUND($D22*INTRO!$E$50,0)) -> 104502 | H22: 1 | I22: 1 | J22: 1 | K22: 3 | L22: 1 | M22: =IF(INTRO!$E$37="Endémique",IF($H22>0,IF($H22=4,"Inconnu",IF($H22=99,"Interrompu",$D22)),0),"Non requis") -> 174199 | N22: =IF(INTRO!$E$39="Endémique", IF($I22>0, IF($I22=4,"Inconnu",IF($I22=99,"Interrompu",$D22)), 0),"Non requis") -> 174199 | O22: =IF(INTRO!$E$41="Endémique", IF(AND($J22>1,$J22<5), IF($J22=4, "Inconnu", E22+F22), 0),"Non requis") -> 0 | P22: 143135 | Q22: 1 | R22: 1 | S22: 0 | T22: 1 | Y22: 9674 | Z22: BOSSANGOA | AB22: Ouham
A23: =IF(INTRO!$E$33<>0,INTRO!$E$33, " ") -> CAR | B23: RS N° 3 | C23: NANGA-BOGUILA | D23: 117718 | E23: =IF(INTRO!$E$48="","",ROUND($D23*INTRO!$E$48,0)) -> 16257 | F23: =IF(INTRO!$E$49="","",ROUND($D23*INTRO!$E$49,0)) -> 26722 | G23: =IF(INTRO!$E$50="","",ROUND($D23*INTRO!$E$50,0)) -> 70619 | H23: 1 | I23: 1 | J23: 0 | K23: 3 | L23: 1 | M23: =IF(INTRO!$E$37="Endémique",IF($H23>0,IF($H23=4,"Inconnu",IF($H23=99,"Interrompu",$D23)),0),"Non requis") -> 117718 | N23: =IF(INTRO!$E$39="Endémique", IF($I23>0, IF($I23=4,"Inconnu",IF($I23=99,"Interrompu",$D23)), 0),"Non requis") -> 117718 | O23: =IF(INTRO!$E$41="Endémique", IF(AND($J23>1,$J23<5), IF($J23=4, "Inconnu", E23+F23), 0),"Non requis") -> 0 | P23: 96726 | Q23: 1 | R23: 1 | S23: 0 | T23: 1 | Y23: 9677 | Z23: NANGA-BOGUILA | AB23: Ouham
A24: =IF(INTRO!$E$33<>0,INTRO!$E$33, " ") -> CAR | B24: RS N° 3 | C24: BOCARANGA-KOUI | D24: 152715 | E24: =IF(INTRO!$E$48="","",ROUND($D24*INTRO!$E$48,0)) -> 21090 | F24: =IF(INTRO!$E$49="","",ROUND($D24*INTRO!$E$49,0)) -> 34666 | G24: =IF(INTRO!$E$50="","",ROUND($D24*INTRO!$E$50,0)) -> 91614 | H24: 1 | I24: 1 | J24: 1 | K24: 2 | L24: 1 | M24: =IF(INTRO!$E$37="Endémique",IF($H24>0,IF($H24=4,"Inconnu",IF($H24=99,"Interrompu",$D24)),0),"Non requis") -> 152715 | N24: =IF(INTRO!$E$39="Endémique", IF($I24>0, IF($I24=4,"Inconnu",IF($I24=99,"Interrompu",$D24)), 0),"Non requis") -> 152715 | O24: =IF(INTRO!$E$41="Endémique", IF(AND($J24>1,$J24<5), IF($J24=4, "Inconnu", E24+F24), 0),"Non requis") -> 0 | P24: 52655 | Q24: 1 | R24: 1 | S24: 0 | T24: 1 | Y24: 9673 | Z24: BOCARANGA-KOUI | AB24: Ouham Pendé
A25: =IF(INTRO!$E$33<>0,INTRO!$E$33, " ") -> CAR | B25: RS N° 3 | C25: BOZOUM-BOSSEMPTELE | D25: 100178 | E25: =IF(INTRO!$E$48="","",ROUND($D25*INTRO!$E$48,0)) -> 13835 | F25: =IF(INTRO!$E$49="","",ROUND($D25*INTRO!$E$49,0)) -> 22740 | G25: =IF(INTRO!$E$50="","",ROUND($D25*INTRO!$E$50,0)) -> 60097 | H25: 1 | I25: 1 | J25: 1 | K25: 3 | L25: 1 | M25: =IF(INTRO!$E$37="Endémique",IF($H25>0,IF($H25=4,"Inconnu",IF($H25=99,"Interrompu",$D25)),0),"Non requis") -> 100178 | N25: =IF(INTRO!$E$39="Endémique", IF($I25>0, IF($I25=4,"Inconnu",IF($I25=99,"Interrompu",$D25)), 0),"Non requis") -> 100178 | O25: =IF(INTRO!$E$41="Endémique", IF(AND($J25>1,$J25<5), IF($J25=4, "Inconnu", E25+F25), 0),"Non requis") -> 0 | P25: 82315 | Q25: 1 | R25: 1 | S25: 1 | T25: 1 | Y25: 9676 | Z25: BOZOUM-BOSSEMPTELE | AB25: Ouham Pendé
A26: =IF(INTRO!$E$33<>0,INTRO!$E$33, " ") -> CAR | B26: RS N° 3 | C26: NGAOUNDAYE | D26: 123627 | E26: =IF(INTRO!$E$48="","",ROUND($D26*INTRO!$E$48,0)) -> 17073 | F26: =IF(INTRO!$E$49="","",ROUND($D26*INTRO!$E$49,0)) -> 28063 | G26: =IF(INTRO!$E$50="","",ROUND($D26*INTRO!$E$50,0)) -> 74164 | H26: 1 | I26: 1 | J26: 1 | K26: 4 | L26: 1 | M26: =IF(INTRO!$E$37="Endémique",IF($H26>0,IF($H26=4,"Inconnu",IF($H26=99,"Interrompu",$D26)),0),"Non requis") -> 123627 | N26: =IF(INTRO!$E$39="Endémique", IF($I26>0, IF($I26=4,"Inconnu",IF($I26=99,"Interrompu",$D26)), 0),"Non requis") -> 123627 | O26: =IF(INTRO!$E$41="Endémique", IF(AND($J26>1,$J26<5), IF($J26=4, "Inconnu", E26+F26), 0),"Non requis") -> 0 | P26: 0 | Q26: 1 | R26: 1 | S26: 0 | T26: 0 | Y26: 9678 | Z26: NGAOUNDAYE | AB26: Ouham Pendé
A27: =IF(INTRO!$E$33<>0,INTRO!$E$33, " ") -> CAR | B27: RS N° 3 | C27: PAOUA | D27: 221510 | E27: =IF(INTRO!$E$48="","",ROUND($D27*INTRO!$E$48,0)) -> 30591 | F27: =IF(INTRO!$E$49="","",ROUND($D27*INTRO!$E$49,0)) -> 50283 | G27: =IF(INTRO!$E$50="","",ROUND($D27*INTRO!$E$50,0)) -> 132884 | H27: 1 | I27: 1 | J27: 1 | K27: 2 | L27: 1 | M27: =IF(INTRO!$E$37="Endémique",IF($H27>0,IF($H27=4,"Inconnu",IF($H27=99,"Interrompu",$D27)),0),"Non requis") -> 221510 | N27: =IF(INTRO!$E$39="Endémique", IF($I27>0, IF($I27=4,"Inconnu",IF($I27=99,"Interrompu",$D27)), 0),"Non requis") -> 221510 | O27: =IF(INTRO!$E$41="Endémique", IF(AND($J27>1,$J27<5), IF($J27=4, "Inconnu", E27+F27), 0),"Non requis") -> 0 | P27: 76374 | Q27: 1 | R27: 1 | S27: 0 | T27: 1 | Y27: 9679 | Z27: PAOUA | AB27: Ouham Pendé
A28: =IF(INTRO!$E$33<>0,INTRO!$E$33, " ") -> CAR | B28: RS N° 4 | C28: KEMO | D28: 164501 | E28: =IF(INTRO!$E$48="","",ROUND($D28*INTRO!$E$48,0)) -> 22718 | F28: =IF(INTRO!$E$49="","",ROUND($D28*INTRO!$E$49,0)) -> 37342 | G28: =IF(INTRO!$E$50="","",ROUND($D28*INTRO!$E$50,0)) -> 98684 | H28: 1 | I28: 1 | J28: 2 | K28: 2 | L28: 0 | M28: =IF(INTRO!$E$37="Endémique",IF($H28>0,IF($H28=4,"Inconnu",IF($H28=99,"Interrompu",$D28)),0),"Non requis") -> 164501 | N28: =IF(INTRO!$E$39="Endémique", IF($I28>0, IF($I28=4,"Inconnu",IF($I28=99,"Interrompu",$D28)), 0),"Non requis") -> 164501 | O28: =IF(INTRO!$E$41="Endémique", IF(AND($J28>1,$J28<5), IF($J28=4, "Inconnu", E28+F28), 0),"Non requis") -> 60060 | P28: 36679 | Q28: 1 | R28: 1 | S28: 1 | T28: 1 | Y28: 9681 | Z28: KEMO | AB28: Kémo
A29: =IF(INTRO!$E$33<>0,INTRO!$E$33, " ") -> CAR | B29: RS N° 4 | C29: NANA-GRIBIZI | D29: 163662 | E29: =IF(INTRO!$E$48="","",ROUND($D29*INTRO!$E$48,0)) -> 22602 | F29: =IF(INTRO!$E$49="","",ROUND($D29*INTRO!$E$49,0)) -> 37151 | G29: =IF(INTRO!$E$50="","",ROUND($D29*INTRO!$E$50,0)) -> 98181 | H29: 1 | I29: 1 | J29: 2 | K29: 3 | L29: 0 | M29: =IF(INTRO!$E$37="Endémique",IF($H29>0,IF($H29=4,"Inconnu",IF($H29=99,"Interrompu",$D29)),0),"Non requis") -> 163662 | N29: =IF(INTRO!$E$39="Endémique", IF($I29>0, IF($I29=4,"Inconnu",IF($I29=99,"Interrompu",$D29)), 0),"Non requis") -> 163662 | O29: =IF(INTRO!$E$41="Endémique", IF(AND($J29>1,$J29<5), IF($J29=4, "Inconnu", E29+F29), 0),"Non requis") -> 59753 | P29: 134479 | Q29: 1 | R29: 1 | S29: 1 | T29: 1 | Y29: 9683 | Z29: NANA-GREBIZI | AB29: Nana-Gribizi
A30: =IF(INTRO!$E$33<>0,INTRO!$E$33, " ") -> CAR | B30: RS N° 4 | C30: BAMBARI | D30: 231926 | E30: =IF(INTRO!$E$48="","",ROUND($D30*INTRO!$E$48,0)) -> 32029 | F30: =IF(INTRO!$E$49="","",ROUND($D30*INTRO!$E$49,0)) -> 52647 | G30: =IF(INTRO!$E$50="","",ROUND($D30*INTRO!$E$50,0)) -> 139132 | H30: 1 | I30: 1 | J30: 2 | K30: 2 | L30: 1 | M30: =IF(INTRO!$E$37="Endémique",IF($H30>0,IF($H30=4,"Inconnu",IF($H30=99,"Interrompu",$D30)),0),"Non requis") -> 231926 | N30: =IF(INTRO!$E$39="Endémique", IF($I30>0, IF($I30=4,"Inconnu",IF($I30=99,"Interrompu",$D30)), 0),"Non requis") -> 231926 | O30: =IF(INTRO!$E$41="Endémique", IF(AND($J30>1,$J30<5), IF($J30=4, "Inconnu", E30+F30), 0),"Non requis") -> 84676 | P30: 73043 | Q30: 1 | R30: 1 | S30: 1 | T30: 1 | Y30: 9680 | Z30: BAMBARI | AB30: Ouaka
A31: =IF(INTRO!$E$33<>0,INTRO!$E$33, " ") -> CAR | B31: RS N° 4 | C31: KOUANGO-GRIMARI | D31: 152461 | E31: =IF(INTRO!$E$48="","",ROUND($D31*INTRO!$E$48,0)) -> 21055 | F31: =IF(INTRO!$E$49="","",ROUND($D31*INTRO!$E$49,0)) -> 34609 | G31: =IF(INTRO!$E$50="","",ROUND($D31*INTRO!$E$50,0)) -> 91461 | H31: 1 | I31: 1 | J31: 2 | K31: 1 | L31: 1 | M31: =IF(INTRO!$E$37="Endémique",IF($H31>0,IF($H31=4,"Inconnu",IF($H31=99,"Interrompu",$D31)),0),"Non requis") -> 152461 | N31: =IF(INTRO!$E$39="Endémique", IF($I31>0, IF($I31=4,"Inconnu",IF($I31=99,"Interrompu",$D31)), 0),"Non requis") -> 152461 | O31: =IF(INTRO!$E$41="Endémique", IF(AND($J31>1,$J31<5), IF($J31=4, "Inconnu", E31+F31), 0),"Non requis") -> 55664 | P31: 34390 | Q31: 1 | R31: 1 | S31: 1 | T31: 1 | Y31: 9682 | Z31: KOUANGO-GRIMARI | AB31: Ouaka
A32: =IF(INTRO!$E$33<>0,INTRO!$E$33, " ") -> CAR | B32: RS N° 5 | C32: BAMINGUI-BANGORAN | D32: 60051 | E32: =IF(INTRO!$E$48="","",ROUND($D32*INTRO!$E$48,0)) -> 8293 | F32: =IF(INTRO!$E$49="","",ROUND($D32*INTRO!$E$49,0)) -> 13632 | G32: =IF(INTRO!$E$50="","",ROUND($D32*INTRO!$E$50,0)) -> 36025 | H32: 1 | I32: 1 | J32: 2 | K32: 3 | L32: 0 | M32: =IF(INTRO!$E$37="Endémique",IF($H32>0,IF($H32=4,"Inconnu",IF($H32=99,"Interrompu",$D32)),0),"Non requis") -> 60051 | N32: =IF(INTRO!$E$39="Endémique", IF($I32>0, IF($I32=4,"Inconnu",IF($I32=99,"Interrompu",$D32)), 0),"Non requis") -> 60051 | O32: =IF(INTRO!$E$41="Endémique", IF(AND($J32>1,$J32<5), IF($J32=4, "Inconnu", E32+F32), 0),"Non requis") -> 21925 | P32: 49344 | Q32: 1 | R32: 1 | S32: 1 | T32: 1 | Y32: 9684 | Z32: BAMINGUI-BANGORAN | AB32: Bamingui-Bangoran
A33: =IF(INTRO!$E$33<>0,INTRO!$E$33, " ") -> CAR | B33: RS N° 5 | C33: HAUTE-KOTTO | D33: 125461 | E33: =IF(INTRO!$E$48="","",ROUND($D33*INTRO!$E$48,0)) -> 17326 | F33: =IF(INTRO!$E$49="","",ROUND($D33*INTRO!$E$49,0)) -> 28480 | G33: =IF(INTRO!$E$50="","",ROUND($D33*INTRO!$E$50,0)) -> 75264 | H33: 1 | I33: 1 | J33: 1 | K33: 3 | L33: 0 | M33: =IF(INTRO!$E$37="Endémique",IF($H33>0,IF($H33=4,"Inconnu",IF($H33=99,"Interrompu",$D33)),0),"Non requis") -> 125461 | N33: =IF(INTRO!$E$39="Endémique", IF($I33>0, IF($I33=4,"Inconnu",IF($I33=99,"Interrompu",$D33)), 0),"Non requis") -> 125461 | O33: =IF(INTRO!$E$41="Endémique", IF(AND($J33>1,$J33<5), IF($J33=4, "Inconnu", E33+F33), 0),"Non requis") -> 0 | P33: 90326 | Q33: 1 | R33: 1 | S33: 0 | T33: 1 | Y33: 9685 | Z33: HAUTE-KOTTO | AB33: Haute-Kotto
A34: =IF(INTRO!$E$33<>0,INTRO!$E$33, " ") -> CAR | B34: RS N° 5 | C34: VAKAGA | D34: 72589 | E34: =IF(INTRO!$E$48="","",ROUND($D34*INTRO!$E$48,0)) -> 10025 | F34: =IF(INTRO!$E$49="","",ROUND($D34*INTRO!$E$49,0)) -> 16478 | G34: =IF(INTRO!$E$50="","",ROUND($D34*INTRO!$E$50,0)) -> 43546 | H34: 1 | I34: 4 | J34: 1 | K34: 3 | L34: 0 | M34: =IF(INTRO!$E$37="Endémique",IF($H34>0,IF($H34=4,"Inconnu",IF($H34=99,"Interrompu",$D34)),0),"Non requis") -> 72589 | N34: =IF(INTRO!$E$39="Endémique", IF($I34>0, IF($I34=4,"Inconnu",IF($I34=99,"Interrompu",$D34)), 0),"Non requis") -> Inconnu | O34: =IF(INTRO!$E$41="Endémique", IF(AND($J34>1,$J34<5), IF($J34=4, "Inconnu", E34+F34), 0),"Non requis") -> 0 | P34: 57031 | Q34: 1 | R34: 0 | S34: 0 | T34: 1 | V34: Oui | Y34: 9686 | Z34: VAKAGA | AB34: Vakaga
A35: =IF(INTRO!$E$33<>0,INTRO!$E$33, " ") -> CAR | B35: RS N° 6 | C35: ALINDAO MINGALA | D35: 127677 | E35: =IF(INTRO!$E$48="","",ROUND($D35*INTRO!$E$48,0)) -> 17632 | F35: =IF(INTRO!$E$49="","",ROUND($D35*INTRO!$E$49,0)) -> 28983 | G35: =IF(INTRO!$E$50="","",ROUND($D35*INTRO!$E$50,0)) -> 76593 | H35: 1 | I35: 1 | J35: 2 | K35: 1 | L35: 0 | M35: =IF(INTRO!$E$37="Endémique",IF($H35>0,IF($H35=4,"Inconnu",IF($H35=99,"Interrompu",$D35)),0),"Non requis") -> 127677 | N35: =IF(INTRO!$E$39="Endémique", IF($I35>0, IF($I35=4,"Inconnu",IF($I35=99,"Interrompu",$D35)), 0),"Non requis") -> 127677 | O35: =IF(INTRO!$E$41="Endémique", IF(AND($J35>1,$J35<5), IF($J35=4, "Inconnu", E35+F35), 0),"Non requis") -> 46615 | P35: 28800 | Q35: 1 | R35: 1 | S35: 1 | T35: 1 | Y35: 9687 | Z35: ALINDAO MINGALA | AB35: Basse-Kotto
A36: =IF(INTRO!$E$33<>0,INTRO!$E$33, " ") -> CAR | B36: RS N° 6 | C36: KEMBE SATEMA | D36: 83923 | E36: =IF(INTRO!$E$48="","",ROUND($D36*INTRO!$E$48,0)) -> 11590 | F36: =IF(INTRO!$E$49="","",ROUND($D36*INTRO!$E$49,0)) -> 19051 | G36: =IF(INTRO!$E$50="","",ROUND($D36*INTRO!$E$50,0)) -> 50345 | H36: 1 | I36: 1 | J36: 3 | K36: 1 | L36: 0 | M36: =IF(INTRO!$E$37="Endémique",IF($H36>0,IF($H36=4,"Inconnu",IF($H36=99,"Interrompu",$D36)),0),"Non requis") -> 83923 | N36: =IF(INTRO!$E$39="Endémique", IF($I36>0, IF($I36=4,"Inconnu",IF($I36=99,"Interrompu",$D36)), 0),"Non requis") -> 83923 | O36: =IF(INTRO!$E$41="Endémique", IF(AND($J36>1,$J36<5), IF($J36=4, "Inconnu", E36+F36), 0),"Non requis") -> 30641 | P36: 18930 | Q36: 1 | R36: 1 | S36: 2 | T36: 0 | Y36: 9690 | Z36: KEMBE SATEMA | AB36: Basse-Kotto
A37: =IF(INTRO!$E$33<>0,INTRO!$E$33, " ") -> CAR | B37: RS N° 6 | C37: MOBAYE-ZANGBA | D37: 134503 | E37: =IF(INTRO!$E$48="","",ROUND($D37*INTRO!$E$48,0)) -> 18575 | F37: =IF(INTRO!$E$49="","",ROUND($D37*INTRO!$E$49,0)) -> 30532 | G37: =IF(INTRO!$E$50="","",ROUND($D37*INTRO!$E$50,0)) -> 80688 | H37: 1 | I37: 1 | J37: 2 | K37: 3 | L37: 0 | M37: =IF(INTRO!$E$37="Endémique",IF($H37>0,IF($H37=4,"Inconnu",IF($H37=99,"Interrompu",$D37)),0),"Non requis") -> 134503 | N37: =IF(INTRO!$E$39="Endémique", IF($I37>0, IF($I37=4,"Inconnu",IF($I37=99,"Interrompu",$D37)), 0),"Non requis") -> 134503 | O37: =IF(INTRO!$E$41="Endémique", IF(AND($J37>1,$J37<5), IF($J37=4, "Inconnu", E37+F37), 0),"Non requis") -> 49107 | P37: 79088 | Q37: 1 | R37: 1 | S37: 1 | T37: 1 | Y37: 9691 | Z37: MOBAYE-ZANGBA | AB37: Basse-Kotto
A38: =IF(INTRO!$E$33<>0,INTRO!$E$33, " ") -> CAR | B38: RS N° 6 | C38: BANGASSOU | D38: 139357 | E38: =IF(INTRO!$E$48="","",ROUND($D38*INTRO!$E$48,0)) -> 19245 | F38: =IF(INTRO!$E$49="","",ROUND($D38*INTRO!$E$49,0)) -> 31634 | G38: =IF(INTRO!$E$50="","",ROUND($D38*INTRO!$E$50,0)) -> 83600 | H38: 1 | I38: 1 | J38: 1 | K38: 1 | L38: 1 | M38: =IF(INTRO!$E$37="Endémique",IF($H38>0,IF($H38=4,"Inconnu",IF($H38=99,"Interrompu",$D38)),0),"Non requis") -> 139357 | N38: =IF(INTRO!$E$39="Endémique", IF($I38>0, IF($I38=4,"Inconnu",IF($I38=99,"Interrompu",$D38)), 0),"Non requis") -> 139357 | O38: =IF(INTRO!$E$41="Endémique", IF(AND($J38>1,$J38<5), IF($J38=4, "Inconnu", E38+F38), 0),"Non requis") -> 0 | P38: 6813 | Q38: 1 | R38: 1 | S38: 0 | T38: 0 | Y38: 9688 | Z38: BANGASSOU | AB38: Mbomou
A39: =IF(INTRO!$E$33<>0,INTRO!$E$33, " ") -> CAR | B39: RS N° 6 | C39: OUANGO-GAMBO | D39: 88472 | E39: =IF(INTRO!$E$48="","",ROUND($D39*INTRO!$E$48,0)) -> 12218 | F39: =IF(INTRO!$E$49="","",ROUND($D39*INTRO!$E$49,0)) -> 20083 | G39: =IF(INTRO!$E$50="","",ROUND($D39*INTRO!$E$50,0)) -> 53074 | H39: 1 | I39: 1 | J39: 2 | K39: 1 | L39: 1 | M39: =IF(INTRO!$E$37="Endémique",IF($H39>0,IF($H39=4,"Inconnu",IF($H39=99,"Interrompu",$D39)),0),"Non requis") -> 88472 | N39: =IF(INTRO!$E$39="Endémique", IF($I39>0, IF($I39=4,"Inconnu",IF($I39=99,"Interrompu",$D39)), 0),"Non requis") -> 88472 | O39: =IF(INTRO!$E$41="Endémique", IF(AND($J39>1,$J39<5), IF($J39=4, "Inconnu", E39+F39), 0),"Non requis") -> 32301 | P39: 19956 | Q39: 1 | R39: 1 | S39: 1 | T39: 0 | Y39: 9692 | Z39: OUANGO-GAMBO | AB39: Mbomou
A40: =IF(INTRO!$E$33<>0,INTRO!$E$33, " ") -> CAR | B40: RS N° 6 | C40: HAUT-MBOMOU | D40: 80017 | E40: =IF(INTRO!$E$48="","",ROUND($D40*INTRO!$E$48,0)) -> 11050 | F40: =IF(INTRO!$E$49="","",ROUND($D40*INTRO!$E$49,0)) -> 18164 | G40: =IF(INTRO!$E$50="","",ROUND($D40*INTRO!$E$50,0)) -> 48002 | H40: 1 | I40: 1 | J40: 1 | K40: 2 | L40: 1 | M40: =IF(INTRO!$E$37="Endémique",IF($H40>0,IF($H40=4,"Inconnu",IF($H40=99,"Interrompu",$D40)),0),"Non requis") -> 80017 | N40: =IF(INTRO!$E$39="Endémique", IF($I40>0, IF($I40=4,"Inconnu",IF($I40=99,"Interrompu",$D40)), 0),"Non requis") -> 80017 | O40: =IF(INTRO!$E$41="Endémique", IF(AND($J40>1,$J40<5), IF($J40=4, "Inconnu", E40+F40), 0),"Non requis") -> 0 | P40: 27590 | Q40: 1 | R40: 1 | S40: 1 | T40: 1 | Y40: 9689 | Z40: HAUT-MBOMOU | AB40: Haut-Mbomou
A41: =IF(INTRO!$E$33<>0,INTRO!$E$33, " ") -> CAR | B41: RS N° 7 | C41: BANGUI I (lakouanga) | D41: 186246 | E41: =IF(INTRO!$E$48="","",ROUND($D41*INTRO!$E$48,0)) -> 25721 | F41: =IF(INTRO!$E$49="","",ROUND($D41*INTRO!$E$49,0)) -> 42278 | G41: =IF(INTRO!$E$50="","",ROUND($D41*INTRO!$E$50,0)) -> 111729 | H41: 4 | I41: 4 | J41: 4 | K41: 4 | L41: 0 | M41: =IF(INTRO!$E$37="Endémique",IF($H41>0,IF($H41=4,"Inconnu",IF($H41=99,"Interrompu",$D41)),0),"Non requis") -> Inconnu | N41: =IF(INTRO!$E$39="Endémique", IF($I41>0, IF($I41=4,"Inconnu",IF($I41=99,"Interrompu",$D41)), 0),"Non requis") -> Inconnu | O41: =IF(INTRO!$E$41="Endémique", IF(AND($J41>1,$J41<5), IF($J41=4, "Inconnu", E41+F41), 0),"Non requis") -> Inconnu | P41: 0 | Q41: 0 | R41: 0 | S41: 0 | T41: 0 | Y41: 9693 | Z41: BANGUI I (lakouanga) | AB41: Bangui
A42: =IF(INTRO!$E$33<>0,INTRO!$E$33, " ") -> CAR | B42: RS N° 7 | C42: BANGUI II (Castors) | D42: 484256 | E42: =IF(INTRO!$E$48="","",ROUND($D42*INTRO!$E$48,0)) -> 66876 | F42: =IF(INTRO!$E$49="","",ROUND($D42*INTRO!$E$49,0)) -> 109926 | G42: =IF(INTRO!$E$50="","",ROUND($D42*INTRO!$E$50,0)) -> 290505 | H42: 4 | I42: 4 | J42: 4 | K42: 4 | L42: 0 | M42: =IF(INTRO!$E$37="Endémique",IF($H42>0,IF($H42=4,"Inconnu",IF($H42=99,"Interrompu",$D42)),0),"Non requis") -> Inconnu | N42: =IF(INTRO!$E$39="Endémique", IF($I42>0, IF($I42=4,"Inconnu",IF($I42=99,"Interrompu",$D42)), 0),"Non requis") -> Inconnu | O42: =IF(INTRO!$E$41="Endémique", IF(AND($J42>1,$J42<5), IF($J42=4, "Inconnu", E42+F42), 0),"Non requis") -> Inconnu | P42: 0 | Q42: 0 | R42: 0 | S42: 0 | T42: 0 | Y42: 9694 | Z42: BANGUI II (Castors) | AB42: Bangui
A43: =IF(INTRO!$E$33<>0,INTRO!$E$33, " ") -> CAR | B43: RS N° 7 | C43: BANGUI III (Bédé-Combattant) | D43: 278007 | E43: =IF(INTRO!$E$48="","",ROUND($D43*INTRO!$E$48,0)) -> 38393 | F43: =IF(INTRO!$E$49="","",ROUND($D43*INTRO!$E$49,0)) -> 63108 | G43: =IF(INTRO!$E$50="","",ROUND($D43*INTRO!$E$50,0)) -> 166776 | H43: 4 | I43: 4 | J43: 4 | K43: 4 | L43: 0 | M43: =IF(INTRO!$E$37="Endémique",IF($H43>0,IF($H43=4,"Inconnu",IF($H43=99,"Interrompu",$D43)),0),"Non requis") -> Inconnu | N43: =IF(INTRO!$E$39="Endémique", IF($I43>0, IF($I43=4,"Inconnu",IF($I43=99,"Interrompu",$D43)), 0),"Non requis") -> Inconnu | O43: =IF(INTRO!$E$41="Endémique", IF(AND($J43>1,$J43<5), IF($J43=4, "Inconnu", E43+F43), 0),"Non requis") -> Inconnu | P43: 0 | Q43: 0 | R43: 0 | S43: 0 | T43: 0 | Y43: 9695 | Z43: BANGUI III (Bédé-Combattant) | AB43: Bangui

Sheet ALB_MBD
A1: Albendazole (ALB) et Mebendazole (MBD)
A2: Structure administrative, population ciblée par groupe d'âge, plan de traitement et information sur les comprimés
A4: TOTAL | D4: =SUM(D$9:D$1000) -> 627771 | E4: =SUM(E$9:E$1000) -> 1031886 | F4: =SUM(F$9:F$1000) -> 1659657 | I4: =SUM(I$9:I$1000) -> 2262005 | J4: =SUM(J$9:J$1000) -> 1496877 | M4: =SUM(M$9:M$1000) -> 527557 | N4: =SUM(N$9:N$1000) -> 19051 | O4: =SUM(O$9:O$1000) -> 0 | P4: =SUM(P$9:P$1000) -> 546608 | Q4: =SUM(Q$9:Q$1000) -> 0 | R4: =SUM(R$9:R$1000) -> 0 | S4: 0 | T4: 0 | U4: 0 | V4: 5255759 | W4: 26297 | X4: 0 | Y4: 19051 | Z4: 96 | AA4: 0 | AB4: 0 | AC4: 0
A6: Structure administrative du pays | D6: Population nécessitant un traitement avec ALB/MBD | G6: Plan de traitement | I6: Population couverte par le PEFL avec ALB | J6: Endémique à la Loase | L6: Médicament choisi pour le traitement des STH | M6: Population cible | U6: Albendazole (ALB) | AA6: Mebendazole (MBD)
A7: Pays | B7: Région/Département | C7: District | D7: EAPréS | E7: EAS | F7: Total | G7: FL | H7: STH | J7: Population | K7: Tours planifiés | M7: STH (ALB) | Q7: STH (MBD) | U7: Reste en stock (FL) | V7: Comprimés devant être fournis (FL) | W7: Flacons (400mg) 200 comprimés (FL) | X7: Reste en stock (STH) | Y7: Comprimés devant être fournis pour EAS (STH) | Z7: Flacons (400mg) 200 comprimés (STH) | AA7: Reste en stock | AB7: Comprimés devant être fournis pour EAS | AC7: Flacons (500mg) 150 comprimés
M8: EAPréS | N8: EAS | O8: Autres | P8: Total | Q8: EAPréS | R8: EAS | S8: Autres | T8: Total
A9: =IF(AND(INTRO!$E$37="Non endémique",INTRO!$E$41="Non endémique")," ",IF(COUNTRY_INFO!A9=0," ",COUNTRY_INFO!A9)) -> CAR | B9: =IF(AND(INTRO!$E$37="Non endémique",INTRO!$E$41="Non endémique")," ",IF(COUNTRY_INFO!B9=0," ",COUNTRY_INFO!B9)) -> RS N° 1 | C9: =IF(AND(INTRO!$E$37="Non endémique",INTRO!$E$41="Non endémique")," ",IF(COUNTRY_INFO!C9=0," ",COUNTRY_INFO!C9)) -> BEGOUA | D9: =IF(AND(INTRO!$E$37="Non endémique",INTRO!$E$41="Non endémique"),0,IF(AND(OR(COUNTRY_INFO!$H9=0,COUNTRY_INFO!$H9=4,COUNTRY_INFO!$H9=99),OR(COUNTRY_INFO!$J9=0,COUNTRY_INFO!$J9=4)),0,COUNTRY_INFO!$E9)) -> 23775 | E9: =IF(AND(INTRO!$E$37="Non endémique",INTRO!$E$41="Non endémique"),0,IF(AND(OR(COUNTRY_INFO!$H9=0,COUNTRY_INFO!$H9=4,COUNTRY_INFO!$H9=99),OR(COUNTRY_INFO!$J9=0,COUNTRY_INFO!$J9=4)),0,COUNTRY_INFO!$F9)) -> 39080 | F9: =SUM(D9:E9) -> 62855 | G9: =IF(AND(INTRO!$E$37="Non endémique",INTRO!$E$41="Non endémique"),0,COUNTRY_INFO!Q9) -> 1 | H9: =IF(AND(INTRO!$E$37="Non endémique",INTRO!$E$41="Non endémique"),0,COUNTRY_INFO!S9) -> 1 | I9: =IF($G9=1,IVM!$G9,0) -> 0 | J9: 142358 | K9: 2 | L9: ALB | M9: =IF($L9="ALB", IF(INTRO!$E$39="Non endémique",IF($H9<>0,$D9*($H9-$G9),0),$D9*$H9), 0) -> 23775 | N9: =IF($L9="ALB", IF($H9=0, 0, IF(AND($I9=0, OR($J9=0,$J9=" ")), $E9*$H9, IF(AND($I9=0, $J9>0), IF(($H9-$K9)<=0, 0, $E9*(MAX($H9,$K9)-MIN($H9,$K9))), IF(AND($I9>0, $J9=0), $E9*($H9-$G9), IF($J9=" ", $E9*($H9-$G9), $J9*$E9/($I9+$J9)*$K9+$I9*$E9/($I9+$J9)*($H9-$G9)))))), 0) -> 0 | P9: =SUM(M9:O9) -> 23775 | Q9: =IF($L9="MBD", IF(INTRO!$E$39="Non endémique",IF($H9<>0,$D9*($H9-$G9),0),$D9*$H9),0) -> 0 | R9: =IF($L9="MBD", IF($H9=0, 0, IF(AND($I9=0, OR($J9=0,$J9=" ")), $E9*$H9, IF(AND($I9=0, $J9>0), IF(($H9-$K9)<=0, 0, $E9*(MAX($H9,$K9)-MIN($H9,$K9))), IF(AND($I9>0, $J9=0), $E9*($H9-$G9), IF($J9=" ", 0, $J9*$E9/($I9+$J9)*$K9+$I9*$E9/($I9+$J9)*($H9-$G9)))))), 0) -> 0 | T9: =SUM(Q9:S9) -> 0 | V9: =IF($J9<>" ", IF(($I9+$J9*$K9)>$U9, ($I9+$J9*$K9)-$U9,0), IF($I9>$U9, $I9-$U9, 0)) -> 284716 | W9: =IF($J9<>" ", ROUNDUP(($I9+$J9*$K9)/200,0), ROUNDUP($I9/200,0)) -> 1424 | Y9: =IF($N9>$X9,$N9-$X9,0) -> 0 | Z9: =ROUNDUP($N9/200,0) -> 0 | AB9: =IF($R9>$AA9,$R9-$AA9,0) -> 0 | AC9: =ROUNDUP($R9/150,0) -> 0
A10: =IF(AND(INTRO!$E$37="Non endémique",INTRO!$E$41="Non endémique")," ",IF(COUNTRY_INFO!A10=0," ",COUNTRY_INFO!A10)) -> CAR | B10: =IF(AND(INTRO!$E$37="Non endémique",INTRO!$E$41="Non endémique")," ",IF(COUNTRY_INFO!B10=0," ",COUNTRY_INFO!B10)) -> RS N° 1 | C10: =IF(AND(INTRO!$E$37="Non endémique",INTRO!$E$41="Non endémique")," ",IF(COUNTRY_INFO!C10=0," ",COUNTRY_INFO!C10)) -> BIMBO | D10: =IF(AND(INTRO!$E$37="Non endémique",INTRO!$E$41="Non endémique"),0,IF(AND(OR(COUNTRY_INFO!$H10=0,COUNTRY_INFO!$H10=4,COUNTRY_INFO!$H10=99),OR(COUNTRY_INFO!$J10=0,COUNTRY_INFO!$J10=4)),0,COUNTRY_INFO!$E10)) -> 24546 | E10: =IF(AND(INTRO!$E$37="Non endémique",INTRO!$E$41="Non endémique"),0,IF(AND(OR(COUNTRY_INFO!$H10=0,COUNTRY_INFO!$H10=4,COUNTRY_INFO!$H10=99),OR(COUNTRY_INFO!$J10=0,COUNTRY_INFO!$J10=4)),0,COUNTRY_INFO!$F10)) -> 40347 | F10: 64893 | G10: =IF(AND(INTRO!$E$37="Non endémique",INTRO!$E$41="Non endémique"),0,COUNTRY_INFO!Q10) -> 1 | H10: =IF(AND(INTRO!$E$37="Non endémique",INTRO!$E$41="Non endémique"),0,COUNTRY_INFO!S10) -> 1 | I10: =IF($G10=1,IVM!$G10,0) -> 0 | J10: 146973 | K10: 2 | L10: ALB | M10: =IF($L10="ALB", IF(INTRO!$E$39="Non endémique",IF($H10<>0,$D10*($H10-$G10),0),$D10*$H10), 0) -> 24546 | N10: =IF($L10="ALB", IF($H10=0, 0, IF(AND($I10=0, OR($J10=0,$J10=" ")), $E10*$H10, IF(AND($I10=0, $J10>0), IF(($H10-$K10)<=0, 0, $E10*(MAX($H10,$K10)-MIN($H10,$K10))), IF(AND($I10>0, $J10=0), $E10*($H10-$G10), IF($J10=" ", $E10*($H10-$G10), $J10*$E10/($I10+$J10)*$K10+$I10*$E10/($I10+$J10)*($H10-$G10)))))), 0) -> 0 | P10: 24546 | Q10: =IF($L10="MBD", IF(INTRO!$E$39="Non endémique",IF($H10<>0,$D10*($H10-$G10),0),$D10*$H10),0) -> 0 | R10: 0 | T10: 0 | V10: 293946 | W10: 1470 | Y10: 0 | Z10: 0 | AB10: 0 | AC10: 0
A11: =IF(AND(INTRO!$E$37="Non endémique",INTRO!$E$41="Non endémique")," ",IF(COUNTRY_INFO!A11=0," ",COUNTRY_INFO!A11)) -> CAR | B11: =IF(AND(INTRO!$E$37="Non endémique",INTRO!$E$41="Non endémique")," ",IF(COUNTRY_INFO!B11=0," ",COUNTRY_INFO!B11)) -> RS N° 1 | C11: =IF(AND(INTRO!$E$37="Non endémique",INTRO!$E$41="Non endémique")," ",IF(COUNTRY_INFO!C11=0," ",COUNTRY_INFO!C11)) -> BOSSEMBELE | D11: =IF(AND(INTRO!$E$37="Non endémique",INTRO!$E$41="Non endémique"),0,IF(AND(OR(COUNTRY_INFO!$H11=0,COUNTRY_INFO!$H11=4,COUNTRY_INFO!$H11=99),OR(COUNTRY_INFO!$J11=0,COUNTRY_INFO!$J11=4)),0,COUNTRY_INFO!$E11)) -> 20113 | E11: =IF(AND(INTRO!$E$37="Non endémique",INTRO!$E$41="Non endémique"),0,IF(AND(OR(COUNTRY_INFO!$H11=0,COUNTRY_INFO!$H11=4,COUNTRY_INFO!$H11=99),OR(COUNTRY_INFO!$J11=0,COUNTRY_INFO!$J11=4)),0,COUNTRY_INFO!$F11)) -> 33060 | F11: 53173 | G11: =IF(AND(INTRO!$E$37="Non endémique",INTRO!$E$41="Non endémique"),0,COUNTRY_INFO!Q11) -> 1 | H11: =IF(AND(INTRO!$E$37="Non endémique",INTRO!$E$41="Non endémique"),0,COUNTRY_INFO!S11) -> 1 | I11: =IF($G11=1,IVM!$G11,0) -> 0 | J11: 120429 | K11: 2 | L11: ALB | M11: =IF($L11="ALB", IF(INTRO!$E$39="Non endémique",IF($H11<>0,$D11*($H11-$G11),0),$D11*$H11), 0) -> 20113 | N11: 0 | P11: 20113 | Q11: =IF($L11="MBD", IF(INTRO!$E$39="Non endémique",IF($H11<>0,$D11*($H11-$G11),0),$D11*$H11),0) -> 0 | R11: 0 | T11: 0 | V11: 240858 | W11: 1205 | Y11: 0 | Z11: 0 | AB11: 0 | AC11: 0
A12: =IF(AND(INTRO!$E$37="Non endémique",INTRO!$E$41="Non endémique")," ",IF(COUNTRY_INFO!A12=0," ",COUNTRY_INFO!A12)) -> CAR | B12: =IF(AND(INTRO!$E$37="Non endémique",INTRO!$E$41="Non endémique")," ",IF(COUNTRY_INFO!B12=0," ",COUNTRY_INFO!B12)) -> RS N° 1 | C12: =IF(AND(INTRO!$E$37="Non endémique",INTRO!$E$41="Non endémique")," ",IF(COUNTRY_INFO!C12=0," ",COUNTRY_INFO!C12)) -> BODA | D12: =IF(AND(INTRO!$E$37="Non endémique",INTRO!$E$41="Non endémique"),0,IF(AND(OR(COUNTRY_INFO!$H12=0,COUNTRY_INFO!$H12=4,COUNTRY_INFO!$H12=99),OR(COUNTRY_INFO!$J12=0,COUNTRY_INFO!$J12=4)),0,COUNTRY_INFO!$E12)) -> 16739 | E12: =IF(AND(INTRO!$E$37="Non endémique",INTRO!$E$41="Non endémique"),0,IF(AND(OR(COUNTRY_INFO!$H12=0,COUNTRY_INFO!$H12=4,COUNTRY_INFO!$H12=99),OR(COUNTRY_INFO!$J12=0,COUNTRY_INFO!$J12=4)),0,COUNTRY_INFO!$F12)) -> 27515 | F12: 44254 | G12: =IF(AND(INTRO!$E$37="Non endémique",INTRO!$E$41="Non endémique"),0,COUNTRY_INFO!Q12) -> 1 | H12: =IF(AND(INTRO!$E$37="Non endémique",INTRO!$E$41="Non endémique"),0,COUNTRY_INFO!S12) -> 1 | I12: =IF($G12=1,IVM!$G12,0) -> 0 | J12: 100229 | K12: 2 | L12: ALB | M12: =IF($L12="ALB", IF(INTRO!$E$39="Non endémique",IF($H12<>0,$D12*($H12-$G12),0),$D12*$H12), 0) -> 16739 | N12: 0 | P12: 16739 | Q12: =IF($L12="MBD", IF(INTRO!$E$39="Non endémique",IF($H12<>0,$D12*($H12-$G12),0),$D12*$H12),0) -> 0 | R12: 0 | T12: 0 | V12: 200458 | W12: 1003 | Y12: 0 | Z12: 0 | AB12: 0 | AC12: 0
A13: =IF(AND(INTRO!$E$37="Non endémique",INTRO!$E$41="Non endémique")," ",IF(COUNTRY_INFO!A13=0," ",COUNTRY_INFO!A13)) -> CAR | B13: =IF(AND(INTRO!$E$37="Non endémique",INTRO!$E$41="Non endémique")," ",IF(COUNTRY_INFO!B13=0," ",COUNTRY_INFO!B13)) -> RS N° 1 | C13: =IF(AND(INTRO!$E$37="Non endémique",INTRO!$E$41="Non endémique")," ",IF(COUNTRY_INFO!C13=0," ",COUNTRY_INFO!C13)) -> MBAIKI | D13: =IF(AND(INTRO!$E$37="Non endémique",INTRO!$E$41="Non endémique"),0,IF(AND(OR(COUNTRY_INFO!$H13=0,COUNTRY_INFO!$H13=4,COUNTRY_INFO!$H13=99),OR(COUNTRY_INFO!$J13=0,COUNTRY_INFO!$J13=4)),0,COUNTRY_INFO!$E13)) -> 30621 | E13: =IF(AND(INTRO!$E$37="Non endémique",INTRO!$E$41="Non endémique"),0,IF(AND(OR(COUNTRY_INFO!$H13=0,COUNTRY_INFO!$H13=4,COUNTRY_INFO!$H13=99),OR(COUNTRY_INFO!$J13=0,COUNTRY_INFO!$J13=4)),0,COUNTRY_INFO!$F13)) -> 50333 | F13: 80954 | G13: =IF(AND(INTRO!$E$37="Non endémique",INTRO!$E$41="Non endémique"),0,COUNTRY_INFO!Q13) -> 1 | H13: =IF(AND(INTRO!$E$37="Non endémique",INTRO!$E$41="Non endémique"),0,COUNTRY_INFO!S13) -> 2 | I13: =IF($G13=1,IVM!$G13,0) -> 0 | J13: 183350 | K13: 2 | L13: ALB | M13: =IF($L13="ALB", IF(INTRO!$E$39="Non endémique",IF($H13<>0,$D13*($H13-$G13),0),$D13*$H13), 0) -> 61242 | N13: 0 | P13: 61242 | Q13: =IF($L13="MBD", IF(INTRO!$E$39="Non endémique",IF($H13<>0,$D13*($H13-$G13),0),$D13*$H13),0) -> 0 | R13: 0 | T13: 0 | V13: 366700 | W13: 1834 | Y13: 0 | Z13: 0 | AB13: 0 | AC13: 0
A14: =IF(AND(INTRO!$E$37="Non endémique",INTRO!$E$41="Non endémique")," ",IF(COUNTRY_INFO!A14=0," ",COUNTRY_INFO!A14)) -> CAR | B14: =IF(AND(INTRO!$E$37="Non endémique",INTRO!$E$41="Non endémique")," ",IF(COUNTRY_INFO!B14=0," ",COUNTRY_INFO!B14)) -> RS N° 2 | C14: =IF(AND(INTRO!$E$37="Non endémique",INTRO!$E$41="Non endémique")," ",IF(COUNTRY_INFO!C14=0," ",COUNTRY_INFO!C14)) -> BERBERATI | D14: =IF(AND(INTRO!$E$37="Non endémique",INTRO!$E$41="Non endémique"),0,IF(AND(OR(COUNTRY_INFO!$H14=0,COUNTRY_INFO!$H14=4,COUNTRY_INFO!$H14=99),OR(COUNTRY_INFO!$J14=0,COUNTRY_INFO!$J14=4)),0,COUNTRY_INFO!$E14)) -> 26226 | E14: =IF(AND(INTRO!$E$37="Non endémique",INTRO!$E$41="Non endémique"),0,IF(AND(OR(COUNTRY_INFO!$H14=0,COUNTRY_INFO!$H14=4,COUNTRY_INFO!$H14=99),OR(COUNTRY_INFO!$J14=0,COUNTRY_INFO!$J14=4)),0,COUNTRY_INFO!$F14)) -> 43109 | F14: 69335 | G14: =IF(AND(INTRO!$E$37="Non endémique",INTRO!$E$41="Non endémique"),0,COUNTRY_INFO!Q14) -> 1 | H14: =IF(AND(INTRO!$E$37="Non endémique",INTRO!$E$41="Non endémique"),0,COUNTRY_INFO!S14) -> 1 | I14: =IF($G14=1,IVM!$G14,0) -> 0 | J14: 157034 | K14: 2 | L14: ALB | M14: =IF($L14="ALB", IF(INTRO!$E$39="Non endémique",IF($H14<>0,$D14*($H14-$G14),0),$D14*$H14), 0) -> 26226 | N14: 0 | P14: 26226 | Q14: =IF($L14="MBD", IF(INTRO!$E$39="Non endémique",IF($H14<>0,$D14*($H14-$G14),0),$D14*$H14),0) -> 0 | R14: 0 | T14: 0 | V14: 314068 | W14: 1571 | Y14: 0 | Z14: 0 | AB14: 0 | AC14: 0
A15: =IF(AND(INTRO!$E$37="Non endémique",INTRO!$E$41="Non endémique")," ",IF(COUNTRY_INFO!A15=0," ",COUNTRY_INFO!A15)) -> CAR | B15: =IF(AND(INTRO!$E$37="Non endémique",INTRO!$E$41="Non endémique")," ",IF(COUNTRY_INFO!B15=0," ",COUNTRY_INFO!B15)) -> RS N° 2 | C15: =IF(AND(INTRO!$E$37="Non endémique",INTRO!$E$41="Non endémique")," ",IF(COUNTRY_INFO!C15=0," ",COUNTRY_INFO!C15)) -> CARNOT-GADZI | D15: =IF(AND(INTRO!$E$37="Non endémique",INTRO!$E$41="Non endémique"),0,IF(AND(OR(COUNTRY_INFO!$H15=0,COUNTRY_INFO!$H15=4,COUNTRY_INFO!$H15=99),OR(COUNTRY_INFO!$J15=0,COUNTRY_INFO!$J15=4)),0,COUNTRY_INFO!$E15)) -> 28169 | E15: =IF(AND(INTRO!$E$37="Non endémique",INTRO!$E$41="Non endémique"),0,IF(AND(OR(COUNTRY_INFO!$H15=0,COUNTRY_INFO!$H15=4,COUNTRY_INFO!$H15=99),OR(COUNTRY_INFO!$J15=0,COUNTRY_INFO!$J15=4)),0,COUNTRY_INFO!$F15)) -> 46303 | F15: 74472 | G15: =IF(AND(INTRO!$E$37="Non endémique",INTRO!$E$41="Non endémique"),0,COUNTRY_INFO!Q15) -> 1 | H15: =IF(AND(INTRO!$E$37="Non endémique",INTRO!$E$41="Non endémique"),0,COUNTRY_INFO!S15) -> 2 | I15: =IF($G15=1,IVM!$G15,0) -> 0 | J15: 168669 | K15: 2 | L15: ALB | M15: =IF($L15="ALB", IF(INTRO!$E$39="Non endémique",IF($H15<>0,$D15*($H15-$G15),0),$D15*$H15), 0) -> 56338 | N15: 0 | P15: 56338 | Q15: =IF($L15="MBD", IF(INTRO!$E$39="Non endémique",IF($H15<>0,$D15*($H15-$G15),0),$D15*$H15),0) -> 0 | R15: 0 | T15: 0 | V15: 337338 | W15: 1687 | Y15: 0 | Z15: 0 | AB15: 0 | AC15: 0
A16: =IF(AND(INTRO!$E$37="Non endémique",INTRO!$E$41="Non endémique")," ",IF(COUNTRY_INFO!A16=0," ",COUNTRY_INFO!A16)) -> CAR | B16: =IF(AND(INTRO!$E$37="Non endémique",INTRO!$E$41="Non endémique")," ",IF(COUNTRY_INFO!B16=0," ",COUNTRY_INFO!B16)) -> RS N° 2 | C16: =IF(AND(INTRO!$E$37="Non endémique",INTRO!$E$41="Non endémique")," ",IF(COUNTRY_INFO!C16=0," ",COUNTRY_INFO!C16)) -> GAMBOULA | D16: =IF(AND(INTRO!$E$37="Non endémique",INTRO!$E$41="Non endémique"),0,IF(AND(OR(COUNTRY_INFO!$H16=0,COUNTRY_INFO!$H16=4,COUNTRY_INFO!$H16=99),OR(COUNTRY_INFO!$J16=0,COUNTRY_INFO!$J16=4)),0,COUNTRY_INFO!$E16)) -> 15587 | E16: =IF(AND(INTRO!$E$37="Non endémique",INTRO!$E$41="Non endémique"),0,IF(AND(OR(COUNTRY_INFO!$H16=0,COUNTRY_INFO!$H16=4,COUNTRY_INFO!$H16=99),OR(COUNTRY_INFO!$J16=0,COUNTRY_INFO!$J16=4)),0,COUNTRY_INFO!$F16)) -> 25620 | F16: 41207 | G16: =IF(AND(INTRO!$E$37="Non endémique",INTRO!$E$41="Non endémique"),0,COUNTRY_INFO!Q16) -> 1 | H16: =IF(AND(INTRO!$E$37="Non endémique",INTRO!$E$41="Non endémique"),0,COUNTRY_INFO!S16) -> 2 | I16: =IF($G16=1,IVM!$G16,0) -> 0 | J16: 93328 | K16: 2 | L16: ALB | M16: =IF($L16="ALB", IF(INTRO!$E$39="Non endémique",IF($H16<>0,$D16*($H16-$G16),0),$D16*$H16), 0) -> 31174 | N16: 0 | P16: 31174 | Q16: =IF($L16="MBD", IF(INTRO!$E$39="Non endémique",IF($H16<>0,$D16*($H16-$G16),0),$D16*$H16),0) -> 0 | R16: 0 | T16: 0 | V16: 186656 | W16: 934 | Y16: 0 | Z16: 0 | AB16: 0 | AC16: 0
A17: =IF(AND(INTRO!$E$37="Non endémique",INTRO!$E$41="Non endémique")," ",IF(COUNTRY_INFO!A17=0," ",COUNTRY_INFO!A17)) -> CAR | B17: =IF(AND(INTRO!$E$37="Non endémique",INTRO!$E$41="Non endémique")," ",IF(COUNTRY_INFO!B17=0," ",COUNTRY_INFO!B17)) -> RS N° 2 | C17: =IF(AND(INTRO!$E$37="Non endémique",INTRO!$E$41="Non endémique")," ",IF(COUNTRY_INFO!C17=0," ",COUNTRY_INFO!C17)) -> BABOUA-ABBA | D17: =IF(AND(INTRO!$E$37="Non endémique",INTRO!$E$41="Non endémique"),0,IF(AND(OR(COUNTRY_INFO!$H17=0,COUNTRY_INFO!$H17=4,COUNTRY_INFO!$H17=99),OR(COUNTRY_INFO!$J17=0,COUNTRY_INFO!$J17=4)),0,COUNTRY_INFO!$E17)) -> 14531 | E17: =IF(AND(INTRO!$E$37="Non endémique",INTRO!$E$41="Non endémique"),0,IF(AND(OR(COUNTRY_INFO!$H17=0,COUNTRY_INFO!$H17=4,COUNTRY_INFO!$H17=99),OR(COUNTRY_INFO!$J17=0,COUNTRY_INFO!$J17=4)),0,COUNTRY_INFO!$F17)) -> 23884 | F17: 38415 | G17: =IF(AND(INTRO!$E$37="Non endémique",INTRO!$E$41="Non endémique"),0,COUNTRY_INFO!Q17) -> 1 | H17: =IF(AND(INTRO!$E$37="Non endémique",INTRO!$E$41="Non endémique"),0,COUNTRY_INFO!S17) -> 1 | I17: =IF($G17=1,IVM!$G17,0) -> 0 | J17: 87004 | K17: 2 | L17: ALB | M17: =IF($L17="ALB", IF(INTRO!$E$39="Non endémique",IF($H17<>0,$D17*($H17-$G17),0),$D17*$H17), 0) -> 14531 | N17: 0 | P17: 14531 | Q17: =IF($L17="MBD", IF(INTRO!$E$39="Non endémique",IF($H17<>0,$D17*($H17-$G17),0),$D17*$H17),0) -> 0 | R17: 0 | T17: 0 | V17: 174008 | W17: 871 | Y17: 0 | Z17: 0 | AB17: 0 | AC17: 0
A18: =IF(AND(INTRO!$E$37="Non endémique",INTRO!$E$41="Non endémique")," ",IF(COUNTRY_INFO!A18=0," ",COUNTRY_INFO!A18)) -> CAR | B18: =IF(AND(INTRO!$E$37="Non endémique",INTRO!$E$41="Non endémique")," ",IF(COUNTRY_INFO!B18=0," ",COUNTRY_INFO!B18)) -> RS N° 2 | C18: =IF(AND(INTRO!$E$37="Non endémique",INTRO!$E$41="Non endémique")," ",IF(COUNTRY_INFO!C18=0," ",COUNTRY_INFO!C18)) -> BOUAR-BAORO | D18: =IF(AND(INTRO!$E$37="Non endémique",INTRO!$E$41="Non endémique"),0,IF(AND(OR(COUNTRY_INFO!$H18=0,COUNTRY_INFO!$H18=4,COUNTRY_INFO!$H18=99),OR(COUNTRY_INFO!$J18=0,COUNTRY_INFO!$J18=4)),0,COUNTRY_INFO!$E18)) -> 30296 | E18: =IF(AND(INTRO!$E$37="Non endémique",INTRO!$E$41="Non endémique"),0,IF(AND(OR(COUNTRY_INFO!$H18=0,COUNTRY_INFO!$H18=4,COUNTRY_INFO!$H18=99),OR(COUNTRY_INFO!$J18=0,COUNTRY_INFO!$J18=4)),0,COUNTRY_INFO!$F18)) -> 49798 | F18: 80094 | G18: =IF(AND(INTRO!$E$37="Non endémique",INTRO!$E$41="Non endémique"),0,COUNTRY_INFO!Q18) -> 1 | H18: =IF(AND(INTRO!$E$37="Non endémique",INTRO!$E$41="Non endémique"),0,COUNTRY_INFO!S18) -> 1 | I18: =IF($G18=1,IVM!$G18,0) -> 0 | J18: 181401 | K18: 2 | L18: ALB | M18: =IF($L18="ALB", IF(INTRO!$E$39="Non endémique",IF($H18<>0,$D18*($H18-$G18),0),$D18*$H18), 0) -> 30296 | N18: 0 | P18: 30296 | Q18: =IF($L18="MBD", IF(INTRO!$E$39="Non endémique",IF($H18<>0,$D18*($H18-$G18),0),$D18*$H18),0) -> 0 | R18: 0 | T18: 0 | V18: 362802 | W18: 1815 | Y18: 0 | Z18: 0 | AB18: 0 | AC18: 0
A19: =IF(AND(INTRO!$E$37="Non endémique",INTRO!$E$41="Non endémique")," ",IF(COUNTRY_INFO!A19=0," ",COUNTRY_INFO!A19)) -> CAR | B19: =IF(AND(INTRO!$E$37="Non endémique",INTRO!$E$41="Non endémique")," ",IF(COUNTRY_INFO!B19=0," ",COUNTRY_INFO!B19)) -> RS N° 2 | C19: =IF(AND(INTRO!$E$37="Non endémique",INTRO!$E$41="Non endémique")," ",IF(COUNTRY_INFO!C19=0," ",COUNTRY_INFO!C19)) -> SANGHA-MBAERE | D19: =IF(AND(INTRO!$E$37="Non endémique",INTRO!$E$41="Non endémique"),0,IF(AND(OR(COUNTRY_INFO!$H19=0,COUNTRY_INFO!$H19=4,COUNTRY_INFO!$H19=99),OR(COUNTRY_INFO!$J19=0,COUNTRY_INFO!$J19=4)),0,COUNTRY_INFO!$E19)) -> 19390 | E19: =IF(AND(INTRO!$E$37="Non endémique",INTRO!$E$41="Non endémique"),0,IF(AND(OR(COUNTRY_INFO!$H19=0,COUNTRY_INFO!$H19=4,COUNTRY_INFO!$H19=99),OR(COUNTRY_INFO!$J19=0,COUNTRY_INFO!$J19=4)),0,COUNTRY_INFO!$F19)) -> 31872 | F19: 51262 | G19: =IF(AND(INTRO!$E$37="Non endémique",INTRO!$E$41="Non endémique"),0,COUNTRY_INFO!Q19) -> 1 | H19: =IF(AND(INTRO!$E$37="Non endémique",INTRO!$E$41="Non endémique"),0,COUNTRY_INFO!S19) -> 1 | I19: =IF($G19=1,IVM!$G19,0) -> 0 | J19: 116102 | K19: 2 | L19: ALB | M19: =IF($L19="ALB", IF(INTRO!$E$39="Non endémique",IF($H19<>0,$D19*($H19-$G19),0),$D19*$H19), 0) -> 19390 | N19: 0 | P19: 19390 | Q19: =IF($L19="MBD", IF(INTRO!$E$39="Non endémique",IF($H19<>0,$D19*($H19-$G19),0),$D19*$H19),0) -> 0 | R19: 0 | T19: 0 | V19: 232204 | W19: 1162 | Y19: 0 | Z19: 0 | AB19: 0 | AC19: 0
A20: =IF(AND(INTRO!$E$37="Non endémique",INTRO!$E$41="Non endémique")," ",IF(COUNTRY_INFO!A20=0," ",COUNTRY_INFO!A20)) -> CAR | B20: =IF(AND(INTRO!$E$37="Non endémique",INTRO!$E$41="Non endémique")," ",IF(COUNTRY_INFO!B20=0," ",COUNTRY_INFO!B20)) -> RS N° 3 | C20: =IF(AND(INTRO!$E$37="Non endémique",INTRO!$E$41="Non endémique")," ",IF(COUNTRY_INFO!C20=0," ",COUNTRY_INFO!C20)) -> BATANGAFO | D20: =IF(AND(INTRO!$E$37="Non endémique",INTRO!$E$41="Non endémique"),0,IF(AND(OR(COUNTRY_INFO!$H20=0,COUNTRY_INFO!$H20=4,COUNTRY_INFO!$H20=99),OR(COUNTRY_INFO!$J20=0,COUNTRY_INFO!$J20=4)),0,COUNTRY_INFO!$E20)) -> 19780 | E20: =IF(AND(INTRO!$E$37="Non endémique",INTRO!$E$41="Non endémique"),0,IF(AND(OR(COUNTRY_INFO!$H20=0,COUNTRY_INFO!$H20=4,COUNTRY_INFO!$H20=99),OR(COUNTRY_INFO!$J20=0,COUNTRY_INFO!$J20=4)),0,COUNTRY_INFO!$F20)) -> 32513 | F20: 52293 | G20: =IF(AND(INTRO!$E$37="Non endémique",INTRO!$E$41="Non endémique"),0,COUNTRY_INFO!Q20) -> 1 | H20: =IF(AND(INTRO!$E$37="Non endémique",INTRO!$E$41="Non endémique"),0,COUNTRY_INFO!S20) -> 0 | I20: =IF($G20=1,IVM!$G20,0) -> 118437 | J20: =IF($G20=0, " ", IF(COUNTRY_INFO!$H20=1, IF(COUNTRY_INFO!$L20=1, 0," ")," ")) -> 0 | M20: =IF($L20="ALB", IF(INTRO!$E$39="Non endémique",IF($H20<>0,$D20*($H20-$G20),0),$D20*$H20), 0) -> 0 | N20: 0 | P20: 0 | Q20: =IF($L20="MBD", IF(INTRO!$E$39="Non endémique",IF($H20<>0,$D20*($H20-$G20),0),$D20*$H20),0) -> 0 | R20: 0 | T20: 0 | V20: 118437 | W20: 593 | Y20: 0 | Z20: 0 | AB20: 0 | AC20: 0
A21: =IF(AND(INTRO!$E$37="Non endémique",INTRO!$E$41="Non endémique")," ",IF(COUNTRY_INFO!A21=0," ",COUNTRY_INFO!A21)) -> CAR | B21: =IF(AND(INTRO!$E$37="Non endémique",INTRO!$E$41="Non endémique")," ",IF(COUNTRY_INFO!B21=0," ",COUNTRY_INFO!B21)) -> RS N° 3 | C21: =IF(AND(INTRO!$E$37="Non endémique",INTRO!$E$41="Non endémique")," ",IF(COUNTRY_INFO!C21=0," ",COUNTRY_INFO!C21)) -> BOUCA | D21: =IF(AND(INTRO!$E$37="Non endémique",INTRO!$E$41="Non endémique"),0,IF(AND(OR(COUNTRY_INFO!$H21=0,COUNTRY_INFO!$H21=4,COUNTRY_INFO!$H21=99),OR(COUNTRY_INFO!$J21=0,COUNTRY_INFO!$J21=4)),0,COUNTRY_INFO!$E21)) -> 10737 | E21: =IF(AND(INTRO!$E$37="Non endémique",INTRO!$E$41="Non endémique"),0,IF(AND(OR(COUNTRY_INFO!$H21=0,COUNTRY_INFO!$H21=4,COUNTRY_INFO!$H21=99),OR(COUNTRY_INFO!$J21=0,COUNTRY_INFO!$J21=4)),0,COUNTRY_INFO!$F21)) -> 17649 | F21: 28386 | G21: =IF(AND(INTRO!$E$37="Non endémique",INTRO!$E$41="Non endémique"),0,COUNTRY_INFO!Q21) -> 1 | H21: =IF(AND(INTRO!$E$37="Non endémique",INTRO!$E$41="Non endémique"),0,COUNTRY_INFO!S21) -> 0 | I21: =IF($G21=1,IVM!$G21,0) -> 64290 | J21: =IF($G21=0, " ", IF(COUNTRY_INFO!$H21=1, IF(COUNTRY_INFO!$L21=1, 0," ")," ")) -> 0 | M21: =IF($L21="ALB", IF(INTRO!$E$39="Non endémique",IF($H21<>0,$D21*($H21-$G21),0),$D21*$H21), 0) -> 0 | N21: 0 | P21: 0 | Q21: =IF($L21="MBD", IF(INTRO!$E$39="Non endémique",IF($H21<>0,$D21*($H21-$G21),0),$D21*$H21),0) -> 0 | R21: 0 | T21: 0 | V21: 64290 | W21: 322 | Y21: 0 | Z21: 0 | AB21: 0 | AC21: 0
A22: =IF(AND(INTRO!$E$37="Non endémique",INTRO!$E$41="Non endémique")," ",IF(COUNTRY_INFO!A22=0," ",COUNTRY_INFO!A22)) -> CAR | B22: =IF(AND(INTRO!$E$37="Non endémique",INTRO!$E$41="Non endémique")," ",IF(COUNTRY_INFO!B22=0," ",COUNTRY_INFO!B22)) -> RS N° 3 | C22: =IF(AND(INTRO!$E$37="Non endémique",INTRO!$E$41="Non endémique")," ",IF(COUNTRY_INFO!C22=0," ",COUNTRY_INFO!C22)) -> BOSSANGOA | D22: =IF(AND(INTRO!$E$37="Non endémique",INTRO!$E$41="Non endémique"),0,IF(AND(OR(COUNTRY_INFO!$H22=0,COUNTRY_INFO!$H22=4,COUNTRY_INFO!$H22=99),OR(COUNTRY_INFO!$J22=0,COUNTRY_INFO!$J22=4)),0,COUNTRY_INFO!$E22)) -> 24057 | E22: =IF(AND(INTRO!$E$37="Non endémique",INTRO!$E$41="Non endémique"),0,IF(AND(OR(COUNTRY_INFO!$H22=0,COUNTRY_INFO!$H22=4,COUNTRY_INFO!$H22=99),OR(COUNTRY_INFO!$J22=0,COUNTRY_INFO!$J22=4)),0,COUNTRY_INFO!$F22)) -> 39543 | F22: 63600 | G22: =IF(AND(INTRO!$E$37="Non endémique",INTRO!$E$41="Non endémique"),0,COUNTRY_INFO!Q22) -> 1 | H22: =IF(AND(INTRO!$E$37="Non endémique",INTRO!$E$41="Non endémique"),0,COUNTRY_INFO!S22) -> 0 | I22: =IF($G22=1,IVM!$G22,0) -> 144045 | J22: =IF($G22=0, " ", IF(COUNTRY_INFO!$H22=1, IF(COUNTRY_INFO!$L22=1, 0," ")," ")) -> 0 | M22: =IF($L22="ALB", IF(INTRO!$E$39="Non endémique",IF($H22<>0,$D22*($H22-$G22),0),$D22*$H22), 0) -> 0 | N22: 0 | P22: 0 | Q22: =IF($L22="MBD", IF(INTRO!$E$39="Non endémique",IF($H22<>0,$D22*($H22-$G22),0),$D22*$H22),0) -> 0 | R22: 0 | T22: 0 | V22: 144045 | W22: 721 | Y22: 0 | Z22: 0 | AB22: 0 | AC22: 0
A23: =IF(AND(INTRO!$E$37="Non endémique",INTRO!$E$41="Non endémique")," ",IF(COUNTRY_INFO!A23=0," ",COUNTRY_INFO!A23)) -> CAR | B23: =IF(AND(INTRO!$E$37="Non endémique",INTRO!$E$41="Non endémique")," ",IF(COUNTRY_INFO!B23=0," ",COUNTRY_INFO!B23)) -> RS N° 3 | C23: =IF(AND(INTRO!$E$37="Non endémique",INTRO!$E$41="Non endémique")," ",IF(COUNTRY_INFO!C23=0," ",COUNTRY_INFO!C23)) -> NANGA-BOGUILA | D23: =IF(AND(INTRO!$E$37="Non endémique",INTRO!$E$41="Non endémique"),0,IF(AND(OR(COUNTRY_INFO!$H23=0,COUNTRY_INFO!$H23=4,COUNTRY_INFO!$H23=99),OR(COUNTRY_INFO!$J23=0,COUNTRY_INFO!$J23=4)),0,COUNTRY_INFO!$E23)) -> 16257 | E23: =IF(AND(INTRO!$E$37="Non endémique",INTRO!$E$41="Non endémique"),0,IF(AND(OR(COUNTRY_INFO!$H23=0,COUNTRY_INFO!$H23=4,COUNTRY_INFO!$H23=99),OR(COUNTRY_INFO!$J23=0,COUNTRY_INFO!$J23=4)),0,COUNTRY_INFO!$F23)) -> 26722 | F23: 42979 | G23: =IF(AND(INTRO!$E$37="Non endémique",INTRO!$E$41="Non endémique"),0,COUNTRY_INFO!Q23) -> 1 | H23: =IF(AND(INTRO!$E$37="Non endémique",INTRO!$E$41="Non endémique"),0,COUNTRY_INFO!S23) -> 0 | I23: =IF($G23=1,IVM!$G23,0) -> 97341 | J23: =IF($G23=0, " ", IF(COUNTRY_INFO!$H23=1, IF(COUNTRY_INFO!$L23=1, 0," ")," ")) -> 0 | M23: =IF($L23="ALB", IF(INTRO!$E$39="Non endémique",IF($H23<>0,$D23*($H23-$G23),0),$D23*$H23), 0) -> 0 | N23: 0 | P23: 0 | Q23: =IF($L23="MBD", IF(INTRO!$E$39="Non endémique",IF($H23<>0,$D23*($H23-$G23),0),$D23*$H23),0) -> 0 | R23: 0 | T23: 0 | V23: 97341 | W23: 487 | Y23: 0 | Z23: 0 | AB23: 0 | AC23: 0
A24: =IF(AND(INTRO!$E$37="Non endémique",INTRO!$E$41="Non endémique")," ",IF(COUNTRY_INFO!A24=0," ",COUNTRY_INFO!A24)) -> CAR | B24: =IF(AND(INTRO!$E$37="Non endémique",INTRO!$E$41="Non endémique")," ",IF(COUNTRY_INFO!B24=0," ",COUNTRY_INFO!B24)) -> RS N° 3 | C24: =IF(AND(INTRO!$E$37="Non endémique",INTRO!$E$41="Non endémique")," ",IF(COUNTRY_INFO!C24=0," ",COUNTRY_INFO!C24)) -> BOCARANGA-KOUI | D24: =IF(AND(INTRO!$E$37="Non endémique",INTRO!$E$41="Non endémique"),0,IF(AND(OR(COUNTRY_INFO!$H24=0,COUNTRY_INFO!$H24=4,COUNTRY_INFO!$H24=99),OR(COUNTRY_INFO!$J24=0,COUNTRY_INFO!$J24=4)),0,COUNTRY_INFO!$E24)) -> 21090 | E24: =IF(AND(INTRO!$E$37="Non endémique",INTRO!$E$41="Non endémique"),0,IF(AND(OR(COUNTRY_INFO!$H24=0,COUNTRY_INFO!$H24=4,COUNTRY_INFO!$H24=99),OR(COUNTRY_INFO!$J24=0,COUNTRY_INFO!$J24=4)),0,COUNTRY_INFO!$F24)) -> 34666 | F24: 55756 | G24: =IF(AND(INTRO!$E$37="Non endémique",INTRO!$E$41="Non endémique"),0,COUNTRY_INFO!Q24) -> 1 | H24: =IF(AND(INTRO!$E$37="Non endémique",INTRO!$E$41="Non endémique"),0,COUNTRY_INFO!S24) -> 0 | I24: =IF($G24=1,IVM!$G24,0) -> 126280 | J24: =IF($G24=0, " ", IF(COUNTRY_INFO!$H24=1, IF(COUNTRY_INFO!$L24=1, 0," ")," ")) -> 0 | M24: =IF($L24="ALB", IF(INTRO!$E$39="Non endémique",IF($H24<>0,$D24*($H24-$G24),0),$D24*$H24), 0) -> 0 | N24: 0 | P24: 0 | Q24: =IF($L24="MBD", IF(INTRO!$E$39="Non endémique",IF($H24<>0,$D24*($H24-$G24),0),$D24*$H24),0) -> 0 | R24: 0 | T24: 0 | V24: 126280 | W24: 632 | Y24: 0 | Z24: 0 | AB24: 0 | AC24: 0
A25: =IF(AND(INTRO!$E$37="Non endémique",INTRO!$E$41="Non endémique")," ",IF(COUNTRY_INFO!A25=0," ",COUNTRY_INFO!A25)) -> CAR | B25: =IF(AND(INTRO!$E$37="Non endémique",INTRO!$E$41="Non endémique")," ",IF(COUNTRY_INFO!B25=0," ",COUNTRY_INFO!B25)) -> RS N° 3 | C25: =IF(AND(INTRO!$E$37="Non endémique",INTRO!$E$41="Non endémique")," ",IF(COUNTRY_INFO!C25=0," ",COUNTRY_INFO!C25)) -> BOZOUM-BOSSEMPTELE | D25: =IF(AND(INTRO!$E$37="Non endémique",INTRO!$E$41="Non endémique"),0,IF(AND(OR(COUNTRY_INFO!$H25=0,COUNTRY_INFO!$H25=4,COUNTRY_INFO!$H25=99),OR(COUNTRY_INFO!$J25=0,COUNTRY_INFO!$J25=4)),0,COUNTRY_INFO!$E25)) -> 13835 | E25: =IF(AND(INTRO!$E$37="Non endémique",INTRO!$E$41="Non endémique"),0,IF(AND(OR(COUNTRY_INFO!$H25=0,COUNTRY_INFO!$H25=4,COUNTRY_INFO!$H25=99),OR(COUNTRY_INFO!$J25=0,COUNTRY_INFO!$J25=4)),0,COUNTRY_INFO!$F25)) -> 22740 | F25: 36575 | G25: =IF(AND(INTRO!$E$37="Non endémique",INTRO!$E$41="Non endémique"),0,COUNTRY_INFO!Q25) -> 1 | H25: =IF(AND(INTRO!$E$37="Non endémique",INTRO!$E$41="Non endémique"),0,COUNTRY_INFO!S25) -> 1 | I25: =IF($G25=1,IVM!$G25,0) -> 82837 | J25: =IF($G25=0, " ", IF(COUNTRY_INFO!$H25=1, IF(COUNTRY_INFO!$L25=1, 0," ")," ")) -> 0 | L25: ALB | M25: =IF($L25="ALB", IF(INTRO!$E$39="Non endémique",IF($H25<>0,$D25*($H25-$G25),0),$D25*$H25), 0) -> 13835 | N25: 0 | P25: 13835 | Q25: =IF($L25="MBD", IF(INTRO!$E$39="Non endémique",IF($H25<>0,$D25*($H25-$G25),0),$D25*$H25),0) -> 0 | R25: 0 | T25: 0 | V25: 82837 | W25: 415 | Y25: 0 | Z25: 0 | AB25: 0 | AC25: 0
A26: =IF(AND(INTRO!$E$37="Non endémique",INTRO!$E$41="Non endémique")," ",IF(COUNTRY_INFO!A26=0," ",COUNTRY_INFO!A26)) -> CAR | B26: =IF(AND(INTRO!$E$37="Non endémique",INTRO!$E$41="Non endémique")," ",IF(COUNTRY_INFO!B26=0," ",COUNTRY_INFO!B26)) -> RS N° 3 | C26: =IF(AND(INTRO!$E$37="Non endémique",INTRO!$E$41="Non endémique")," ",IF(COUNTRY_INFO!C26=0," ",COUNTRY_INFO!C26)) -> NGAOUNDAYE | D26: =IF(AND(INTRO!$E$37="Non endémique",INTRO!$E$41="Non endémique"),0,IF(AND(OR(COUNTRY_INFO!$H26=0,COUNTRY_INFO!$H26=4,COUNTRY_INFO!$H26=99),OR(COUNTRY_INFO!$J26=0,COUNTRY_INFO!$J26=4)),0,COUNTRY_INFO!$E26)) -> 17073 | E26: =IF(AND(INTRO!$E$37="Non endémique",INTRO!$E$41="Non endémique"),0,IF(AND(OR(COUNTRY_INFO!$H26=0,COUNTRY_INFO!$H26=4,COUNTRY_INFO!$H26=99),OR(COUNTRY_INFO!$J26=0,COUNTRY_INFO!$J26=4)),0,COUNTRY_INFO!$F26)) -> 28063 | F26: 45136 | G26: =IF(AND(INTRO!$E$37="Non endémique",INTRO!$E$41="Non endémique"),0,COUNTRY_INFO!Q26) -> 1 | H26: =IF(AND(INTRO!$E$37="Non endémique",INTRO!$E$41="Non endémique"),0,COUNTRY_INFO!S26) -> 0 | I26: =IF($G26=1,IVM!$G26,0) -> 102227 | J26: =IF($G26=0, " ", IF(COUNTRY_INFO!$H26=1, IF(COUNTRY_INFO!$L26=1, 0," ")," ")) -> 0 | M26: =IF($L26="ALB", IF(INTRO!$E$39="Non endémique",IF($H26<>0,$D26*($H26-$G26),0),$D26*$H26), 0) -> 0 | N26: 0 | P26: 0 | Q26: =IF($L26="MBD", IF(INTRO!$E$39="Non endémique",IF($H26<>0,$D26*($H26-$G26),0),$D26*$H26),0) -> 0 | R26: 0 | T26: 0 | V26: 102227 | W26: 512 | Y26: 0 | Z26: 0 | AB26: 0 | AC26: 0
A27: =IF(AND(INTRO!$E$37="Non endémique",INTRO!$E$41="Non endémique")," ",IF(COUNTRY_INFO!A27=0," ",COUNTRY_INFO!A27)) -> CAR | B27: =IF(AND(INTRO!$E$37="Non endémique",INTRO!$E$41="Non endémique")," ",IF(COUNTRY_INFO!B27=0," ",COUNTRY_INFO!B27)) -> RS N° 3 | C27: =IF(AND(INTRO!$E$37="Non endémique",INTRO!$E$41="Non endémique")," ",IF(COUNTRY_INFO!C27=0," ",COUNTRY_INFO!C27)) -> PAOUA | D27: =IF(AND(INTRO!$E$37="Non endémique",INTRO!$E$41="Non endémique"),0,IF(AND(OR(COUNTRY_INFO!$H27=0,COUNTRY_INFO!$H27=4,COUNTRY_INFO!$H27=99),OR(COUNTRY_INFO!$J27=0,COUNTRY_INFO!$J27=4)),0,COUNTRY_INFO!$E27)) -> 30591 | E27: =IF(AND(INTRO!$E$37="Non endémique",INTRO!$E$41="Non endémique"),0,IF(AND(OR(COUNTRY_INFO!$H27=0,COUNTRY_INFO!$H27=4,COUNTRY_INFO!$H27=99),OR(COUNTRY_INFO!$J27=0,COUNTRY_INFO!$J27=4)),0,COUNTRY_INFO!$F27)) -> 50283 | F27: 80874 | G27: =IF(AND(INTRO!$E$37="Non endémique",INTRO!$E$41="Non endémique"),0,COUNTRY_INFO!Q27) -> 1 | H27: =IF(AND(INTRO!$E$37="Non endémique",INTRO!$E$41="Non endémique"),0,COUNTRY_INFO!S27) -> 0 | I27: =IF($G27=1,IVM!$G27,0) -> 183167 | J27: =IF($G27=0, " ", IF(COUNTRY_INFO!$H27=1, IF(COUNTRY_INFO!$L27=1, 0," ")," ")) -> 0 | M27: =IF($L27="ALB", IF(INTRO!$E$39="Non endémique",IF($H27<>0,$D27*($H27-$G27),0),$D27*$H27), 0) -> 0 | N27: 0 | P27: 0 | Q27: =IF($L27="MBD", IF(INTRO!$E$39="Non endémique",IF($H27<>0,$D27*($H27-$G27),0),$D27*$H27),0) -> 0 | R27: 0 | T27: 0 | V27: 183167 | W27: 916 | Y27: 0 | Z27: 0 | AB27: 0 | AC27: 0
A28: =IF(AND(INTRO!$E$37="Non endémique",INTRO!$E$41="Non endémique")," ",IF(COUNTRY_INFO!A28=0," ",COUNTRY_INFO!A28)) -> CAR | B28: =IF(AND(INTRO!$E$37="Non endémique",INTRO!$E$41="Non endémique")," ",IF(COUNTRY_INFO!B28=0," ",COUNTRY_INFO!B28)) -> RS N° 4 | C28: =IF(AND(INTRO!$E$37="Non endémique",INTRO!$E$41="Non endémique")," ",IF(COUNTRY_INFO!C28=0," ",COUNTRY_INFO!C28)) -> KEMO | D28: =IF(AND(INTRO!$E$37="Non endémique",INTRO!$E$41="Non endémique"),0,IF(AND(OR(COUNTRY_INFO!$H28=0,COUNTRY_INFO!$H28=4,COUNTRY_INFO!$H28=99),OR(COUNTRY_INFO!$J28=0,COUNTRY_INFO!$J28=4)),0,COUNTRY_INFO!$E28)) -> 22718 | E28: =IF(AND(INTRO!$E$37="Non endémique",INTRO!$E$41="Non endémique"),0,IF(AND(OR(COUNTRY_INFO!$H28=0,COUNTRY_INFO!$H28=4,COUNTRY_INFO!$H28=99),OR(COUNTRY_INFO!$J28=0,COUNTRY_INFO!$J28=4)),0,COUNTRY_INFO!$F28)) -> 37342 | F28: 60060 | G28: =IF(AND(INTRO!$E$37="Non endémique",INTRO!$E$41="Non endémique"),0,COUNTRY_INFO!Q28) -> 1 | H28: =IF(AND(INTRO!$E$37="Non endémique",INTRO!$E$41="Non endémique"),0,COUNTRY_INFO!S28) -> 1 | I28: =IF($G28=1,IVM!$G28,0) -> 136026 | J28: =IF($G28=0, " ", IF(COUNTRY_INFO!$H28=1, IF(COUNTRY_INFO!$L28=1, 0," ")," ")) ->  | L28: ALB | M28: =IF($L28="ALB", IF(INTRO!$E$39="Non endémique",IF($H28<>0,$D28*($H28-$G28),0),$D28*$H28), 0) -> 22718 | N28: 0 | P28: 22718 | Q28: =IF($L28="MBD", IF(INTRO!$E$39="Non endémique",IF($H28<>0,$D28*($H28-$G28),0),$D28*$H28),0) -> 0 | R28: 0 | T28: 0 | V28: 136026 | W28: 681 | Y28: 0 | Z28: 0 | AB28: 0 | AC28: 0
A29: =IF(AND(INTRO!$E$37="Non endémique",INTRO!$E$41="Non endémique")," ",IF(COUNTRY_INFO!A29=0," ",COUNTRY_INFO!A29)) -> CAR | B29: =IF(AND(INTRO!$E$37="Non endémique",INTRO!$E$41="Non endémique")," ",IF(COUNTRY_INFO!B29=0," ",COUNTRY_INFO!B29)) -> RS N° 4 | C29: =IF(AND(INTRO!$E$37="Non endémique",INTRO!$E$41="Non endémique")," ",IF(COUNTRY_INFO!C29=0," ",COUNTRY_INFO!C29)) -> NANA-GRIBIZI | D29: =IF(AND(INTRO!$E$37="Non endémique",INTRO!$E$41="Non endémique"),0,IF(AND(OR(COUNTRY_INFO!$H29=0,COUNTRY_INFO!$H29=4,COUNTRY_INFO!$H29=99),OR(COUNTRY_INFO!$J29=0,COUNTRY_INFO!$J29=4)),0,COUNTRY_INFO!$E29)) -> 22602 | E29: =IF(AND(INTRO!$E$37="Non endémique",INTRO!$E$41="Non endémique"),0,IF(AND(OR(COUNTRY_INFO!$H29=0,COUNTRY_INFO!$H29=4,COUNTRY_INFO!$H29=99),OR(COUNTRY_INFO!$J29=0,COUNTRY_INFO!$J29=4)),0,COUNTRY_INFO!$F29)) -> 37151 | F29: 59753 | G29: =IF(AND(INTRO!$E$37="Non endémique",INTRO!$E$41="Non endémique"),0,COUNTRY_INFO!Q29) -> 1 | H29: =IF(AND(INTRO!$E$37="Non endémique",INTRO!$E$41="Non endémique"),0,COUNTRY_INFO!S29) -> 1 | I29: =IF($G29=1,IVM!$G29,0) -> 135332 | J29: =IF($G29=0, " ", IF(COUNTRY_INFO!$H29=1, IF(COUNTRY_INFO!$L29=1, 0," ")," ")) ->  | L29: ALB | M29: =IF($L29="ALB", IF(INTRO!$E$39="Non endémique",IF($H29<>0,$D29*($H29-$G29),0),$D29*$H29), 0) -> 22602 | N29: 0 | P29: 22602 | Q29: =IF($L29="MBD", IF(INTRO!$E$39="Non endémique",IF($H29<>0,$D29*($H29-$G29),0),$D29*$H29),0) -> 0 | R29: 0 | T29: 0 | V29: 135332 | W29: 677 | Y29: 0 | Z29: 0 | AB29: 0 | AC29: 0
A30: =IF(AND(INTRO!$E$37="Non endémique",INTRO!$E$41="Non endémique")," ",IF(COUNTRY_INFO!A30=0," ",COUNTRY_INFO!A30)) -> CAR | B30: =IF(AND(INTRO!$E$37="Non endémique",INTRO!$E$41="Non endémique")," ",IF(COUNTRY_INFO!B30=0," ",COUNTRY_INFO!B30)) -> RS N° 4 | C30: =IF(AND(INTRO!$E$37="Non endémique",INTRO!$E$41="Non endémique")," ",IF(COUNTRY_INFO!C30=0," ",COUNTRY_INFO!C30)) -> BAMBARI | D30: =IF(AND(INTRO!$E$37="Non endémique",INTRO!$E$41="Non endémique"),0,IF(AND(OR(COUNTRY_INFO!$H30=0,COUNTRY_INFO!$H30=4,COUNTRY_INFO!$H30=99),OR(COUNTRY_INFO!$J30=0,COUNTRY_INFO!$J30=4)),0,COUNTRY_INFO!$E30)) -> 32029 | E30: =IF(AND(INTRO!$E$37="Non endémique",INTRO!$E$41="Non endémique"),0,IF(AND(OR(COUNTRY_INFO!$H30=0,COUNTRY_INFO!$H30=4,COUNTRY_INFO!$H30=99),OR(COUNTRY_INFO!$J30=0,COUNTRY_INFO!$J30=4)),0,COUNTRY_INFO!$F30)) -> 52647 | F30: 84676 | G30: =IF(AND(INTRO!$E$37="Non endémique",INTRO!$E$41="Non endémique"),0,COUNTRY_INFO!Q30) -> 1 | H30: =IF(AND(INTRO!$E$37="Non endémique",INTRO!$E$41="Non endémique"),0,COUNTRY_INFO!S30) -> 1 | I30: =IF($G30=1,IVM!$G30,0) -> 191779 | J30: =IF($G30=0, " ", IF(COUNTRY_INFO!$H30=1, IF(COUNTRY_INFO!$L30=1, 0," ")," ")) -> 0 | L30: ALB | M30: =IF($L30="ALB", IF(INTRO!$E$39="Non endémique",IF($H30<>0,$D30*($H30-$G30),0),$D30*$H30), 0) -> 32029 | N30: 0 | P30: 32029 | Q30: =IF($L30="MBD", IF(INTRO!$E$39="Non endémique",IF($H30<>0,$D30*($H30-$G30),0),$D30*$H30),0) -> 0 | R30: 0 | T30: 0 | V30: 191779 | W30: 959 | Y30: 0 | Z30: 0 | AB30: 0 | AC30: 0
A31: =IF(AND(INTRO!$E$37="Non endémique",INTRO!$E$41="Non endémique")," ",IF(COUNTRY_INFO!A31=0," ",COUNTRY_INFO!A31)) -> CAR | B31: =IF(AND(INTRO!$E$37="Non endémique",INTRO!$E$41="Non endémique")," ",IF(COUNTRY_INFO!B31=0," ",COUNTRY_INFO!B31)) -> RS N° 4 | C31: =IF(AND(INTRO!$E$37="Non endémique",INTRO!$E$41="Non endémique")," ",IF(COUNTRY_INFO!C31=0," ",COUNTRY_INFO!C31)) -> KOUANGO-GRIMARI | D31: =IF(AND(INTRO!$E$37="Non endémique",INTRO!$E$41="Non endémique"),0,IF(AND(OR(COUNTRY_INFO!$H31=0,COUNTRY_INFO!$H31=4,COUNTRY_INFO!$H31=99),OR(COUNTRY_INFO!$J31=0,COUNTRY_INFO!$J31=4)),0,COUNTRY_INFO!$E31)) -> 21055 | E31: =IF(AND(INTRO!$E$37="Non endémique",INTRO!$E$41="Non endémique"),0,IF(AND(OR(COUNTRY_INFO!$H31=0,COUNTRY_INFO!$H31=4,COUNTRY_INFO!$H31=99),OR(COUNTRY_INFO!$J31=0,COUNTRY_INFO!$J31=4)),0,COUNTRY_INFO!$F31)) -> 34609 | F31: 55664 | G31: =IF(AND(INTRO!$E$37="Non endémique",INTRO!$E$41="Non endémique"),0,COUNTRY_INFO!Q31) -> 1 | H31: =IF(AND(INTRO!$E$37="Non endémique",INTRO!$E$41="Non endémique"),0,COUNTRY_INFO!S31) -> 1 | I31: =IF($G31=1,IVM!$G31,0) -> 126070 | J31: =IF($G31=0, " ", IF(COUNTRY_INFO!$H31=1, IF(COUNTRY_INFO!$L31=1, 0," ")," ")) -> 0 | L31: ALB | M31: =IF($L31="ALB", IF(INTRO!$E$39="Non endémique",IF($H31<>0,$D31*($H31-$G31),0),$D31*$H31), 0) -> 21055 | N31: 0 | P31: 21055 | Q31: =IF($L31="MBD", IF(INTRO!$E$39="Non endémique",IF($H31<>0,$D31*($H31-$G31),0),$D31*$H31),0) -> 0 | R31: 0 | T31: 0 | V31: 126070 | W31: 631 | Y31: 0 | Z31: 0 | AB31: 0 | AC31: 0
A32: =IF(AND(INTRO!$E$37="Non endémique",INTRO!$E$41="Non endémique")," ",IF(COUNTRY_INFO!A32=0," ",COUNTRY_INFO!A32)) -> CAR | B32: =IF(AND(INTRO!$E$37="Non endémique",INTRO!$E$41="Non endémique")," ",IF(COUNTRY_INFO!B32=0," ",COUNTRY_INFO!B32)) -> RS N° 5 | C32: =IF(AND(INTRO!$E$37="Non endémique",INTRO!$E$41="Non endémique")," ",IF(COUNTRY_INFO!C32=0," ",COUNTRY_INFO!C32)) -> BAMINGUI-BANGORAN | D32: =IF(AND(INTRO!$E$37="Non endémique",INTRO!$E$41="Non endémique"),0,IF(AND(OR(COUNTRY_INFO!$H32=0,COUNTRY_INFO!$H32=4,COUNTRY_INFO!$H32=99),OR(COUNTRY_INFO!$J32=0,COUNTRY_INFO!$J32=4)),0,COUNTRY_INFO!$E32)) -> 8293 | E32: =IF(AND(INTRO!$E$37="Non endémique",INTRO!$E$41="Non endémique"),0,IF(AND(OR(COUNTRY_INFO!$H32=0,COUNTRY_INFO!$H32=4,COUNTRY_INFO!$H32=99),OR(COUNTRY_INFO!$J32=0,COUNTRY_INFO!$J32=4)),0,COUNTRY_INFO!$F32)) -> 13632 | F32: 21925 | G32: =IF(AND(INTRO!$E$37="Non endémique",INTRO!$E$41="Non endémique"),0,COUNTRY_INFO!Q32) -> 1 | H32: =IF(AND(INTRO!$E$37="Non endémique",INTRO!$E$41="Non endémique"),0,COUNTRY_INFO!S32) -> 1 | I32: =IF($G32=1,IVM!$G32,0) -> 49657 | J32: =IF($G32=0, " ", IF(COUNTRY_INFO!$H32=1, IF(COUNTRY_INFO!$L32=1, 0," ")," ")) ->  | L32: ALB | M32: =IF($L32="ALB", IF(INTRO!$E$39="Non endémique",IF($H32<>0,$D32*($H32-$G32),0),$D32*$H32), 0) -> 8293 | N32: 0 | P32: 8293 | Q32: =IF($L32="MBD", IF(INTRO!$E$39="Non endémique",IF($H32<>0,$D32*($H32-$G32),0),$D32*$H32),0) -> 0 | R32: 0 | T32: 0 | V32: 49657 | W32: 249 | Y32: 0 | Z32: 0 | AB32: 0 | AC32: 0
A33: =IF(AND(INTRO!$E$37="Non endémique",INTRO!$E$41="Non endémique")," ",IF(COUNTRY_INFO!A33=0," ",COUNTRY_INFO!A33)) -> CAR | B33: =IF(AND(INTRO!$E$37="Non endémique",INTRO!$E$41="Non endémique")," ",IF(COUNTRY_INFO!B33=0," ",COUNTRY_INFO!B33)) -> RS N° 5 | C33: =IF(AND(INTRO!$E$37="Non endémique",INTRO!$E$41="Non endémique")," ",IF(COUNTRY_INFO!C33=0," ",COUNTRY_INFO!C33)) -> HAUTE-KOTTO | D33: =IF(AND(INTRO!$E$37="Non endémique",INTRO!$E$41="Non endémique"),0,IF(AND(OR(COUNTRY_INFO!$H33=0,COUNTRY_INFO!$H33=4,COUNTRY_INFO!$H33=99),OR(COUNTRY_INFO!$J33=0,COUNTRY_INFO!$J33=4)),0,COUNTRY_INFO!$E33)) -> 17326 | E33: =IF(AND(INTRO!$E$37="Non endémique",INTRO!$E$41="Non endémique"),0,IF(AND(OR(COUNTRY_INFO!$H33=0,COUNTRY_INFO!$H33=4,COUNTRY_INFO!$H33=99),OR(COUNTRY_INFO!$J33=0,COUNTRY_INFO!$J33=4)),0,COUNTRY_INFO!$F33)) -> 28480 | F33: 45806 | G33: =IF(AND(INTRO!$E$37="Non endémique",INTRO!$E$41="Non endémique"),0,COUNTRY_INFO!Q33) -> 1 | H33: =IF(AND(INTRO!$E$37="Non endémique",INTRO!$E$41="Non endémique"),0,COUNTRY_INFO!S33) -> 0 | I33: =IF($G33=1,IVM!$G33,0) -> 103744 | J33: =IF($G33=0, " ", IF(COUNTRY_INFO!$H33=1, IF(COUNTRY_INFO!$L33=1, 0," ")," ")) ->  | M33: =IF($L33="ALB", IF(INTRO!$E$39="Non endémique",IF($H33<>0,$D33*($H33-$G33),0),$D33*$H33), 0) -> 0 | N33: 0 | P33: 0 | Q33: =IF($L33="MBD", IF(INTRO!$E$39="Non endémique",IF($H33<>0,$D33*($H33-$G33),0),$D33*$H33),0) -> 0 | R33: 0 | T33: 0 | V33: 103744 | W33: 519 | Y33: 0 | Z33: 0 | AB33: 0 | AC33: 0
A34: =IF(AND(INTRO!$E$37="Non endémique",INTRO!$E$41="Non endémique")," ",IF(COUNTRY_INFO!A34=0," ",COUNTRY_INFO!A34)) -> CAR | B34: =IF(AND(INTRO!$E$37="Non endémique",INTRO!$E$41="Non endémique")," ",IF(COUNTRY_INFO!B34=0," ",COUNTRY_INFO!B34)) -> RS N° 5 | C34: =IF(AND(INTRO!$E$37="Non endémique",INTRO!$E$41="Non endémique")," ",IF(COUNTRY_INFO!C34=0," ",COUNTRY_INFO!C34)) -> VAKAGA | D34: =IF(AND(INTRO!$E$37="Non endémique",INTRO!$E$41="Non endémique"),0,IF(AND(OR(COUNTRY_INFO!$H34=0,COUNTRY_INFO!$H34=4,COUNTRY_INFO!$H34=99),OR(COUNTRY_INFO!$J34=0,COUNTRY_INFO!$J34=4)),0,COUNTRY_INFO!$E34)) -> 10025 | E34: =IF(AND(INTRO!$E$37="Non endémique",INTRO!$E$41="Non endémique"),0,IF(AND(OR(COUNTRY_INFO!$H34=0,COUNTRY_INFO!$H34=4,COUNTRY_INFO!$H34=99),OR(COUNTRY_INFO!$J34=0,COUNTRY_INFO!$J34=4)),0,COUNTRY_INFO!$F34)) -> 16478 | F34: 26503 | G34: =IF(AND(INTRO!$E$37="Non endémique",INTRO!$E$41="Non endémique"),0,COUNTRY_INFO!Q34) -> 1 | H34: =IF(AND(INTRO!$E$37="Non endémique",INTRO!$E$41="Non endémique"),0,COUNTRY_INFO!S34) -> 0 | I34: =IF($G34=1,IVM!$G34,0) -> 60024 | J34: =IF($G34=0, " ", IF(COUNTRY_INFO!$H34=1, IF(COUNTRY_INFO!$L34=1, 0," ")," ")) ->  | M34: =IF($L34="ALB", IF(INTRO!$E$39="Non endémique",IF($H34<>0,$D34*($H34-$G34),0),$D34*$H34), 0) -> 0 | N34: 0 | P34: 0 | Q34: =IF($L34="MBD", IF(INTRO!$E$39="Non endémique",IF($H34<>0,$D34*($H34-$G34),0),$D34*$H34),0) -> 0 | R34: 0 | T34: 0 | V34: 60024 | W34: 301 | Y34: 0 | Z34: 0 | AB34: 0 | AC34: 0
A35: =IF(AND(INTRO!$E$37="Non endémique",INTRO!$E$41="Non endémique")," ",IF(COUNTRY_INFO!A35=0," ",COUNTRY_INFO!A35)) -> CAR | B35: =IF(AND(INTRO!$E$37="Non endémique",INTRO!$E$41="Non endémique")," ",IF(COUNTRY_INFO!B35=0," ",COUNTRY_INFO!B35)) -> RS N° 6 | C35: =IF(AND(INTRO!$E$37="Non endémique",INTRO!$E$41="Non endémique")," ",IF(COUNTRY_INFO!C35=0," ",COUNTRY_INFO!C35)) -> ALINDAO MINGALA | D35: =IF(AND(INTRO!$E$37="Non endémique",INTRO!$E$41="Non endémique"),0,IF(AND(OR(COUNTRY_INFO!$H35=0,COUNTRY_INFO!$H35=4,COUNTRY_INFO!$H35=99),OR(COUNTRY_INFO!$J35=0,COUNTRY_INFO!$J35=4)),0,COUNTRY_INFO!$E35)) -> 17632 | E35: =IF(AND(INTRO!$E$37="Non endémique",INTRO!$E$41="Non endémique"),0,IF(AND(OR(COUNTRY_INFO!$H35=0,COUNTRY_INFO!$H35=4,COUNTRY_INFO!$H35=99),OR(COUNTRY_INFO!$J35=0,COUNTRY_INFO!$J35=4)),0,COUNTRY_INFO!$F35)) -> 28983 | F35: 46615 | G35: =IF(AND(INTRO!$E$37="Non endémique",INTRO!$E$41="Non endémique"),0,COUNTRY_INFO!Q35) -> 1 | H35: =IF(AND(INTRO!$E$37="Non endémique",INTRO!$E$41="Non endémique"),0,COUNTRY_INFO!S35) -> 1 | I35: =IF($G35=1,IVM!$G35,0) -> 105576 | J35: =IF($G35=0, " ", IF(COUNTRY_INFO!$H35=1, IF(COUNTRY_INFO!$L35=1, 0," ")," ")) ->  | L35: ALB | M35: =IF($L35="ALB", IF(INTRO!$E$39="Non endémique",IF($H35<>0,$D35*($H35-$G35),0),$D35*$H35), 0) -> 17632 | N35: 0 | P35: 17632 | Q35: =IF($L35="MBD", IF(INTRO!$E$39="Non endémique",IF($H35<>0,$D35*($H35-$G35),0),$D35*$H35),0) -> 0 | R35: 0 | T35: 0 | V35: 105576 | W35: 528 | Y35: 0 | Z35: 0 | AB35: 0 | AC35: 0
A36: =IF(AND(INTRO!$E$37="Non endémique",INTRO!$E$41="Non endémique")," ",IF(COUNTRY_INFO!A36=0," ",COUNTRY_INFO!A36)) -> CAR | B36: =IF(AND(INTRO!$E$37="Non endémique",INTRO!$E$41="Non endémique")," ",IF(COUNTRY_INFO!B36=0," ",COUNTRY_INFO!B36)) -> RS N° 6 | C36: =IF(AND(INTRO!$E$37="Non endémique",INTRO!$E$41="Non endémique")," ",IF(COUNTRY_INFO!C36=0," ",COUNTRY_INFO!C36)) -> KEMBE SATEMA | D36: =IF(AND(INTRO!$E$37="Non endémique",INTRO!$E$41="Non endémique"),0,IF(AND(OR(COUNTRY_INFO!$H36=0,COUNTRY_INFO!$H36=4,COUNTRY_INFO!$H36=99),OR(COUNTRY_INFO!$J36=0,COUNTRY_INFO!$J36=4)),0,COUNTRY_INFO!$E36)) -> 11590 | E36: =IF(AND(INTRO!$E$37="Non endémique",INTRO!$E$41="Non endémique"),0,IF(AND(OR(COUNTRY_INFO!$H36=0,COUNTRY_INFO!$H36=4,COUNTRY_INFO!$H36=99),OR(COUNTRY_INFO!$J36=0,COUNTRY_INFO!$J36=4)),0,COUNTRY_INFO!$F36)) -> 19051 | F36: 30641 | G36: =IF(AND(INTRO!$E$37="Non endémique",INTRO!$E$41="Non endémique"),0,COUNTRY_INFO!Q36) -> 1 | H36: =IF(AND(INTRO!$E$37="Non endémique",INTRO!$E$41="Non endémique"),0,COUNTRY_INFO!S36) -> 2 | I36: =IF($G36=1,IVM!$G36,0) -> 69396 | J36: =IF($G36=0, " ", IF(COUNTRY_INFO!$H36=1, IF(COUNTRY_INFO!$L36=1, 0," ")," ")) ->  | L36: ALB | M36: =IF($L36="ALB", IF(INTRO!$E$39="Non endémique",IF($H36<>0,$D36*($H36-$G36),0),$D36*$H36), 0) -> 23180 | N36: 19051 | P36: 42231 | Q36: =IF($L36="MBD", IF(INTRO!$E$39="Non endémique",IF($H36<>0,$D36*($H36-$G36),0),$D36*$H36),0) -> 0 | R36: 0 | T36: 0 | V36: 69396 | W36: 347 | Y36: 19051 | Z36: 96 | AB36: 0 | AC36: 0
A37: =IF(AND(INTRO!$E$37="Non endémique",INTRO!$E$41="Non endémique")," ",IF(COUNTRY_INFO!A37=0," ",COUNTRY_INFO!A37)) -> CAR | B37: =IF(AND(INTRO!$E$37="Non endémique",INTRO!$E$41="Non endémique")," ",IF(COUNTRY_INFO!B37=0," ",COUNTRY_INFO!B37)) -> RS N° 6 | C37: =IF(AND(INTRO!$E$37="Non endémique",INTRO!$E$41="Non endémique")," ",IF(COUNTRY_INFO!C37=0," ",COUNTRY_INFO!C37)) -> MOBAYE-ZANGBA | D37: =IF(AND(INTRO!$E$37="Non endémique",INTRO!$E$41="Non endémique"),0,IF(AND(OR(COUNTRY_INFO!$H37=0,COUNTRY_INFO!$H37=4,COUNTRY_INFO!$H37=99),OR(COUNTRY_INFO!$J37=0,COUNTRY_INFO!$J37=4)),0,COUNTRY_INFO!$E37)) -> 18575 | E37: =IF(AND(INTRO!$E$37="Non endémique",INTRO!$E$41="Non endémique"),0,IF(AND(OR(COUNTRY_INFO!$H37=0,COUNTRY_INFO!$H37=4,COUNTRY_INFO!$H37=99),OR(COUNTRY_INFO!$J37=0,COUNTRY_INFO!$J37=4)),0,COUNTRY_INFO!$F37)) -> 30532 | F37: 49107 | G37: =IF(AND(INTRO!$E$37="Non endémique",INTRO!$E$41="Non endémique"),0,COUNTRY_INFO!Q37) -> 1 | H37: =IF(AND(INTRO!$E$37="Non endémique",INTRO!$E$41="Non endémique"),0,COUNTRY_INFO!S37) -> 1 | I37: =IF($G37=1,IVM!$G37,0) -> 111220 | J37: =IF($G37=0, " ", IF(COUNTRY_INFO!$H37=1, IF(COUNTRY_INFO!$L37=1, 0," ")," ")) ->  | L37: ALB | M37: =IF($L37="ALB", IF(INTRO!$E$39="Non endémique",IF($H37<>0,$D37*($H37-$G37),0),$D37*$H37), 0) -> 18575 | N37: 0 | P37: 18575 | Q37: =IF($L37="MBD", IF(INTRO!$E$39="Non endémique",IF($H37<>0,$D37*($H37-$G37),0),$D37*$H37),0) -> 0 | R37: 0 | T37: 0 | V37: 111220 | W37: 557 | Y37: 0 | Z37: 0 | AB37: 0 | AC37: 0
A38: =IF(AND(INTRO!$E$37="Non endémique",INTRO!$E$41="Non endémique")," ",IF(COUNTRY_INFO!A38=0," ",COUNTRY_INFO!A38)) -> CAR | B38: =IF(AND(INTRO!$E$37="Non endémique",INTRO!$E$41="Non endémique")," ",IF(COUNTRY_INFO!B38=0," ",COUNTRY_INFO!B38)) -> RS N° 6 | C38: =IF(AND(INTRO!$E$37="Non endémique",INTRO!$E$41="Non endémique")," ",IF(COUNTRY_INFO!C38=0," ",COUNTRY_INFO!C38)) -> BANGASSOU | D38: =IF(AND(INTRO!$E$37="Non endémique",INTRO!$E$41="Non endémique"),0,IF(AND(OR(COUNTRY_INFO!$H38=0,COUNTRY_INFO!$H38=4,COUNTRY_INFO!$H38=99),OR(COUNTRY_INFO!$J38=0,COUNTRY_INFO!$J38=4)),0,COUNTRY_INFO!$E38)) -> 19245 | E38: =IF(AND(INTRO!$E$37="Non endémique",INTRO!$E$41="Non endémique"),0,IF(AND(OR(COUNTRY_INFO!$H38=0,COUNTRY_INFO!$H38=4,COUNTRY_INFO!$H38=99),OR(COUNTRY_INFO!$J38=0,COUNTRY_INFO!$J38=4)),0,COUNTRY_INFO!$F38)) -> 31634 | F38: 50879 | G38: =IF(AND(INTRO!$E$37="Non endémique",INTRO!$E$41="Non endémique"),0,COUNTRY_INFO!Q38) -> 1 | H38: =IF(AND(INTRO!$E$37="Non endémique",INTRO!$E$41="Non endémique"),0,COUNTRY_INFO!S38) -> 0 | I38: =IF($G38=1,IVM!$G38,0) -> 115234 | J38: =IF($G38=0, " ", IF(COUNTRY_INFO!$H38=1, IF(COUNTRY_INFO!$L38=1, 0," ")," ")) -> 0 | M38: =IF($L38="ALB", IF(INTRO!$E$39="Non endémique",IF($H38<>0,$D38*($H38-$G38),0),$D38*$H38), 0) -> 0 | N38: 0 | P38: 0 | Q38: =IF($L38="MBD", IF(INTRO!$E$39="Non endémique",IF($H38<>0,$D38*($H38-$G38),0),$D38*$H38),0) -> 0 | R38: 0 | T38: 0 | V38: 115234 | W38: 577 | Y38: 0 | Z38: 0 | AB38: 0 | AC38: 0
A39: =IF(AND(INTRO!$E$37="Non endémique",INTRO!$E$41="Non endémique")," ",IF(COUNTRY_INFO!A39=0," ",COUNTRY_INFO!A39)) -> CAR | B39: =IF(AND(INTRO!$E$37="Non endémique",INTRO!$E$41="Non endémique")," ",IF(COUNTRY_INFO!B39=0," ",COUNTRY_INFO!B39)) -> RS N° 6 | C39: =IF(AND(INTRO!$E$37="Non endémique",INTRO!$E$41="Non endémique")," ",IF(COUNTRY_INFO!C39=0," ",COUNTRY_INFO!C39)) -> OUANGO-GAMBO | D39: =IF(AND(INTRO!$E$37="Non endémique",INTRO!$E$41="Non endémique"),0,IF(AND(OR(COUNTRY_INFO!$H39=0,COUNTRY_INFO!$H39=4,COUNTRY_INFO!$H39=99),OR(COUNTRY_INFO!$J39=0,COUNTRY_INFO!$J39=4)),0,COUNTRY_INFO!$E39)) -> 12218 | E39: =IF(AND(INTRO!$E$37="Non endémique",INTRO!$E$41="Non endémique"),0,IF(AND(OR(COUNTRY_INFO!$H39=0,COUNTRY_INFO!$H39=4,COUNTRY_INFO!$H39=99),OR(COUNTRY_INFO!$J39=0,COUNTRY_INFO!$J39=4)),0,COUNTRY_INFO!$F39)) -> 20083 | F39: 32301 | G39: =IF(AND(INTRO!$E$37="Non endémique",INTRO!$E$41="Non endémique"),0,COUNTRY_INFO!Q39) -> 1 | H39: =IF(AND(INTRO!$E$37="Non endémique",INTRO!$E$41="Non endémique"),0,COUNTRY_INFO!S39) -> 1 | I39: =IF($G39=1,IVM!$G39,0) -> 73157 | J39: =IF($G39=0, " ", IF(COUNTRY_INFO!$H39=1, IF(COUNTRY_INFO!$L39=1, 0," ")," ")) -> 0 | L39: ALB | M39: =IF($L39="ALB", IF(INTRO!$E$39="Non endémique",IF($H39<>0,$D39*($H39-$G39),0),$D39*$H39), 0) -> 12218 | N39: 0 | P39: 12218 | Q39: =IF($L39="MBD", IF(INTRO!$E$39="Non endémique",IF($H39<>0,$D39*($H39-$G39),0),$D39*$H39),0) -> 0 | R39: 0 | T39: 0 | V39: 73157 | W39: 366 | Y39: 0 | Z39: 0 | AB39: 0 | AC39: 0
A40: =IF(AND(INTRO!$E$37="Non endémique",INTRO!$E$41="Non endémique")," ",IF(COUNTRY_INFO!A40=0," ",COUNTRY_INFO!A40)) -> CAR | B40: =IF(AND(INTRO!$E$37="Non endémique",INTRO!$E$41="Non endémique")," ",IF(COUNTRY_INFO!B40=0," ",COUNTRY_INFO!B40)) -> RS N° 6 | C40: =IF(AND(INTRO!$E$37="Non endémique",INTRO!$E$41="Non endémique")," ",IF(COUNTRY_INFO!C40=0," ",COUNTRY_INFO!C40)) -> HAUT-MBOMOU | D40: =IF(AND(INTRO!$E$37="Non endémique",INTRO!$E$41="Non endémique"),0,IF(AND(OR(COUNTRY_INFO!$H40=0,COUNTRY_INFO!$H40=4,COUNTRY_INFO!$H40=99),OR(COUNTRY_INFO!$J40=0,COUNTRY_INFO!$J40=4)),0,COUNTRY_INFO!$E40)) -> 11050 | E40: =IF(AND(INTRO!$E$37="Non endémique",INTRO!$E$41="Non endémique"),0,IF(AND(OR(COUNTRY_INFO!$H40=0,COUNTRY_INFO!$H40=4,COUNTRY_INFO!$H40=99),OR(COUNTRY_INFO!$J40=0,COUNTRY_INFO!$J40=4)),0,COUNTRY_INFO!$F40)) -> 18164 | F40: 29214 | G40: =IF(AND(INTRO!$E$37="Non endémique",INTRO!$E$41="Non endémique"),0,COUNTRY_INFO!Q40) -> 1 | H40: =IF(AND(INTRO!$E$37="Non endémique",INTRO!$E$41="Non endémique"),0,COUNTRY_INFO!S40) -> 1 | I40: =IF($G40=1,IVM!$G40,0) -> 66166 | J40: =IF($G40=0, " ", IF(COUNTRY_INFO!$H40=1, IF(COUNTRY_INFO!$L40=1, 0," ")," ")) -> 0 | L40: ALB | M40: =IF($L40="ALB", IF(INTRO!$E$39="Non endémique",IF($H40<>0,$D40*($H40-$G40),0),$D40*$H40), 0) -> 11050 | N40: 0 | P40: 11050 | Q40: =IF($L40="MBD", IF(INTRO!$E$39="Non endémique",IF($H40<>0,$D40*($H40-$G40),0),$D40*$H40),0) -> 0 | R40: 0 | T40: 0 | V40: 66166 | W40: 331 | Y40: 0 | Z40: 0 | AB40: 0 | AC40: 0
A41: =IF(AND(INTRO!$E$37="Non endémique",INTRO!$E$41="Non endémique")," ",IF(COUNTRY_INFO!A41=0," ",COUNTRY_INFO!A41)) -> CAR | B41: =IF(AND(INTRO!$E$37="Non endémique",INTRO!$E$41="Non endémique")," ",IF(COUNTRY_INFO!B41=0," ",COUNTRY_INFO!B41)) -> RS N° 7 | C41: =IF(AND(INTRO!$E$37="Non endémique",INTRO!$E$41="Non endémique")," ",IF(COUNTRY_INFO!C41=0," ",COUNTRY_INFO!C41)) -> BANGUI I (lakouanga) | D41: =IF(AND(INTRO!$E$37="Non endémique",INTRO!$E$41="Non endémique"),0,IF(AND(OR(COUNTRY_INFO!$H41=0,COUNTRY_INFO!$H41=4,COUNTRY_INFO!$H41=99),OR(COUNTRY_INFO!$J41=0,COUNTRY_INFO!$J41=4)),0,COUNTRY_INFO!$E41)) -> 0 | E41: =IF(AND(INTRO!$E$37="Non endémique",INTRO!$E$41="Non endémique"),0,IF(AND(OR(COUNTRY_INFO!$H41=0,COUNTRY_INFO!$H41=4,COUNTRY_INFO!$H41=99),OR(COUNTRY_INFO!$J41=0,COUNTRY_INFO!$J41=4)),0,COUNTRY_INFO!$F41)) -> 0 | F41: 0 | G41: =IF(AND(INTRO!$E$37="Non endémique",INTRO!$E$41="Non endémique"),0,COUNTRY_INFO!Q41) -> 0 | H41: =IF(AND(INTRO!$E$37="Non endémique",INTRO!$E$41="Non endémique"),0,COUNTRY_INFO!S41) -> 0 | I41: =IF($G41=1,IVM!$G41,0) -> 0 | J41: =IF($G41=0, " ", IF(COUNTRY_INFO!$H41=1, IF(COUNTRY_INFO!$L41=1, 0," ")," ")) ->  | M41: =IF($L41="ALB", IF(INTRO!$E$39="Non endémique",IF($H41<>0,$D41*($H41-$G41),0),$D41*$H41), 0) -> 0 | N41: 0 | P41: 0 | Q41: =IF($L41="MBD", IF(INTRO!$E$39="Non endémique",IF($H41<>0,$D41*($H41-$G41),0),$D41*$H41),0) -> 0 | R41: 0 | T41: 0 | V41: 0 | W41: 0 | Y41: 0 | Z41: 0 | AB41: 0 | AC41: 0
A42: =IF(AND(INTRO!$E$37="Non endémique",INTRO!$E$41="Non endémique")," ",IF(COUNTRY_INFO!A42=0," ",COUNTRY_INFO!A42)) -> CAR | B42: =IF(AND(INTRO!$E$37="Non endémique",INTRO!$E$41="Non endémique")," ",IF(COUNTRY_INFO!B42=0," ",COUNTRY_INFO!B42)) -> RS N° 7 | C42: =IF(AND(INTRO!$E$37="Non endémique",INTRO!$E$41="Non endémique")," ",IF(COUNTRY_INFO!C42=0," ",COUNTRY_INFO!C42)) -> BANGUI II (Castors) | D42: =IF(AND(INTRO!$E$37="Non endémique",INTRO!$E$41="Non endémique"),0,IF(AND(OR(COUNTRY_INFO!$H42=0,COUNTRY_INFO!$H42=4,COUNTRY_INFO!$H42=99),OR(COUNTRY_INFO!$J42=0,COUNTRY_INFO!$J42=4)),0,COUNTRY_INFO!$E42)) -> 0 | E42: =IF(AND(INTRO!$E$37="Non endémique",INTRO!$E$41="Non endémique"),0,IF(AND(OR(COUNTRY_INFO!$H42=0,COUNTRY_INFO!$H42=4,COUNTRY_INFO!$H42=99),OR(COUNTRY_INFO!$J42=0,COUNTRY_INFO!$J42=4)),0,COUNTRY_INFO!$F42)) -> 0 | F42: 0 | G42: =IF(AND(INTRO!$E$37="Non endémique",INTRO!$E$41="Non endémique"),0,COUNTRY_INFO!Q42) -> 0 | H42: =IF(AND(INTRO!$E$37="Non endémique",INTRO!$E$41="Non endémique"),0,COUNTRY_INFO!S42) -> 0 | I42: =IF($G42=1,IVM!$G42,0) -> 0 | J42: =IF($G42=0, " ", IF(COUNTRY_INFO!$H42=1, IF(COUNTRY_INFO!$L42=1, 0," ")," ")) ->  | M42: =IF($L42="ALB", IF(INTRO!$E$39="Non endémique",IF($H42<>0,$D42*($H42-$G42),0),$D42*$H42), 0) -> 0 | N42: 0 | P42: 0 | Q42: =IF($L42="MBD", IF(INTRO!$E$39="Non endémique",IF($H42<>0,$D42*($H42-$G42),0),$D42*$H42),0) -> 0 | R42: 0 | T42: 0 | V42: 0 | W42: 0 | Y42: 0 | Z42: 0 | AB42: 0 | AC42: 0
A43: =IF(AND(INTRO!$E$37="Non endémique",INTRO!$E$41="Non endémique")," ",IF(COUNTRY_INFO!A43=0," ",COUNTRY_INFO!A43)) -> CAR | B43: =IF(AND(INTRO!$E$37="Non endémique",INTRO!$E$41="Non endémique")," ",IF(COUNTRY_INFO!B43=0," ",COUNTRY_INFO!B43)) -> RS N° 7 | C43: =IF(AND(INTRO!$E$37="Non endémique",INTRO!$E$41="Non endémique")," ",IF(COUNTRY_INFO!C43=0," ",COUNTRY_INFO!C43)) -> BANGUI III (Bédé-Combattant) | D43: =IF(AND(INTRO!$E$37="Non endémique",INTRO!$E$41="Non endémique"),0,IF(AND(OR(COUNTRY_INFO!$H43=0,COUNTRY_INFO!$H43=4,COUNTRY_INFO!$H43=99),OR(COUNTRY_INFO!$J43=0,COUNTRY_INFO!$J43=4)),0,COUNTRY_INFO!$E43)) -> 0 | E43: =IF(AND(INTRO!$E$37="Non endémique",INTRO!$E$41="Non endémique"),0,IF(AND(OR(COUNTRY_INFO!$H43=0,COUNTRY_INFO!$H43=4,COUNTRY_INFO!$H43=99),OR(COUNTRY_INFO!$J43=0,COUNTRY_INFO!$J43=4)),0,COUNTRY_INFO!$F43)) -> 0 | F43: 0 | G43: =IF(AND(INTRO!$E$37="Non endémique",INTRO!$E$41="Non endémique"),0,COUNTRY_INFO!Q43) -> 0 | H43: =IF(AND(INTRO!$E$37="Non endémique",INTRO!$E$41="Non endémique"),0,COUNTRY_INFO!S43) -> 0 | I43: =IF($G43=1,IVM!$G43,0) -> 0 | J43: =IF($G43=0, " ", IF(COUNTRY_INFO!$H43=1, IF(COUNTRY_INFO!$L43=1, 0," ")," ")) ->  | M43: =IF($L43="ALB", IF(INTRO!$E$39="Non endémique",IF($H43<>0,$D43*($H43-$G43),0),$D43*$H43), 0) -> 0 | N43: 0 | P43: 0 | Q43: =IF($L43="MBD", IF(INTRO!$E$39="Non endémique",IF($H43<>0,$D43*($H43-$G43),0),$D43*$H43),0) -> 0 | R43: 0 | T43: 0 | V43: 0 | W43: 0 | Y43: 0 | Z43: 0 | AB43: 0 | AC43: 0

Sheet PZQ
A1: Praziquantel (PZQ)
A2: Structure administrative, population ciblée par groupe d'âge, plan de traitement et information sur les comprimés
A4: TOTAL | D4: =SUM(D$9:D$1000) -> 488748.34 | E4: =SUM(E$9:E$1000) -> 756570.8 | F4: =SUM(F$9:F$1000) -> 1245319.14 | I4: =SUM(I$9:I$1000) -> 435470.5 | J4: 543052 | K4: 661122 | L4: 1204174 | M4: 1357630 | N4: 1983366 | O4: 1357630 | P4: 0 | Q4: 1357630 | R4: 1368
A6: Structure administrative du pays | D6: Population nécessitant un traitement avec PZQ | G6: Plan de traitement | I6: Population cible | M6: Praziquantel (PZQ)
A7: Pays | B7: Région/Département | C7: District | D7: EAS | E7: Adultes | F7: Total | G7: SCH | H7: Tous EAS ciblés ? | I7: EAS | J7: EAS à un niveau inférieur | K7: Adultes | L7: Total | M7: EAS | N7: Adultes | O7: Total requis pour EAS | P7: Reste en stock | Q7: Comprimés devant être fournis | R7: Flacons (600mg) 1000 comprimés
A9: =IF(INTRO!$E$43="Non endémique"," ", IF(COUNTRY_INFO!A9=0," ",COUNTRY_INFO!A9)) -> CAR | B9: =IF(INTRO!$E$43="Non endémique"," ", IF(COUNTRY_INFO!B9=0," ",COUNTRY_INFO!B9)) -> RS N° 1 | C9: =IF(INTRO!$E$43="Non endémique"," ", IF(COUNTRY_INFO!C9=0," ",COUNTRY_INFO!C9)) -> BEGOUA | D9: =IF(INTRO!$E$43="Non endémique", 0, IF(COUNTRY_INFO!$K9>0, IF(COUNTRY_INFO!$K9=4, 0, IF(COUNTRY_INFO!$K9=1, COUNTRY_INFO!$F9*0.33, IF(COUNTRY_INFO!$K9=2, COUNTRY_INFO!$F9*0.5, COUNTRY_INFO!$F9))), 0)) -> 12896.4 | E9: =IF(INTRO!$E$43="Non endémique", 0, IF(COUNTRY_INFO!$K9>0, IF(COUNTRY_INFO!$K9=4, 0, IF(COUNTRY_INFO!$K9=1, 0, IF(COUNTRY_INFO!$K9=2, COUNTRY_INFO!$G9*0.2, COUNTRY_INFO!$G9))), 0)) -> 0 | F9: =SUM(D9:E9) -> 12896.4 | G9: =IF(INTRO!$E$43="Non endémique", "Non requis", COUNTRY_INFO!T9) -> 1 | I9: =IF($D9=0,0,IF(AND($G9>0,$H9<>"Oui"),D9,IF(AND($G9>0,$H9="Oui"),COUNTRY_INFO!$F9,0))) -> 12896.4 | J9: 29597 | K9: 0 | L9: =IF($J9=0,SUM(I9,K9),SUM(J9,K9)) -> 29597 | M9: =IF($J9=0,$I9*2.5,$J9*2.5) -> 73992.5 | N9: =$K9*3 -> 0 | O9: =M9 -> 73992.5 | Q9: =IF($O9>$P9,O9-P9,0) -> 73992.5 | R9: =ROUNDUP($O9/1000,0) -> 74
A10: =IF(INTRO!$E$43="Non endémique"," ", IF(COUNTRY_INFO!A10=0," ",COUNTRY_INFO!A10)) -> CAR | B10: =IF(INTRO!$E$43="Non endémique"," ", IF(COUNTRY_INFO!B10=0," ",COUNTRY_INFO!B10)) -> RS N° 1 | C10: =IF(INTRO!$E$43="Non endémique"," ", IF(COUNTRY_INFO!C10=0," ",COUNTRY_INFO!C10)) -> BIMBO | D10: =IF(INTRO!$E$43="Non endémique", 0, IF(COUNTRY_INFO!$K10>0, IF(COUNTRY_INFO!$K10=4, 0, IF(COUNTRY_INFO!$K10=1, COUNTRY_INFO!$F10*0.33, IF(COUNTRY_INFO!$K10=2, COUNTRY_INFO!$F10*0.5, COUNTRY_INFO!$F10))), 0)) -> 13314.51 | E10: =IF(INTRO!$E$43="Non endémique", 0, IF(COUNTRY_INFO!$K10>0, IF(COUNTRY_INFO!$K10=4, 0, IF(COUNTRY_INFO!$K10=1, 0, IF(COUNTRY_INFO!$K10=2, COUNTRY_INFO!$G10*0.2, COUNTRY_INFO!$G10))), 0)) -> 0 | F10: 13314.51 | G10: =IF(INTRO!$E$43="Non endémique", "Non requis", COUNTRY_INFO!T10) -> 0 | I10: =IF($D10=0,0,IF(AND($G10>0,$H10<>"Oui"),D10,IF(AND($G10>0,$H10="Oui"),COUNTRY_INFO!$F10,0))) -> 0 | J10: 0 | K10: 0 | L10: 0 | M10: 0 | N10: 0 | O10: 0 | Q10: 0 | R10: 0
A11: =IF(INTRO!$E$43="Non endémique"," ", IF(COUNTRY_INFO!A11=0," ",COUNTRY_INFO!A11)) -> CAR | B11: =IF(INTRO!$E$43="Non endémique"," ", IF(COUNTRY_INFO!B11=0," ",COUNTRY_INFO!B11)) -> RS N° 1 | C11: =IF(INTRO!$E$43="Non endémique"," ", IF(COUNTRY_INFO!C11=0," ",COUNTRY_INFO!C11)) -> BOSSEMBELE | D11: =IF(INTRO!$E$43="Non endémique", 0, IF(COUNTRY_INFO!$K11>0, IF(COUNTRY_INFO!$K11=4, 0, IF(COUNTRY_INFO!$K11=1, COUNTRY_INFO!$F11*0.33, IF(COUNTRY_INFO!$K11=2, COUNTRY_INFO!$F11*0.5, COUNTRY_INFO!$F11))), 0)) -> 10909.8 | E11: =IF(INTRO!$E$43="Non endémique", 0, IF(COUNTRY_INFO!$K11>0, IF(COUNTRY_INFO!$K11=4, 0, IF(COUNTRY_INFO!$K11=1, 0, IF(COUNTRY_INFO!$K11=2, COUNTRY_INFO!$G11*0.2, COUNTRY_INFO!$G11))), 0)) -> 0 | F11: 10909.8 | G11: =IF(INTRO!$E$43="Non endémique", "Non requis", COUNTRY_INFO!T11) -> 1 | I11: =IF($D11=0,0,IF(AND($G11>0,$H11<>"Oui"),D11,IF(AND($G11>0,$H11="Oui"),COUNTRY_INFO!$F11,0))) -> 10909.8 | J11: 24687 | K11: 0 | L11: 24687 | M11: 61717.5 | N11: 0 | O11: 61717.5 | Q11: 61717.5 | R11: 62
A12: =IF(INTRO!$E$43="Non endémique"," ", IF(COUNTRY_INFO!A12=0," ",COUNTRY_INFO!A12)) -> CAR | B12: =IF(INTRO!$E$43="Non endémique"," ", IF(COUNTRY_INFO!B12=0," ",COUNTRY_INFO!B12)) -> RS N° 1 | C12: =IF(INTRO!$E$43="Non endémique"," ", IF(COUNTRY_INFO!C12=0," ",COUNTRY_INFO!C12)) -> BODA | D12: =IF(INTRO!$E$43="Non endémique", 0, IF(COUNTRY_INFO!$K12>0, IF(COUNTRY_INFO!$K12=4, 0, IF(COUNTRY_INFO!$K12=1, COUNTRY_INFO!$F12*0.33, IF(COUNTRY_INFO!$K12=2, COUNTRY_INFO!$F12*0.5, COUNTRY_INFO!$F12))), 0)) -> 9079.95 | E12: =IF(INTRO!$E$43="Non endémique", 0, IF(COUNTRY_INFO!$K12>0, IF(COUNTRY_INFO!$K12=4, 0, IF(COUNTRY_INFO!$K12=1, 0, IF(COUNTRY_INFO!$K12=2, COUNTRY_INFO!$G12*0.2, COUNTRY_INFO!$G12))), 0)) -> 0 | F12: 9079.95 | G12: =IF(INTRO!$E$43="Non endémique", "Non requis", COUNTRY_INFO!T12) -> 1 | I12: =IF($D12=0,0,IF(AND($G12>0,$H12<>"Oui"),D12,IF(AND($G12>0,$H12="Oui"),COUNTRY_INFO!$F12,0))) -> 9079.95 | J12: 13004 | K12: 0 | L12: 13004 | M12: 32510 | N12: 0 | O12: 32510 | Q12: 32510 | R12: 33
A13: =IF(INTRO!$E$43="Non endémique"," ", IF(COUNTRY_INFO!A13=0," ",COUNTRY_INFO!A13)) -> CAR | B13: =IF(INTRO!$E$43="Non endémique"," ", IF(COUNTRY_INFO!B13=0," ",COUNTRY_INFO!B13)) -> RS N° 1 | C13: =IF(INTRO!$E$43="Non endémique"," ", IF(COUNTRY_INFO!C13=0," ",COUNTRY_INFO!C13)) -> MBAIKI | D13: =IF(INTRO!$E$43="Non endémique", 0, IF(COUNTRY_INFO!$K13>0, IF(COUNTRY_INFO!$K13=4, 0, IF(COUNTRY_INFO!$K13=1, COUNTRY_INFO!$F13*0.33, IF(COUNTRY_INFO!$K13=2, COUNTRY_INFO!$F13*0.5, COUNTRY_INFO!$F13))), 0)) -> 16609.89 | E13: =IF(INTRO!$E$43="Non endémique", 0, IF(COUNTRY_INFO!$K13>0, IF(COUNTRY_INFO!$K13=4, 0, IF(COUNTRY_INFO!$K13=1, 0, IF(COUNTRY_INFO!$K13=2, COUNTRY_INFO!$G13*0.2, COUNTRY_INFO!$G13))), 0)) -> 0 | F13: 16609.89 | G13: =IF(INTRO!$E$43="Non endémique", "Non requis", COUNTRY_INFO!T13) -> 0 | I13: =IF($D13=0,0,IF(AND($G13>0,$H13<>"Oui"),D13,IF(AND($G13>0,$H13="Oui"),COUNTRY_INFO!$F13,0))) -> 0 | J13: 0 | K13: 0 | L13: 0 | M13: 0 | N13: 0 | O13: 0 | Q13: 0 | R13: 0
A14: =IF(INTRO!$E$43="Non endémique"," ", IF(COUNTRY_INFO!A14=0," ",COUNTRY_INFO!A14)) -> CAR | B14: =IF(INTRO!$E$43="Non endémique"," ", IF(COUNTRY_INFO!B14=0," ",COUNTRY_INFO!B14)) -> RS N° 2 | C14: =IF(INTRO!$E$43="Non endémique"," ", IF(COUNTRY_INFO!C14=0," ",COUNTRY_INFO!C14)) -> BERBERATI | D14: =IF(INTRO!$E$43="Non endémique", 0, IF(COUNTRY_INFO!$K14>0, IF(COUNTRY_INFO!$K14=4, 0, IF(COUNTRY_INFO!$K14=1, COUNTRY_INFO!$F14*0.33, IF(COUNTRY_INFO!$K14=2, COUNTRY_INFO!$F14*0.5, COUNTRY_INFO!$F14))), 0)) -> 0 | E14: =IF(INTRO!$E$43="Non endémique", 0, IF(COUNTRY_INFO!$K14>0, IF(COUNTRY_INFO!$K14=4, 0, IF(COUNTRY_INFO!$K14=1, 0, IF(COUNTRY_INFO!$K14=2, COUNTRY_INFO!$G14*0.2, COUNTRY_INFO!$G14))), 0)) -> 0 | F14: 0 | G14: =IF(INTRO!$E$43="Non endémique", "Non requis", COUNTRY_INFO!T14) -> 0 | I14: =IF($D14=0,0,IF(AND($G14>0,$H14<>"Oui"),D14,IF(AND($G14>0,$H14="Oui"),COUNTRY_INFO!$F14,0))) -> 0 | J14: 0 | K14: 0 | L14: 0 | M14: 0 | N14: 0 | O14: 0 | Q14: 0 | R14: 0
A15: =IF(INTRO!$E$43="Non endémique"," ", IF(COUNTRY_INFO!A15=0," ",COUNTRY_INFO!A15)) -> CAR | B15: =IF(INTRO!$E$43="Non endémique"," ", IF(COUNTRY_INFO!B15=0," ",COUNTRY_INFO!B15)) -> RS N° 2 | C15: =IF(INTRO!$E$43="Non endémique"," ", IF(COUNTRY_INFO!C15=0," ",COUNTRY_INFO!C15)) -> CARNOT-GADZI | D15: =IF(INTRO!$E$43="Non endémique", 0, IF(COUNTRY_INFO!$K15>0, IF(COUNTRY_INFO!$K15=4, 0, IF(COUNTRY_INFO!$K15=1, COUNTRY_INFO!$F15*0.33, IF(COUNTRY_INFO!$K15=2, COUNTRY_INFO!$F15*0.5, COUNTRY_INFO!$F15))), 0)) -> 15279.99 | E15: =IF(INTRO!$E$43="Non endémique", 0, IF(COUNTRY_INFO!$K15>0, IF(COUNTRY_INFO!$K15=4, 0, IF(COUNTRY_INFO!$K15=1, 0, IF(COUNTRY_INFO!$K15=2, COUNTRY_INFO!$G15*0.2, COUNTRY_INFO!$G15))), 0)) -> 0 | F15: 15279.99 | G15: =IF(INTRO!$E$43="Non endémique", "Non requis", COUNTRY_INFO!T15) -> 1 | I15: =IF($D15=0,0,IF(AND($G15>0,$H15<>"Oui"),D15,IF(AND($G15>0,$H15="Oui"),COUNTRY_INFO!$F15,0))) -> 15279.99 | J15: 17506 | K15: 0 | L15: 17506 | M15: 43765 | N15: 0 | O15: 43765 | Q15: 43765 | R15: 44
A16: =IF(INTRO!$E$43="Non endémique"," ", IF(COUNTRY_INFO!A16=0," ",COUNTRY_INFO!A16)) -> CAR | B16: =IF(INTRO!$E$43="Non endémique"," ", IF(COUNTRY_INFO!B16=0," ",COUNTRY_INFO!B16)) -> RS N° 2 | C16: =IF(INTRO!$E$43="Non endémique"," ", IF(COUNTRY_INFO!C16=0," ",COUNTRY_INFO!C16)) -> GAMBOULA | D16: =IF(INTRO!$E$43="Non endémique", 0, IF(COUNTRY_INFO!$K16>0, IF(COUNTRY_INFO!$K16=4, 0, IF(COUNTRY_INFO!$K16=1, COUNTRY_INFO!$F16*0.33, IF(COUNTRY_INFO!$K16=2, COUNTRY_INFO!$F16*0.5, COUNTRY_INFO!$F16))), 0)) -> 0 | E16: =IF(INTRO!$E$43="Non endémique", 0, IF(COUNTRY_INFO!$K16>0, IF(COUNTRY_INFO!$K16=4, 0, IF(COUNTRY_INFO!$K16=1, 0, IF(COUNTRY_INFO!$K16=2, COUNTRY_INFO!$G16*0.2, COUNTRY_INFO!$G16))), 0)) -> 0 | F16: 0 | G16: =IF(INTRO!$E$43="Non endémique", "Non requis", COUNTRY_INFO!T16) -> 0 | I16: =IF($D16=0,0,IF(AND($G16>0,$H16<>"Oui"),D16,IF(AND($G16>0,$H16="Oui"),COUNTRY_INFO!$F16,0))) -> 0 | J16: 0 | K16: 0 | L16: 0 | M16: 0 | N16: 0 | O16: 0 | Q16: 0 | R16: 0
A17: =IF(INTRO!$E$43="Non endémique"," ", IF(COUNTRY_INFO!A17=0," ",COUNTRY_INFO!A17)) -> CAR | B17: =IF(INTRO!$E$43="Non endémique"," ", IF(COUNTRY_INFO!B17=0," ",COUNTRY_INFO!B17)) -> RS N° 2 | C17: =IF(INTRO!$E$43="Non endémique"," ", IF(COUNTRY_INFO!C17=0," ",COUNTRY_INFO!C17)) -> BABOUA-ABBA | D17: =IF(INTRO!$E$43="Non endémique", 0, IF(COUNTRY_INFO!$K17>0, IF(COUNTRY_INFO!$K17=4, 0, IF(COUNTRY_INFO!$K17=1, COUNTRY_INFO!$F17*0.33, IF(COUNTRY_INFO!$K17=2, COUNTRY_INFO!$F17*0.5, COUNTRY_INFO!$F17))), 0)) -> 11942 | E17: =IF(INTRO!$E$43="Non endémique", 0, IF(COUNTRY_INFO!$K17>0, IF(COUNTRY_INFO!$K17=4, 0, IF(COUNTRY_INFO!$K17=1, 0, IF(COUNTRY_INFO!$K17=2, COUNTRY_INFO!$G17*0.2, COUNTRY_INFO!$G17))), 0)) -> 12624 | F17: 24566 | G17: =IF(INTRO!$E$43="Non endémique", "Non requis", COUNTRY_INFO!T17) -> 1 | I17: =IF($D17=0,0,IF(AND($G17>0,$H17<>"Oui"),D17,IF(AND($G17>0,$H17="Oui"),COUNTRY_INFO!$F17,0))) -> 11942 | J17: 23719 | K17: 12537 | L17: 36256 | M17: 59297.5 | N17: 37611 | O17: 59297.5 | Q17: 59297.5 | R17: 60
A18: =IF(INTRO!$E$43="Non endémique"," ", IF(COUNTRY_INFO!A18=0," ",COUNTRY_INFO!A18)) -> CAR | B18: =IF(INTRO!$E$43="Non endémique"," ", IF(COUNTRY_INFO!B18=0," ",COUNTRY_INFO!B18)) -> RS N° 2 | C18: =IF(INTRO!$E$43="Non endémique"," ", IF(COUNTRY_INFO!C18=0," ",COUNTRY_INFO!C18)) -> BOUAR-BAORO | D18: =IF(INTRO!$E$43="Non endémique", 0, IF(COUNTRY_INFO!$K18>0, IF(COUNTRY_INFO!$K18=4, 0, IF(COUNTRY_INFO!$K18=1, COUNTRY_INFO!$F18*0.33, IF(COUNTRY_INFO!$K18=2, COUNTRY_INFO!$F18*0.5, COUNTRY_INFO!$F18))), 0)) -> 24899 | E18: =IF(INTRO!$E$43="Non endémique", 0, IF(COUNTRY_INFO!$K18>0, IF(COUNTRY_INFO!$K18=4, 0, IF(COUNTRY_INFO!$K18=1, 0, IF(COUNTRY_INFO!$K18=2, COUNTRY_INFO!$G18*0.2, COUNTRY_INFO!$G18))), 0)) -> 26320.6 | F18: 51219.6 | G18: =IF(INTRO!$E$43="Non endémique", "Non requis", COUNTRY_INFO!T18) -> 1 | I18: =IF($D18=0,0,IF(AND($G18>0,$H18<>"Oui"),D18,IF(AND($G18>0,$H18="Oui"),COUNTRY_INFO!$F18,0))) -> 24899 | J18: 49452 | K18: 26139 | L18: 75591 | M18: 123630 | N18: 78417 | O18: 123630 | Q18: 123630 | R18: 124
A19: =IF(INTRO!$E$43="Non endémique"," ", IF(COUNTRY_INFO!A19=0," ",COUNTRY_INFO!A19)) -> CAR | B19: =IF(INTRO!$E$43="Non endémique"," ", IF(COUNTRY_INFO!B19=0," ",COUNTRY_INFO!B19)) -> RS N° 2 | C19: =IF(INTRO!$E$43="Non endémique"," ", IF(COUNTRY_INFO!C19=0," ",COUNTRY_INFO!C19)) -> SANGHA-MBAERE | D19: =IF(INTRO!$E$43="Non endémique", 0, IF(COUNTRY_INFO!$K19>0, IF(COUNTRY_INFO!$K19=4, 0, IF(COUNTRY_INFO!$K19=1, COUNTRY_INFO!$F19*0.33, IF(COUNTRY_INFO!$K19=2, COUNTRY_INFO!$F19*0.5, COUNTRY_INFO!$F19))), 0)) -> 0 | E19: =IF(INTRO!$E$43="Non endémique", 0, IF(COUNTRY_INFO!$K19>0, IF(COUNTRY_INFO!$K19=4, 0, IF(COUNTRY_INFO!$K19=1, 0, IF(COUNTRY_INFO!$K19=2, COUNTRY_INFO!$G19*0.2, COUNTRY_INFO!$G19))), 0)) -> 0 | F19: 0 | G19: =IF(INTRO!$E$43="Non endémique", "Non requis", COUNTRY_INFO!T19) -> 0 | I19: =IF($D19=0,0,IF(AND($G19>0,$H19<>"Oui"),D19,IF(AND($G19>0,$H19="Oui"),COUNTRY_INFO!$F19,0))) -> 0 | J19: 0 | K19: 0 | L19: 0 | M19: 0 | N19: 0 | O19: 0 | Q19: 0 | R19: 0
A20: =IF(INTRO!$E$43="Non endémique"," ", IF(COUNTRY_INFO!A20=0," ",COUNTRY_INFO!A20)) -> CAR | B20: =IF(INTRO!$E$43="Non endémique"," ", IF(COUNTRY_INFO!B20=0," ",COUNTRY_INFO!B20)) -> RS N° 3 | C20: =IF(INTRO!$E$43="Non endémique"," ", IF(COUNTRY_INFO!C20=0," ",COUNTRY_INFO!C20)) -> BATANGAFO | D20: =IF(INTRO!$E$43="Non endémique", 0, IF(COUNTRY_INFO!$K20>0, IF(COUNTRY_INFO!$K20=4, 0, IF(COUNTRY_INFO!$K20=1, COUNTRY_INFO!$F20*0.33, IF(COUNTRY_INFO!$K20=2, COUNTRY_INFO!$F20*0.5, COUNTRY_INFO!$F20))), 0)) -> 0 | E20: =IF(INTRO!$E$43="Non endémique", 0, IF(COUNTRY_INFO!$K20>0, IF(COUNTRY_INFO!$K20=4, 0, IF(COUNTRY_INFO!$K20=1, 0, IF(COUNTRY_INFO!$K20=2, COUNTRY_INFO!$G20*0.2, COUNTRY_INFO!$G20))), 0)) -> 0 | F20: 0 | G20: =IF(INTRO!$E$43="Non endémique", "Non requis", COUNTRY_INFO!T20) -> 0 | I20: =IF($D20=0,0,IF(AND($G20>0,$H20<>"Oui"),D20,IF(AND($G20>0,$H20="Oui"),COUNTRY_INFO!$F20,0))) -> 0 | J20: 0 | K20: 0 | L20: 0 | M20: 0 | N20: 0 | O20: 0 | Q20: 0 | R20: 0
A21: =IF(INTRO!$E$43="Non endémique"," ", IF(COUNTRY_INFO!A21=0," ",COUNTRY_INFO!A21)) -> CAR | B21: =IF(INTRO!$E$43="Non endémique"," ", IF(COUNTRY_INFO!B21=0," ",COUNTRY_INFO!B21)) -> RS N° 3 | C21: =IF(INTRO!$E$43="Non endémique"," ", IF(COUNTRY_INFO!C21=0," ",COUNTRY_INFO!C21)) -> BOUCA | D21: =IF(INTRO!$E$43="Non endémique", 0, IF(COUNTRY_INFO!$K21>0, IF(COUNTRY_INFO!$K21=4, 0, IF(COUNTRY_INFO!$K21=1, COUNTRY_INFO!$F21*0.33, IF(COUNTRY_INFO!$K21=2, COUNTRY_INFO!$F21*0.5, COUNTRY_INFO!$F21))), 0)) -> 17649 | E21: =IF(INTRO!$E$43="Non endémique", 0, IF(COUNTRY_INFO!$K21>0, IF(COUNTRY_INFO!$K21=4, 0, IF(COUNTRY_INFO!$K21=1, 0, IF(COUNTRY_INFO!$K21=2, COUNTRY_INFO!$G21*0.2, COUNTRY_INFO!$G21))), 0)) -> 46641 | F21: 64290 | G21: =IF(INTRO!$E$43="Non endémique", "Non requis", COUNTRY_INFO!T21) -> 1 | I21: =IF($D21=0,0,IF(AND($G21>0,$H21<>"Oui"),D21,IF(AND($G21>0,$H21="Oui"),COUNTRY_INFO!$F21,0))) -> 17649 | J21: 17526 | K21: 46319 | L21: 63845 | M21: 43815 | N21: 138957 | O21: 43815 | Q21: 43815 | R21: 44
A22: =IF(INTRO!$E$43="Non endémique"," ", IF(COUNTRY_INFO!A22=0," ",COUNTRY_INFO!A22)) -> CAR | B22: =IF(INTRO!$E$43="Non endémique"," ", IF(COUNTRY_INFO!B22=0," ",COUNTRY_INFO!B22)) -> RS N° 3 | C22: =IF(INTRO!$E$43="Non endémique"," ", IF(COUNTRY_INFO!C22=0," ",COUNTRY_INFO!C22)) -> BOSSANGOA | D22: =IF(INTRO!$E$43="Non endémique", 0, IF(COUNTRY_INFO!$K22>0, IF(COUNTRY_INFO!$K22=4, 0, IF(COUNTRY_INFO!$K22=1, COUNTRY_INFO!$F22*0.33, IF(COUNTRY_INFO!$K22=2, COUNTRY_INFO!$F22*0.5, COUNTRY_INFO!$F22))), 0)) -> 39543 | E22: =IF(INTRO!$E$43="Non endémique", 0, IF(COUNTRY_INFO!$K22>0, IF(COUNTRY_INFO!$K22=4, 0, IF(COUNTRY_INFO!$K22=1, 0, IF(COUNTRY_INFO!$K22=2, COUNTRY_INFO!$G22*0.2, COUNTRY_INFO!$G22))), 0)) -> 104502 | F22: 144045 | G22: =IF(INTRO!$E$43="Non endémique", "Non requis", COUNTRY_INFO!T22) -> 1 | I22: =IF($D22=0,0,IF(AND($G22>0,$H22<>"Oui"),D22,IF(AND($G22>0,$H22="Oui"),COUNTRY_INFO!$F22,0))) -> 39543 | J22: 39269 | K22: 103777 | L22: 143046 | M22: 98172.5 | N22: 311331 | O22: 98172.5 | Q22: 98172.5 | R22: 99
A23: =IF(INTRO!$E$43="Non endémique"," ", IF(COUNTRY_INFO!A23=0," ",COUNTRY_INFO!A23)) -> CAR | B23: =IF(INTRO!$E$43="Non endémique"," ", IF(COUNTRY_INFO!B23=0," ",COUNTRY_INFO!B23)) -> RS N° 3 | C23: =IF(INTRO!$E$43="Non endémique"," ", IF(COUNTRY_INFO!C23=0," ",COUNTRY_INFO!C23)) -> NANGA-BOGUILA | D23: =IF(INTRO!$E$43="Non endémique", 0, IF(COUNTRY_INFO!$K23>0, IF(COUNTRY_INFO!$K23=4, 0, IF(COUNTRY_INFO!$K23=1, COUNTRY_INFO!$F23*0.33, IF(COUNTRY_INFO!$K23=2, COUNTRY_INFO!$F23*0.5, COUNTRY_INFO!$F23))), 0)) -> 26722 | E23: =IF(INTRO!$E$43="Non endémique", 0, IF(COUNTRY_INFO!$K23>0, IF(COUNTRY_INFO!$K23=4, 0, IF(COUNTRY_INFO!$K23=1, 0, IF(COUNTRY_INFO!$K23=2, COUNTRY_INFO!$G23*0.2, COUNTRY_INFO!$G23))), 0)) -> 70619 | F23: 97341 | G23: =IF(INTRO!$E$43="Non endémique", "Non requis", COUNTRY_INFO!T23) -> 1 | I23: =IF($D23=0,0,IF(AND($G23>0,$H23<>"Oui"),D23,IF(AND($G23>0,$H23="Oui"),COUNTRY_INFO!$F23,0))) -> 26722 | J23: 26536 | K23: 70128 | L23: 96664 | M23: 66340 | N23: 210384 | O23: 66340 | Q23: 66340 | R23: 67
A24: =IF(INTRO!$E$43="Non endémique"," ", IF(COUNTRY_INFO!A24=0," ",COUNTRY_INFO!A24)) -> CAR | B24: =IF(INTRO!$E$43="Non endémique"," ", IF(COUNTRY_INFO!B24=0," ",COUNTRY_INFO!B24)) -> RS N° 3 | C24: =IF(INTRO!$E$43="Non endémique"," ", IF(COUNTRY_INFO!C24=0," ",COUNTRY_INFO!C24)) -> BOCARANGA-KOUI | D24: =IF(INTRO!$E$43="Non endémique", 0, IF(COUNTRY_INFO!$K24>0, IF(COUNTRY_INFO!$K24=4, 0, IF(COUNTRY_INFO!$K24=1, COUNTRY_INFO!$F24*0.33, IF(COUNTRY_INFO!$K24=2, COUNTRY_INFO!$F24*0.5, COUNTRY_INFO!$F24))), 0)) -> 17333 | E24: =IF(INTRO!$E$43="Non endémique", 0, IF(COUNTRY_INFO!$K24>0, IF(COUNTRY_INFO!$K24=4, 0, IF(COUNTRY_INFO!$K24=1, 0, IF(COUNTRY_INFO!$K24=2, COUNTRY_INFO!$G24*0.2, COUNTRY_INFO!$G24))), 0)) -> 18322.8 | F24: 35655.8 | G24: =IF(INTRO!$E$43="Non endémique", "Non requis", COUNTRY_INFO!T24) -> 1 | I24: =IF($D24=0,0,IF(AND($G24>0,$H24<>"Oui"),D24,IF(AND($G24>0,$H24="Oui"),COUNTRY_INFO!$F24,0))) -> 17333 | J24: 34426 | K24: 18196 | L24: 52622 | M24: 86065 | N24: 54588 | O24: 86065 | Q24: 86065 | R24: 87
A25: =IF(INTRO!$E$43="Non endémique"," ", IF(COUNTRY_INFO!A25=0," ",COUNTRY_INFO!A25)) -> CAR | B25: =IF(INTRO!$E$43="Non endémique"," ", IF(COUNTRY_INFO!B25=0," ",COUNTRY_INFO!B25)) -> RS N° 3 | C25: =IF(INTRO!$E$43="Non endémique"," ", IF(COUNTRY_INFO!C25=0," ",COUNTRY_INFO!C25)) -> BOZOUM-BOSSEMPTELE | D25: =IF(INTRO!$E$43="Non endémique", 0, IF(COUNTRY_INFO!$K25>0, IF(COUNTRY_INFO!$K25=4, 0, IF(COUNTRY_INFO!$K25=1, COUNTRY_INFO!$F25*0.33, IF(COUNTRY_INFO!$K25=2, COUNTRY_INFO!$F25*0.5, COUNTRY_INFO!$F25))), 0)) -> 22740 | E25: =IF(INTRO!$E$43="Non endémique", 0, IF(COUNTRY_INFO!$K25>0, IF(COUNTRY_INFO!$K25=4, 0, IF(COUNTRY_INFO!$K25=1, 0, IF(COUNTRY_INFO!$K25=2, COUNTRY_INFO!$G25*0.2, COUNTRY_INFO!$G25))), 0)) -> 60097 | F25: 82837 | G25: =IF(INTRO!$E$43="Non endémique", "Non requis", COUNTRY_INFO!T25) -> 1 | I25: =IF($D25=0,0,IF(AND($G25>0,$H25<>"Oui"),D25,IF(AND($G25>0,$H25="Oui"),COUNTRY_INFO!$F25,0))) -> 22740 | J25: 22582 | K25: 59680 | L25: 82262 | M25: 56455 | N25: 179040 | O25: 56455 | Q25: 56455 | R25: 57
A26: =IF(INTRO!$E$43="Non endémique"," ", IF(COUNTRY_INFO!A26=0," ",COUNTRY_INFO!A26)) -> CAR | B26: =IF(INTRO!$E$43="Non endémique"," ", IF(COUNTRY_INFO!B26=0," ",COUNTRY_INFO!B26)) -> RS N° 3 | C26: =IF(INTRO!$E$43="Non endémique"," ", IF(COUNTRY_INFO!C26=0," ",COUNTRY_INFO!C26)) -> NGAOUNDAYE | D26: =IF(INTRO!$E$43="Non endémique", 0, IF(COUNTRY_INFO!$K26>0, IF(COUNTRY_INFO!$K26=4, 0, IF(COUNTRY_INFO!$K26=1, COUNTRY_INFO!$F26*0.33, IF(COUNTRY_INFO!$K26=2, COUNTRY_INFO!$F26*0.5, COUNTRY_INFO!$F26))), 0)) -> 0 | E26: =IF(INTRO!$E$43="Non endémique", 0, IF(COUNTRY_INFO!$K26>0, IF(COUNTRY_INFO!$K26=4, 0, IF(COUNTRY_INFO!$K26=1, 0, IF(COUNTRY_INFO!$K26=2, COUNTRY_INFO!$G26*0.2, COUNTRY_INFO!$G26))), 0)) -> 0 | F26: 0 | G26: =IF(INTRO!$E$43="Non endémique", "Non requis", COUNTRY_INFO!T26) -> 0 | I26: =IF($D26=0,0,IF(AND($G26>0,$H26<>"Oui"),D26,IF(AND($G26>0,$H26="Oui"),COUNTRY_INFO!$F26,0))) -> 0 | J26: 0 | K26: 0 | L26: 0 | M26: 0 | N26: 0 | O26: 0 | Q26: 0 | R26: 0
A27: =IF(INTRO!$E$43="Non endémique"," ", IF(COUNTRY_INFO!A27=0," ",COUNTRY_INFO!A27)) -> CAR | B27: =IF(INTRO!$E$43="Non endémique"," ", IF(COUNTRY_INFO!B27=0," ",COUNTRY_INFO!B27)) -> RS N° 3 | C27: =IF(INTRO!$E$43="Non endémique"," ", IF(COUNTRY_INFO!C27=0," ",COUNTRY_INFO!C27)) -> PAOUA | D27: =IF(INTRO!$E$43="Non endémique", 0, IF(COUNTRY_INFO!$K27>0, IF(COUNTRY_INFO!$K27=4, 0, IF(COUNTRY_INFO!$K27=1, COUNTRY_INFO!$F27*0.33, IF(COUNTRY_INFO!$K27=2, COUNTRY_INFO!$F27*0.5, COUNTRY_INFO!$F27))), 0)) -> 25141.5 | E27: =IF(INTRO!$E$43="Non endémique", 0, IF(COUNTRY_INFO!$K27>0, IF(COUNTRY_INFO!$K27=4, 0, IF(COUNTRY_INFO!$K27=1, 0, IF(COUNTRY_INFO!$K27=2, COUNTRY_INFO!$G27*0.2, COUNTRY_INFO!$G27))), 0)) -> 26576.8 | F27: 51718.3 | G27: =IF(INTRO!$E$43="Non endémique", "Non requis", COUNTRY_INFO!T27) -> 1 | I27: =IF($D27=0,0,IF(AND($G27>0,$H27<>"Oui"),D27,IF(AND($G27>0,$H27="Oui"),COUNTRY_INFO!$F27,0))) -> 25141.5 | J27: 49934 | K27: 26393 | L27: 76327 | M27: 124835 | N27: 79179 | O27: 124835 | Q27: 124835 | R27: 125
A28: =IF(INTRO!$E$43="Non endémique"," ", IF(COUNTRY_INFO!A28=0," ",COUNTRY_INFO!A28)) -> CAR | B28: =IF(INTRO!$E$43="Non endémique"," ", IF(COUNTRY_INFO!B28=0," ",COUNTRY_INFO!B28)) -> RS N° 4 | C28: =IF(INTRO!$E$43="Non endémique"," ", IF(COUNTRY_INFO!C28=0," ",COUNTRY_INFO!C28)) -> KEMO | D28: =IF(INTRO!$E$43="Non endémique", 0, IF(COUNTRY_INFO!$K28>0, IF(COUNTRY_INFO!$K28=4, 0, IF(COUNTRY_INFO!$K28=1, COUNTRY_INFO!$F28*0.33, IF(COUNTRY_INFO!$K28=2, COUNTRY_INFO!$F28*0.5, COUNTRY_INFO!$F28))), 0)) -> 18671 | E28: =IF(INTRO!$E$43="Non endémique", 0, IF(COUNTRY_INFO!$K28>0, IF(COUNTRY_INFO!$K28=4, 0, IF(COUNTRY_INFO!$K28=1, 0, IF(COUNTRY_INFO!$K28=2, COUNTRY_INFO!$G28*0.2, COUNTRY_INFO!$G28))), 0)) -> 19736.8 | F28: 38407.8 | G28: =IF(INTRO!$E$43="Non endémique", "Non requis", COUNTRY_INFO!T28) -> 1 | I28: =IF($D28=0,0,IF(AND($G28>0,$H28<>"Oui"),D28,IF(AND($G28>0,$H28="Oui"),COUNTRY_INFO!$F28,0))) -> 18671 | J28: 4534 | K28: 2396 | L28: 6930 | M28: 11335 | N28: 7188 | O28: 11335 | Q28: 11335 | R28: 12
A29: =IF(INTRO!$E$43="Non endémique"," ", IF(COUNTRY_INFO!A29=0," ",COUNTRY_INFO!A29)) -> CAR | B29: =IF(INTRO!$E$43="Non endémique"," ", IF(COUNTRY_INFO!B29=0," ",COUNTRY_INFO!B29)) -> RS N° 4 | C29: =IF(INTRO!$E$43="Non endémique"," ", IF(COUNTRY_INFO!C29=0," ",COUNTRY_INFO!C29)) -> NANA-GRIBIZI | D29: =IF(INTRO!$E$43="Non endémique", 0, IF(COUNTRY_INFO!$K29>0, IF(COUNTRY_INFO!$K29=4, 0, IF(COUNTRY_INFO!$K29=1, COUNTRY_INFO!$F29*0.33, IF(COUNTRY_INFO!$K29=2, COUNTRY_INFO!$F29*0.5, COUNTRY_INFO!$F29))), 0)) -> 37151 | E29: =IF(INTRO!$E$43="Non endémique", 0, IF(COUNTRY_INFO!$K29>0, IF(COUNTRY_INFO!$K29=4, 0, IF(COUNTRY_INFO!$K29=1, 0, IF(COUNTRY_INFO!$K29=2, COUNTRY_INFO!$G29*0.2, COUNTRY_INFO!$G29))), 0)) -> 98181 | F29: 135332 | G29: =IF(INTRO!$E$43="Non endémique", "Non requis", COUNTRY_INFO!T29) -> 1 | I29: =IF($D29=0,0,IF(AND($G29>0,$H29<>"Oui"),D29,IF(AND($G29>0,$H29="Oui"),COUNTRY_INFO!$F29,0))) -> 37151 | J29: 36894 | K29: 97501 | L29: 134395 | M29: 92235 | N29: 292503 | O29: 92235 | Q29: 92235 | R29: 93
A30: =IF(INTRO!$E$43="Non endémique"," ", IF(COUNTRY_INFO!A30=0," ",COUNTRY_INFO!A30)) -> CAR | B30: =IF(INTRO!$E$43="Non endémique"," ", IF(COUNTRY_INFO!B30=0," ",COUNTRY_INFO!B30)) -> RS N° 4 | C30: =IF(INTRO!$E$43="Non endémique"," ", IF(COUNTRY_INFO!C30=0," ",COUNTRY_INFO!C30)) -> BAMBARI | D30: =IF(INTRO!$E$43="Non endémique", 0, IF(COUNTRY_INFO!$K30>0, IF(COUNTRY_INFO!$K30=4, 0, IF(COUNTRY_INFO!$K30=1, COUNTRY_INFO!$F30*0.33, IF(COUNTRY_INFO!$K30=2, COUNTRY_INFO!$F30*0.5, COUNTRY_INFO!$F30))), 0)) -> 26323.5 | E30: =IF(INTRO!$E$43="Non endémique", 0, IF(COUNTRY_INFO!$K30>0, IF(COUNTRY_INFO!$K30=4, 0, IF(COUNTRY_INFO!$K30=1, 0, IF(COUNTRY_INFO!$K30=2, COUNTRY_INFO!$G30*0.2, COUNTRY_INFO!$G30))), 0)) -> 27826.4 | F30: 54149.9 | G30: =IF(INTRO!$E$43="Non endémique", "Non requis", COUNTRY_INFO!T30) -> 1 | I30: =IF($D30=0,0,IF(AND($G30>0,$H30<>"Oui"),D30,IF(AND($G30>0,$H30="Oui"),COUNTRY_INFO!$F30,0))) -> 26323.5 | J30: 15756 | K30: 1410 | L30: 17166 | M30: 39390 | N30: 4230 | O30: 39390 | Q30: 39390 | R30: 40
A31: =IF(INTRO!$E$43="Non endémique"," ", IF(COUNTRY_INFO!A31=0," ",COUNTRY_INFO!A31)) -> CAR | B31: =IF(INTRO!$E$43="Non endémique"," ", IF(COUNTRY_INFO!B31=0," ",COUNTRY_INFO!B31)) -> RS N° 4 | C31: =IF(INTRO!$E$43="Non endémique"," ", IF(COUNTRY_INFO!C31=0," ",COUNTRY_INFO!C31)) -> KOUANGO-GRIMARI | D31: =IF(INTRO!$E$43="Non endémique", 0, IF(COUNTRY_INFO!$K31>0, IF(COUNTRY_INFO!$K31=4, 0, IF(COUNTRY_INFO!$K31=1, COUNTRY_INFO!$F31*0.33, IF(COUNTRY_INFO!$K31=2, COUNTRY_INFO!$F31*0.5, COUNTRY_INFO!$F31))), 0)) -> 11420.97 | E31: =IF(INTRO!$E$43="Non endémique", 0, IF(COUNTRY_INFO!$K31>0, IF(COUNTRY_INFO!$K31=4, 0, IF(COUNTRY_INFO!$K31=1, 0, IF(COUNTRY_INFO!$K31=2, COUNTRY_INFO!$G31*0.2, COUNTRY_INFO!$G31))), 0)) -> 0 | F31: 11420.97 | G31: =IF(INTRO!$E$43="Non endémique", "Non requis", COUNTRY_INFO!T31) -> 1 | I31: =IF($D31=0,0,IF(AND($G31>0,$H31<>"Oui"),D31,IF(AND($G31>0,$H31="Oui"),COUNTRY_INFO!$F31,0))) -> 11420.97 | J31: 22404 | K31: 0 | L31: 22404 | M31: 56010 | N31: 0 | O31: 56010 | Q31: 56010 | R31: 57
A32: =IF(INTRO!$E$43="Non endémique"," ", IF(COUNTRY_INFO!A32=0," ",COUNTRY_INFO!A32)) -> CAR | B32: =IF(INTRO!$E$43="Non endémique"," ", IF(COUNTRY_INFO!B32=0," ",COUNTRY_INFO!B32)) -> RS N° 5 | C32: =IF(INTRO!$E$43="Non endémique"," ", IF(COUNTRY_INFO!C32=0," ",COUNTRY_INFO!C32)) -> BAMINGUI-BANGORAN | D32: =IF(INTRO!$E$43="Non endémique", 0, IF(COUNTRY_INFO!$K32>0, IF(COUNTRY_INFO!$K32=4, 0, IF(COUNTRY_INFO!$K32=1, COUNTRY_INFO!$F32*0.33, IF(COUNTRY_INFO!$K32=2, COUNTRY_INFO!$F32*0.5, COUNTRY_INFO!$F32))), 0)) -> 13632 | E32: =IF(INTRO!$E$43="Non endémique", 0, IF(COUNTRY_INFO!$K32>0, IF(COUNTRY_INFO!$K32=4, 0, IF(COUNTRY_INFO!$K32=1, 0, IF(COUNTRY_INFO!$K32=2, COUNTRY_INFO!$G32*0.2, COUNTRY_INFO!$G32))), 0)) -> 36025 | F32: 49657 | G32: =IF(INTRO!$E$43="Non endémique", "Non requis", COUNTRY_INFO!T32) -> 1 | I32: =IF($D32=0,0,IF(AND($G32>0,$H32<>"Oui"),D32,IF(AND($G32>0,$H32="Oui"),COUNTRY_INFO!$F32,0))) -> 13632 | J32: 13538 | K32: 35775 | L32: 49313 | M32: 33845 | N32: 107325 | O32: 33845 | Q32: 33845 | R32: 34
A33: =IF(INTRO!$E$43="Non endémique"," ", IF(COUNTRY_INFO!A33=0," ",COUNTRY_INFO!A33)) -> CAR | B33: =IF(INTRO!$E$43="Non endémique"," ", IF(COUNTRY_INFO!B33=0," ",COUNTRY_INFO!B33)) -> RS N° 5 | C33: =IF(INTRO!$E$43="Non endémique"," ", IF(COUNTRY_INFO!C33=0," ",COUNTRY_INFO!C33)) -> HAUTE-KOTTO | D33: =IF(INTRO!$E$43="Non endémique", 0, IF(COUNTRY_INFO!$K33>0, IF(COUNTRY_INFO!$K33=4, 0, IF(COUNTRY_INFO!$K33=1, COUNTRY_INFO!$F33*0.33, IF(COUNTRY_INFO!$K33=2, COUNTRY_INFO!$F33*0.5, COUNTRY_INFO!$F33))), 0)) -> 28480 | E33: =IF(INTRO!$E$43="Non endémique", 0, IF(COUNTRY_INFO!$K33>0, IF(COUNTRY_INFO!$K33=4, 0, IF(COUNTRY_INFO!$K33=1, 0, IF(COUNTRY_INFO!$K33=2, COUNTRY_INFO!$G33*0.2, COUNTRY_INFO!$G33))), 0)) -> 75264 | F33: 103744 | G33: =IF(INTRO!$E$43="Non endémique", "Non requis", COUNTRY_INFO!T33) -> 1 | I33: =IF($D33=0,0,IF(AND($G33>0,$H33<>"Oui"),D33,IF(AND($G33>0,$H33="Oui"),COUNTRY_INFO!$F33,0))) -> 28480 | J33: 28283 | K33: 61987 | L33: 90270 | M33: 70707.5 | N33: 185961 | O33: 70707.5 | Q33: 70707.5 | R33: 71
A34: =IF(INTRO!$E$43="Non endémique"," ", IF(COUNTRY_INFO!A34=0," ",COUNTRY_INFO!A34)) -> CAR | B34: =IF(INTRO!$E$43="Non endémique"," ", IF(COUNTRY_INFO!B34=0," ",COUNTRY_INFO!B34)) -> RS N° 5 | C34: =IF(INTRO!$E$43="Non endémique"," ", IF(COUNTRY_INFO!C34=0," ",COUNTRY_INFO!C34)) -> VAKAGA | D34: =IF(INTRO!$E$43="Non endémique", 0, IF(COUNTRY_INFO!$K34>0, IF(COUNTRY_INFO!$K34=4, 0, IF(COUNTRY_INFO!$K34=1, COUNTRY_INFO!$F34*0.33, IF(COUNTRY_INFO!$K34=2, COUNTRY_INFO!$F34*0.5, COUNTRY_INFO!$F34))), 0)) -> 16478 | E34: =IF(INTRO!$E$43="Non endémique", 0, IF(COUNTRY_INFO!$K34>0, IF(COUNTRY_INFO!$K34=4, 0, IF(COUNTRY_INFO!$K34=1, 0, IF(COUNTRY_INFO!$K34=2, COUNTRY_INFO!$G34*0.2, COUNTRY_INFO!$G34))), 0)) -> 43546 | F34: 60024 | G34: =IF(INTRO!$E$43="Non endémique", "Non requis", COUNTRY_INFO!T34) -> 1 | I34: =IF($D34=0,0,IF(AND($G34>0,$H34<>"Oui"),D34,IF(AND($G34>0,$H34="Oui"),COUNTRY_INFO!$F34,0))) -> 16478 | J34: 16364 | K34: 40632 | L34: 56996 | M34: 40910 | N34: 121896 | O34: 40910 | Q34: 40910 | R34: 41
A35: =IF(INTRO!$E$43="Non endémique"," ", IF(COUNTRY_INFO!A35=0," ",COUNTRY_INFO!A35)) -> CAR | B35: =IF(INTRO!$E$43="Non endémique"," ", IF(COUNTRY_INFO!B35=0," ",COUNTRY_INFO!B35)) -> RS N° 6 | C35: =IF(INTRO!$E$43="Non endémique"," ", IF(COUNTRY_INFO!C35=0," ",COUNTRY_INFO!C35)) -> ALINDAO MINGALA | D35: =IF(INTRO!$E$43="Non endémique", 0, IF(COUNTRY_INFO!$K35>0, IF(COUNTRY_INFO!$K35=4, 0, IF(COUNTRY_INFO!$K35=1, COUNTRY_INFO!$F35*0.33, IF(COUNTRY_INFO!$K35=2, COUNTRY_INFO!$F35*0.5, COUNTRY_INFO!$F35))), 0)) -> 9564.39 | E35: =IF(INTRO!$E$43="Non endémique", 0, IF(COUNTRY_INFO!$K35>0, IF(COUNTRY_INFO!$K35=4, 0, IF(COUNTRY_INFO!$K35=1, 0, IF(COUNTRY_INFO!$K35=2, COUNTRY_INFO!$G35*0.2, COUNTRY_INFO!$G35))), 0)) -> 0 | F35: 9564.39 | G35: =IF(INTRO!$E$43="Non endémique", "Non requis", COUNTRY_INFO!T35) -> 1 | I35: =IF($D35=0,0,IF(AND($G35>0,$H35<>"Oui"),D35,IF(AND($G35>0,$H35="Oui"),COUNTRY_INFO!$F35,0))) -> 9564.39 | J35: 8682 | K35: 0 | L35: 8682 | M35: 21705 | N35: 0 | O35: 21705 | Q35: 21705 | R35: 22
A36: =IF(INTRO!$E$43="Non endémique"," ", IF(COUNTRY_INFO!A36=0," ",COUNTRY_INFO!A36)) -> CAR | B36: =IF(INTRO!$E$43="Non endémique"," ", IF(COUNTRY_INFO!B36=0," ",COUNTRY_INFO!B36)) -> RS N° 6 | C36: =IF(INTRO!$E$43="Non endémique"," ", IF(COUNTRY_INFO!C36=0," ",COUNTRY_INFO!C36)) -> KEMBE SATEMA | D36: =IF(INTRO!$E$43="Non endémique", 0, IF(COUNTRY_INFO!$K36>0, IF(COUNTRY_INFO!$K36=4, 0, IF(COUNTRY_INFO!$K36=1, COUNTRY_INFO!$F36*0.33, IF(COUNTRY_INFO!$K36=2, COUNTRY_INFO!$F36*0.5, COUNTRY_INFO!$F36))), 0)) -> 6286.83 | E36: =IF(INTRO!$E$43="Non endémique", 0, IF(COUNTRY_INFO!$K36>0, IF(COUNTRY_INFO!$K36=4, 0, IF(COUNTRY_INFO!$K36=1, 0, IF(COUNTRY_INFO!$K36=2, COUNTRY_INFO!$G36*0.2, COUNTRY_INFO!$G36))), 0)) -> 0 | F36: 6286.83 | G36: =IF(INTRO!$E$43="Non endémique", "Non requis", COUNTRY_INFO!T36) -> 0 | I36: =IF($D36=0,0,IF(AND($G36>0,$H36<>"Oui"),D36,IF(AND($G36>0,$H36="Oui"),COUNTRY_INFO!$F36,0))) -> 0 | J36: 0 | K36: 0 | L36: 0 | M36: 0 | N36: 0 | O36: 0 | Q36: 0 | R36: 0
A37: =IF(INTRO!$E$43="Non endémique"," ", IF(COUNTRY_INFO!A37=0," ",COUNTRY_INFO!A37)) -> CAR | B37: =IF(INTRO!$E$43="Non endémique"," ", IF(COUNTRY_INFO!B37=0," ",COUNTRY_INFO!B37)) -> RS N° 6 | C37: =IF(INTRO!$E$43="Non endémique"," ", IF(COUNTRY_INFO!C37=0," ",COUNTRY_INFO!C37)) -> MOBAYE-ZANGBA | D37: =IF(INTRO!$E$43="Non endémique", 0, IF(COUNTRY_INFO!$K37>0, IF(COUNTRY_INFO!$K37=4, 0, IF(COUNTRY_INFO!$K37=1, COUNTRY_INFO!$F37*0.33, IF(COUNTRY_INFO!$K37=2, COUNTRY_INFO!$F37*0.5, COUNTRY_INFO!$F37))), 0)) -> 30532 | E37: =IF(INTRO!$E$43="Non endémique", 0, IF(COUNTRY_INFO!$K37>0, IF(COUNTRY_INFO!$K37=4, 0, IF(COUNTRY_INFO!$K37=1, 0, IF(COUNTRY_INFO!$K37=2, COUNTRY_INFO!$G37*0.2, COUNTRY_INFO!$G37))), 0)) -> 80688 | F37: 111220 | G37: =IF(INTRO!$E$43="Non endémique", "Non requis", COUNTRY_INFO!T37) -> 1 | I37: =IF($D37=0,0,IF(AND($G37>0,$H37<>"Oui"),D37,IF(AND($G37>0,$H37="Oui"),COUNTRY_INFO!$F37,0))) -> 30532 | J37: 30321 | K37: 48718 | L37: 79039 | M37: 75802.5 | N37: 146154 | O37: 75802.5 | Q37: 75802.5 | R37: 76
A38: =IF(INTRO!$E$43="Non endémique"," ", IF(COUNTRY_INFO!A38=0," ",COUNTRY_INFO!A38)) -> CAR | B38: =IF(INTRO!$E$43="Non endémique"," ", IF(COUNTRY_INFO!B38=0," ",COUNTRY_INFO!B38)) -> RS N° 6 | C38: =IF(INTRO!$E$43="Non endémique"," ", IF(COUNTRY_INFO!C38=0," ",COUNTRY_INFO!C38)) -> BANGASSOU | D38: =IF(INTRO!$E$43="Non endémique", 0, IF(COUNTRY_INFO!$K38>0, IF(COUNTRY_INFO!$K38=4, 0, IF(COUNTRY_INFO!$K38=1, COUNTRY_INFO!$F38*0.33, IF(COUNTRY_INFO!$K38=2, COUNTRY_INFO!$F38*0.5, COUNTRY_INFO!$F38))), 0)) -> 10439.22 | E38: =IF(INTRO!$E$43="Non endémique", 0, IF(COUNTRY_INFO!$K38>0, IF(COUNTRY_INFO!$K38=4, 0, IF(COUNTRY_INFO!$K38=1, 0, IF(COUNTRY_INFO!$K38=2, COUNTRY_INFO!$G38*0.2, COUNTRY_INFO!$G38))), 0)) -> 0 | F38: 10439.22 | G38: =IF(INTRO!$E$43="Non endémique", "Non requis", COUNTRY_INFO!T38) -> 0 | I38: =IF($D38=0,0,IF(AND($G38>0,$H38<>"Oui"),D38,IF(AND($G38>0,$H38="Oui"),COUNTRY_INFO!$F38,0))) -> 0 | J38: 0 | K38: 0 | L38: 0 | M38: 0 | N38: 0 | O38: 0 | Q38: 0 | R38: 0
A39: =IF(INTRO!$E$43="Non endémique"," ", IF(COUNTRY_INFO!A39=0," ",COUNTRY_INFO!A39)) -> CAR | B39: =IF(INTRO!$E$43="Non endémique"," ", IF(COUNTRY_INFO!B39=0," ",COUNTRY_INFO!B39)) -> RS N° 6 | C39: =IF(INTRO!$E$43="Non endémique"," ", IF(COUNTRY_INFO!C39=0," ",COUNTRY_INFO!C39)) -> OUANGO-GAMBO | D39: =IF(INTRO!$E$43="Non endémique", 0, IF(COUNTRY_INFO!$K39>0, IF(COUNTRY_INFO!$K39=4, 0, IF(COUNTRY_INFO!$K39=1, COUNTRY_INFO!$F39*0.33, IF(COUNTRY_INFO!$K39=2, COUNTRY_INFO!$F39*0.5, COUNTRY_INFO!$F39))), 0)) -> 6627.39 | E39: =IF(INTRO!$E$43="Non endémique", 0, IF(COUNTRY_INFO!$K39>0, IF(COUNTRY_INFO!$K39=4, 0, IF(COUNTRY_INFO!$K39=1, 0, IF(COUNTRY_INFO!$K39=2, COUNTRY_INFO!$G39*0.2, COUNTRY_INFO!$G39))), 0)) -> 0 | F39: 6627.39 | G39: =IF(INTRO!$E$43="Non endémique", "Non requis", COUNTRY_INFO!T39) -> 0 | I39: =IF($D39=0,0,IF(AND($G39>0,$H39<>"Oui"),D39,IF(AND($G39>0,$H39="Oui"),COUNTRY_INFO!$F39,0))) -> 0 | J39: 0 | K39: 0 | L39: 0 | M39: 0 | N39: 0 | O39: 0 | Q39: 0 | R39: 0
A40: =IF(INTRO!$E$43="Non endémique"," ", IF(COUNTRY_INFO!A40=0," ",COUNTRY_INFO!A40)) -> CAR | B40: =IF(INTRO!$E$43="Non endémique"," ", IF(COUNTRY_INFO!B40=0," ",COUNTRY_INFO!B40)) -> RS N° 6 | C40: =IF(INTRO!$E$43="Non endémique"," ", IF(COUNTRY_INFO!C40=0," ",COUNTRY_INFO!C40)) -> HAUT-MBOMOU | D40: =IF(INTRO!$E$43="Non endémique", 0, IF(COUNTRY_INFO!$K40>0, IF(COUNTRY_INFO!$K40=4, 0, IF(COUNTRY_INFO!$K40=1, COUNTRY_INFO!$F40*0.33, IF(COUNTRY_INFO!$K40=2, COUNTRY_INFO!$F40*0.5, COUNTRY_INFO!$F40))), 0)) -> 9082 | E40: =IF(INTRO!$E$43="Non endémique", 0, IF(COUNTRY_INFO!$K40>0, IF(COUNTRY_INFO!$K40=4, 0, IF(COUNTRY_INFO!$K40=1, 0, IF(COUNTRY_INFO!$K40=2, COUNTRY_INFO!$G40*0.2, COUNTRY_INFO!$G40))), 0)) -> 9600.4 | F40: 18682.4 | G40: =IF(INTRO!$E$43="Non endémique", "Non requis", COUNTRY_INFO!T40) -> 1 | I40: =IF($D40=0,0,IF(AND($G40>0,$H40<>"Oui"),D40,IF(AND($G40>0,$H40="Oui"),COUNTRY_INFO!$F40,0))) -> 9082 | J40: 18038 | K40: 9534 | L40: 27572 | M40: 45095 | N40: 28602 | O40: 45095 | Q40: 45095 | R40: 46
A41: =IF(INTRO!$E$43="Non endémique"," ", IF(COUNTRY_INFO!A41=0," ",COUNTRY_INFO!A41)) -> CAR | B41: =IF(INTRO!$E$43="Non endémique"," ", IF(COUNTRY_INFO!B41=0," ",COUNTRY_INFO!B41)) -> RS N° 7 | C41: =IF(INTRO!$E$43="Non endémique"," ", IF(COUNTRY_INFO!C41=0," ",COUNTRY_INFO!C41)) -> BANGUI I (lakouanga) | D41: =IF(INTRO!$E$43="Non endémique", 0, IF(COUNTRY_INFO!$K41>0, IF(COUNTRY_INFO!$K41=4, 0, IF(COUNTRY_INFO!$K41=1, COUNTRY_INFO!$F41*0.33, IF(COUNTRY_INFO!$K41=2, COUNTRY_INFO!$F41*0.5, COUNTRY_INFO!$F41))), 0)) -> 0 | E41: =IF(INTRO!$E$43="Non endémique", 0, IF(COUNTRY_INFO!$K41>0, IF(COUNTRY_INFO!$K41=4, 0, IF(COUNTRY_INFO!$K41=1, 0, IF(COUNTRY_INFO!$K41=2, COUNTRY_INFO!$G41*0.2, COUNTRY_INFO!$G41))), 0)) -> 0 | F41: 0 | G41: =IF(INTRO!$E$43="Non endémique", "Non requis", COUNTRY_INFO!T41) -> 0 | I41: =IF($D41=0,0,IF(AND($G41>0,$H41<>"Oui"),D41,IF(AND($G41>0,$H41="Oui"),COUNTRY_INFO!$F41,0))) -> 0 | J41: 0 | K41: 0 | L41: 0 | M41: 0 | N41: 0 | O41: 0 | Q41: 0 | R41: 0
A42: =IF(INTRO!$E$43="Non endémique"," ", IF(COUNTRY_INFO!A42=0," ",COUNTRY_INFO!A42)) -> CAR | B42: =IF(INTRO!$E$43="Non endémique"," ", IF(COUNTRY_INFO!B42=0," ",COUNTRY_INFO!B42)) -> RS N° 7 | C42: =IF(INTRO!$E$43="Non endémique"," ", IF(COUNTRY_INFO!C42=0," ",COUNTRY_INFO!C42)) -> BANGUI II (Castors) | D42: =IF(INTRO!$E$43="Non endémique", 0, IF(COUNTRY_INFO!$K42>0, IF(COUNTRY_INFO!$K42=4, 0, IF(COUNTRY_INFO!$K42=1, COUNTRY_INFO!$F42*0.33, IF(COUNTRY_INFO!$K42=2, COUNTRY_INFO!$F42*0.5, COUNTRY_INFO!$F42))), 0)) -> 0 | E42: =IF(INTRO!$E$43="Non endémique", 0, IF(COUNTRY_INFO!$K42>0, IF(COUNTRY_INFO!$K42=4, 0, IF(COUNTRY_INFO!$K42=1, 0, IF(COUNTRY_INFO!$K42=2, COUNTRY_INFO!$G42*0.2, COUNTRY_INFO!$G42))), 0)) -> 0 | F42: 0 | G42: =IF(INTRO!$E$43="Non endémique", "Non requis", COUNTRY_INFO!T42) -> 0 | I42: =IF($D42=0,0,IF(AND($G42>0,$H42<>"Oui"),D42,IF(AND($G42>0,$H42="Oui"),COUNTRY_INFO!$F42,0))) -> 0 | J42: 0 | K42: 0 | L42: 0 | M42: 0 | N42: 0 | O42: 0 | Q42: 0 | R42: 0
A43: =IF(INTRO!$E$43="Non endémique"," ", IF(COUNTRY_INFO!A43=0," ",COUNTRY_INFO!A43)) -> CAR | B43: =IF(INTRO!$E$43="Non endémique"," ", IF(COUNTRY_INFO!B43=0," ",COUNTRY_INFO!B43)) -> RS N° 7 | C43: =IF(INTRO!$E$43="Non endémique"," ", IF(COUNTRY_INFO!C43=0," ",COUNTRY_INFO!C43)) -> BANGUI III (Bédé-Combattant) | D43: =IF(INTRO!$E$43="Non endémique", 0, IF(COUNTRY_INFO!$K43>0, IF(COUNTRY_INFO!$K43=4, 0, IF(COUNTRY_INFO!$K43=1, COUNTRY_INFO!$F43*0.33, IF(COUNTRY_INFO!$K43=2, COUNTRY_INFO!$F43*0.5, COUNTRY_INFO!$F43))), 0)) -> 0 | E43: =IF(INTRO!$E$43="Non endémique", 0, IF(COUNTRY_INFO!$K43>0, IF(COUNTRY_INFO!$K43=4, 0, IF(COUNTRY_INFO!$K43=1, 0, IF(COUNTRY_INFO!$K43=2, COUNTRY_INFO!$G43*0.2, COUNTRY_INFO!$G43))), 0)) -> 0 | F43: 0 | G43: =IF(INTRO!$E$43="Non endémique", "Non requis", COUNTRY_INFO!T43) -> 0 | I43: =IF($D43=0,0,IF(AND($G43>0,$H43<>"Oui"),D43,IF(AND($G43>0,$H43="Oui"),COUNTRY_INFO!$F43,0))) -> 0 | J43: 0 | K43: 0 | L43: 0 | M43: 0 | N43: 0 | O43: 0 | Q43: 0 | R43: 0

Sheet IVM
A1: Ivermectine (IVM)
A2: Structure administrative, population ciblée par groupe d'âge, plan de traitement et information sur les comprimés
A4: TOTAL | D4: =SUM(D$9:D$1000) -> 3758882 | G4: =SUM(G$9:G$1000) -> 2262005 | H4: 2201981 | I4: 0 | J4: 2201981 | K4: 168067.2 | L4: 0 | M4: 6165546.8 | N4: 6333614 | O4: 0 | P4: 6333614 | Q4: 12677
A6: Structure administrative du pays | E6: Plan de traitement | G6: Population cible | K6: Ivermectine (IVM)
A7: Pays | B7: Région/Département | C7: District | D7: Population nécessitant un traitement avec IVM | E7: FL | F7: Oncho | G7: FL | H7: Oncho | K7: FL uniquement | L7: Oncho uniquement | M7: FL+Oncho | N7: Total requis | O7: Reste en stock | P7: Comprimés devant être fournis | Q7: Flacons (3mg) 500 comprimés
H8: dans le district | I8: dans les village | J8: total
A9: =IF(INTRO!$E$39="Non endémique"," ",IF(COUNTRY_INFO!A9=0," ",COUNTRY_INFO!A9)) -> CAR | B9: =IF(INTRO!$E$39="Non endémique"," ",IF(COUNTRY_INFO!B9=0," ",COUNTRY_INFO!B9)) -> RS N° 1 | C9: =IF(INTRO!$E$39="Non endémique"," ",IF(COUNTRY_INFO!C9=0," ",COUNTRY_INFO!C9)) -> BEGOUA | D9: =IF(INTRO!$E$39="Non endémique",0,IF(INTRO!$E$39="Endémique mais pas de CP",IF(COUNTRY_INFO!$H9=1,COUNTRY_INFO!F9+COUNTRY_INFO!G9,0),IF(COUNTRY_INFO!$H9=1,COUNTRY_INFO!F9+COUNTRY_INFO!G9,IF(COUNTRY_INFO!$I9=1,IF(COUNTRY_INFO!N9>=(COUNTRY_INFO!F9+COUNTRY_INFO!G9),COUNTRY_INFO!F9+COUNTRY_INFO!G9,COUNTRY_INFO!$N9),0)))) -> 142358 | E9: =IF(AND(INTRO!$E$39="Non endémique",INTRO!$E$37="Non endémique"),"Non requis",IF(INTRO!$E$39="Non endémique","Traiter avec DEC",COUNTRY_INFO!Q9)) -> 1 | F9: =IF(INTRO!$E$39<>"Non endémique",COUNTRY_INFO!R9,"Non requis") -> 0 | G9: =IF(COUNTRY_INFO!H9=1, IF($E9=1,IF(ALB_MBD!$J9<>" ",COUNTRY_INFO!F9+COUNTRY_INFO!G9-ALB_MBD!$J9,COUNTRY_INFO!F9+COUNTRY_INFO!G9), 0),0) -> 0 | H9: =IF(INTRO!$E$39<>"Endémique",0, IF(AND(COUNTRY_INFO!$I9=1,$F9<>0),IF(COUNTRY_INFO!N9>=(COUNTRY_INFO!F9+COUNTRY_INFO!G9),COUNTRY_INFO!F9+COUNTRY_INFO!G9,COUNTRY_INFO!$N9), 0)) -> 0 | J9: =IF(I9=0,H9,IF(I9>H9,H9,I9)) -> 0 | K9: =IF(G9<J9,0,IF($E9=1, (G9-J9)*2.8, 0)) -> 0 | L9: =IF($E9<$F9, J9*(F9-E9)*2.8, 0) -> 0 | M9: =IF(AND($E9=1, $F9<>0), J9*2.8, 0) -> 0 | N9: =SUM(K9:M9) -> 0 | P9: =IF($N9>$O9,$N9-$O9,0) -> 0 | Q9: =ROUNDUP($N9/500,0) -> 0
A10: =IF(INTRO!$E$39="Non endémique"," ",IF(COUNTRY_INFO!A10=0," ",COUNTRY_INFO!A10)) -> CAR | B10: =IF(INTRO!$E$39="Non endémique"," ",IF(COUNTRY_INFO!B10=0," ",COUNTRY_INFO!B10)) -> RS N° 1 | C10: =IF(INTRO!$E$39="Non endémique"," ",IF(COUNTRY_INFO!C10=0," ",COUNTRY_INFO!C10)) -> BIMBO | D10: =IF(INTRO!$E$39="Non endémique",0,IF(INTRO!$E$39="Endémique mais pas de CP",IF(COUNTRY_INFO!$H10=1,COUNTRY_INFO!F10+COUNTRY_INFO!G10,0),IF(COUNTRY_INFO!$H10=1,COUNTRY_INFO!F10+COUNTRY_INFO!G10,IF(COUNTRY_INFO!$I10=1,IF(COUNTRY_INFO!N10>=(COUNTRY_INFO!F10+COUNTRY_INFO!G10),COUNTRY_INFO!F10+COUNTRY_INFO!G10,COUNTRY_INFO!$N10),0)))) -> 146973 | E10: =IF(AND(INTRO!$E$39="Non endémique",INTRO!$E$37="Non endémique"),"Non requis",IF(INTRO!$E$39="Non endémique","Traiter avec DEC",COUNTRY_INFO!Q10)) -> 1 | F10: =IF(INTRO!$E$39<>"Non endémique",COUNTRY_INFO!R10,"Non requis") -> 0 | G10: =IF(COUNTRY_INFO!H10=1, IF($E10=1,IF(ALB_MBD!$J10<>" ",COUNTRY_INFO!F10+COUNTRY_INFO!G10-ALB_MBD!$J10,COUNTRY_INFO!F10+COUNTRY_INFO!G10), 0),0) -> 0 | H10: =IF(INTRO!$E$39<>"Endémique",0, IF(AND(COUNTRY_INFO!$I10=1,$F10<>0),IF(COUNTRY_INFO!N10>=(COUNTRY_INFO!F10+COUNTRY_INFO!G10),COUNTRY_INFO!F10+COUNTRY_INFO!G10,COUNTRY_INFO!$N10), 0)) -> 0 | J10: 0 | K10: 0 | L10: 0 | M10: 0 | N10: 0 | P10: 0 | Q10: 0
A11: =IF(INTRO!$E$39="Non endémique"," ",IF(COUNTRY_INFO!A11=0," ",COUNTRY_INFO!A11)) -> CAR | B11: =IF(INTRO!$E$39="Non endémique"," ",IF(COUNTRY_INFO!B11=0," ",COUNTRY_INFO!B11)) -> RS N° 1 | C11: =IF(INTRO!$E$39="Non endémique"," ",IF(COUNTRY_INFO!C11=0," ",COUNTRY_INFO!C11)) -> BOSSEMBELE | D11: =IF(INTRO!$E$39="Non endémique",0,IF(INTRO!$E$39="Endémique mais pas de CP",IF(COUNTRY_INFO!$H11=1,COUNTRY_INFO!F11+COUNTRY_INFO!G11,0),IF(COUNTRY_INFO!$H11=1,COUNTRY_INFO!F11+COUNTRY_INFO!G11,IF(COUNTRY_INFO!$I11=1,IF(COUNTRY_INFO!N11>=(COUNTRY_INFO!F11+COUNTRY_INFO!G11),COUNTRY_INFO!F11+COUNTRY_INFO!G11,COUNTRY_INFO!$N11),0)))) -> 120429 | E11: =IF(AND(INTRO!$E$39="Non endémique",INTRO!$E$37="Non endémique"),"Non requis",IF(INTRO!$E$39="Non endémique","Traiter avec DEC",COUNTRY_INFO!Q11)) -> 1 | F11: =IF(INTRO!$E$39<>"Non endémique",COUNTRY_INFO!R11,"Non requis") -> 0 | G11: =IF(COUNTRY_INFO!H11=1, IF($E11=1,IF(ALB_MBD!$J11<>" ",COUNTRY_INFO!F11+COUNTRY_INFO!G11-ALB_MBD!$J11,COUNTRY_INFO!F11+COUNTRY_INFO!G11), 0),0) -> 0 | H11: =IF(INTRO!$E$39<>"Endémique",0, IF(AND(COUNTRY_INFO!$I11=1,$F11<>0),IF(COUNTRY_INFO!N11>=(COUNTRY_INFO!F11+COUNTRY_INFO!G11),COUNTRY_INFO!F11+COUNTRY_INFO!G11,COUNTRY_INFO!$N11), 0)) -> 0 | J11: 0 | K11: 0 | L11: 0 | M11: 0 | N11: 0 | P11: 0 | Q11: 0
A12: =IF(INTRO!$E$39="Non endémique"," ",IF(COUNTRY_INFO!A12=0," ",COUNTRY_INFO!A12)) -> CAR | B12: =IF(INTRO!$E$39="Non endémique"," ",IF(COUNTRY_INFO!B12=0," ",COUNTRY_INFO!B12)) -> RS N° 1 | C12: =IF(INTRO!$E$39="Non endémique"," ",IF(COUNTRY_INFO!C12=0," ",COUNTRY_INFO!C12)) -> BODA | D12: =IF(INTRO!$E$39="Non endémique",0,IF(INTRO!$E$39="Endémique mais pas de CP",IF(COUNTRY_INFO!$H12=1,COUNTRY_INFO!F12+COUNTRY_INFO!G12,0),IF(COUNTRY_INFO!$H12=1,COUNTRY_INFO!F12+COUNTRY_INFO!G12,IF(COUNTRY_INFO!$I12=1,IF(COUNTRY_INFO!N12>=(COUNTRY_INFO!F12+COUNTRY_INFO!G12),COUNTRY_INFO!F12+COUNTRY_INFO!G12,COUNTRY_INFO!$N12),0)))) -> 100229 | E12: =IF(AND(INTRO!$E$39="Non endémique",INTRO!$E$37="Non endémique"),"Non requis",IF(INTRO!$E$39="Non endémique","Traiter avec DEC",COUNTRY_INFO!Q12)) -> 1 | F12: =IF(INTRO!$E$39<>"Non endémique",COUNTRY_INFO!R12,"Non requis") -> 0 | G12: =IF(COUNTRY_INFO!H12=1, IF($E12=1,IF(ALB_MBD!$J12<>" ",COUNTRY_INFO!F12+COUNTRY_INFO!G12-ALB_MBD!$J12,COUNTRY_INFO!F12+COUNTRY_INFO!G12), 0),0) -> 0 | H12: =IF(INTRO!$E$39<>"Endémique",0, IF(AND(COUNTRY_INFO!$I12=1,$F12<>0),IF(COUNTRY_INFO!N12>=(COUNTRY_INFO!F12+COUNTRY_INFO!G12),COUNTRY_INFO!F12+COUNTRY_INFO!G12,COUNTRY_INFO!$N12), 0)) -> 0 | J12: 0 | K12: 0 | L12: 0 | M12: 0 | N12: 0 | P12: 0 | Q12: 0
A13: =IF(INTRO!$E$39="Non endémique"," ",IF(COUNTRY_INFO!A13=0," ",COUNTRY_INFO!A13)) -> CAR | B13: =IF(INTRO!$E$39="Non endémique"," ",IF(COUNTRY_INFO!B13=0," ",COUNTRY_INFO!B13)) -> RS N° 1 | C13: =IF(INTRO!$E$39="Non endémique"," ",IF(COUNTRY_INFO!C13=0," ",COUNTRY_INFO!C13)) -> MBAIKI | D13: =IF(INTRO!$E$39="Non endémique",0,IF(INTRO!$E$39="Endémique mais pas de CP",IF(COUNTRY_INFO!$H13=1,COUNTRY_INFO!F13+COUNTRY_INFO!G13,0),IF(COUNTRY_INFO!$H13=1,COUNTRY_INFO!F13+COUNTRY_INFO!G13,IF(COUNTRY_INFO!$I13=1,IF(COUNTRY_INFO!N13>=(COUNTRY_INFO!F13+COUNTRY_INFO!G13),COUNTRY_INFO!F13+COUNTRY_INFO!G13,COUNTRY_INFO!$N13),0)))) -> 183350 | E13: =IF(AND(INTRO!$E$39="Non endémique",INTRO!$E$37="Non endémique"),"Non requis",IF(INTRO!$E$39="Non endémique","Traiter avec DEC",COUNTRY_INFO!Q13)) -> 1 | F13: =IF(INTRO!$E$39<>"Non endémique",COUNTRY_INFO!R13,"Non requis") -> 0 | G13: =IF(COUNTRY_INFO!H13=1, IF($E13=1,IF(ALB_MBD!$J13<>" ",COUNTRY_INFO!F13+COUNTRY_INFO!G13-ALB_MBD!$J13,COUNTRY_INFO!F13+COUNTRY_INFO!G13), 0),0) -> 0 | H13: =IF(INTRO!$E$39<>"Endémique",0, IF(AND(COUNTRY_INFO!$I13=1,$F13<>0),IF(COUNTRY_INFO!N13>=(COUNTRY_INFO!F13+COUNTRY_INFO!G13),COUNTRY_INFO!F13+COUNTRY_INFO!G13,COUNTRY_INFO!$N13), 0)) -> 0 | J13: 0 | K13: 0 | L13: 0 | M13: 0 | N13: 0 | P13: 0 | Q13: 0
A14: =IF(INTRO!$E$39="Non endémique"," ",IF(COUNTRY_INFO!A14=0," ",COUNTRY_INFO!A14)) -> CAR | B14: =IF(INTRO!$E$39="Non endémique"," ",IF(COUNTRY_INFO!B14=0," ",COUNTRY_INFO!B14)) -> RS N° 2 | C14: =IF(INTRO!$E$39="Non endémique"," ",IF(COUNTRY_INFO!C14=0," ",COUNTRY_INFO!C14)) -> BERBERATI | D14: =IF(INTRO!$E$39="Non endémique",0,IF(INTRO!$E$39="Endémique mais pas de CP",IF(COUNTRY_INFO!$H14=1,COUNTRY_INFO!F14+COUNTRY_INFO!G14,0),IF(COUNTRY_INFO!$H14=1,COUNTRY_INFO!F14+COUNTRY_INFO!G14,IF(COUNTRY_INFO!$I14=1,IF(COUNTRY_INFO!N14>=(COUNTRY_INFO!F14+COUNTRY_INFO!G14),COUNTRY_INFO!F14+COUNTRY_INFO!G14,COUNTRY_INFO!$N14),0)))) -> 157034 | E14: =IF(AND(INTRO!$E$39="Non endémique",INTRO!$E$37="Non endémique"),"Non requis",IF(INTRO!$E$39="Non endémique","Traiter avec DEC",COUNTRY_INFO!Q14)) -> 1 | F14: =IF(INTRO!$E$39<>"Non endémique",COUNTRY_INFO!R14,"Non requis") -> 0 | G14: =IF(COUNTRY_INFO!H14=1, IF($E14=1,IF(ALB_MBD!$J14<>" ",COUNTRY_INFO!F14+COUNTRY_INFO!G14-ALB_MBD!$J14,COUNTRY_INFO!F14+COUNTRY_INFO!G14), 0),0) -> 0 | H14: =IF(INTRO!$E$39<>"Endémique",0, IF(AND(COUNTRY_INFO!$I14=1,$F14<>0),IF(COUNTRY_INFO!N14>=(COUNTRY_INFO!F14+COUNTRY_INFO!G14),COUNTRY_INFO!F14+COUNTRY_INFO!G14,COUNTRY_INFO!$N14), 0)) -> 0 | J14: 0 | K14: 0 | L14: 0 | M14: 0 | N14: 0 | P14: 0 | Q14: 0
A15: =IF(INTRO!$E$39="Non endémique"," ",IF(COUNTRY_INFO!A15=0," ",COUNTRY_INFO!A15)) -> CAR | B15: =IF(INTRO!$E$39="Non endémique"," ",IF(COUNTRY_INFO!B15=0," ",COUNTRY_INFO!B15)) -> RS N° 2 | C15: =IF(INTRO!$E$39="Non endémique"," ",IF(COUNTRY_INFO!C15=0," ",COUNTRY_INFO!C15)) -> CARNOT-GADZI | D15: =IF(INTRO!$E$39="Non endémique",0,IF(INTRO!$E$39="Endémique mais pas de CP",IF(COUNTRY_INFO!$H15=1,COUNTRY_INFO!F15+COUNTRY_INFO!G15,0),IF(COUNTRY_INFO!$H15=1,COUNTRY_INFO!F15+COUNTRY_INFO!G15,IF(COUNTRY_INFO!$I15=1,IF(COUNTRY_INFO!N15>=(COUNTRY_INFO!F15+COUNTRY_INFO!G15),COUNTRY_INFO!F15+COUNTRY_INFO!G15,COUNTRY_INFO!$N15),0)))) -> 168669 | E15: =IF(AND(INTRO!$E$39="Non endémique",INTRO!$E$37="Non endémique"),"Non requis",IF(INTRO!$E$39="Non endémique","Traiter avec DEC",COUNTRY_INFO!Q15)) -> 1 | F15: =IF(INTRO!$E$39<>"Non endémique",COUNTRY_INFO!R15,"Non requis") -> 0 | G15: =IF(COUNTRY_INFO!H15=1, IF($E15=1,IF(ALB_MBD!$J15<>" ",COUNTRY_INFO!F15+COUNTRY_INFO!G15-ALB_MBD!$J15,COUNTRY_INFO!F15+COUNTRY_INFO!G15), 0),0) -> 0 | H15: =IF(INTRO!$E$39<>"Endémique",0, IF(AND(COUNTRY_INFO!$I15=1,$F15<>0),IF(COUNTRY_INFO!N15>=(COUNTRY_INFO!F15+COUNTRY_INFO!G15),COUNTRY_INFO!F15+COUNTRY_INFO!G15,COUNTRY_INFO!$N15), 0)) -> 0 | J15: 0 | K15: 0 | L15: 0 | M15: 0 | N15: 0 | P15: 0 | Q15: 0
A16: =IF(INTRO!$E$39="Non endémique"," ",IF(COUNTRY_INFO!A16=0," ",COUNTRY_INFO!A16)) -> CAR | B16: =IF(INTRO!$E$39="Non endémique"," ",IF(COUNTRY_INFO!B16=0," ",COUNTRY_INFO!B16)) -> RS N° 2 | C16: =IF(INTRO!$E$39="Non endémique"," ",IF(COUNTRY_INFO!C16=0," ",COUNTRY_INFO!C16)) -> GAMBOULA | D16: =IF(INTRO!$E$39="Non endémique",0,IF(INTRO!$E$39="Endémique mais pas de CP",IF(COUNTRY_INFO!$H16=1,COUNTRY_INFO!F16+COUNTRY_INFO!G16,0),IF(COUNTRY_INFO!$H16=1,COUNTRY_INFO!F16+COUNTRY_INFO!G16,IF(COUNTRY_INFO!$I16=1,IF(COUNTRY_INFO!N16>=(COUNTRY_INFO!F16+COUNTRY_INFO!G16),COUNTRY_INFO!F16+COUNTRY_INFO!G16,COUNTRY_INFO!$N16),0)))) -> 93328 | E16: =IF(AND(INTRO!$E$39="Non endémique",INTRO!$E$37="Non endémique"),"Non requis",IF(INTRO!$E$39="Non endémique","Traiter avec DEC",COUNTRY_INFO!Q16)) -> 1 | F16: =IF(INTRO!$E$39<>"Non endémique",COUNTRY_INFO!R16,"Non requis") -> 0 | G16: =IF(COUNTRY_INFO!H16=1, IF($E16=1,IF(ALB_MBD!$J16<>" ",COUNTRY_INFO!F16+COUNTRY_INFO!G16-ALB_MBD!$J16,COUNTRY_INFO!F16+COUNTRY_INFO!G16), 0),0) -> 0 | H16: =IF(INTRO!$E$39<>"Endémique",0, IF(AND(COUNTRY_INFO!$I16=1,$F16<>0),IF(COUNTRY_INFO!N16>=(COUNTRY_INFO!F16+COUNTRY_INFO!G16),COUNTRY_INFO!F16+COUNTRY_INFO!G16,COUNTRY_INFO!$N16), 0)) -> 0 | J16: 0 | K16: 0 | L16: 0 | M16: 0 | N16: 0 | P16: 0 | Q16: 0
A17: =IF(INTRO!$E$39="Non endémique"," ",IF(COUNTRY_INFO!A17=0," ",COUNTRY_INFO!A17)) -> CAR | B17: =IF(INTRO!$E$39="Non endémique"," ",IF(COUNTRY_INFO!B17=0," ",COUNTRY_INFO!B17)) -> RS N° 2 | C17: =IF(INTRO!$E$39="Non endémique"," ",IF(COUNTRY_INFO!C17=0," ",COUNTRY_INFO!C17)) -> BABOUA-ABBA | D17: =IF(INTRO!$E$39="Non endémique",0,IF(INTRO!$E$39="Endémique mais pas de CP",IF(COUNTRY_INFO!$H17=1,COUNTRY_INFO!F17+COUNTRY_INFO!G17,0),IF(COUNTRY_INFO!$H17=1,COUNTRY_INFO!F17+COUNTRY_INFO!G17,IF(COUNTRY_INFO!$I17=1,IF(COUNTRY_INFO!N17>=(COUNTRY_INFO!F17+COUNTRY_INFO!G17),COUNTRY_INFO!F17+COUNTRY_INFO!G17,COUNTRY_INFO!$N17),0)))) -> 87004 | E17: =IF(AND(INTRO!$E$39="Non endémique",INTRO!$E$37="Non endémique"),"Non requis",IF(INTRO!$E$39="Non endémique","Traiter avec DEC",COUNTRY_INFO!Q17)) -> 1 | F17: =IF(INTRO!$E$39<>"Non endémique",COUNTRY_INFO!R17,"Non requis") -> 0 | G17: =IF(COUNTRY_INFO!H17=1, IF($E17=1,IF(ALB_MBD!$J17<>" ",COUNTRY_INFO!F17+COUNTRY_INFO!G17-ALB_MBD!$J17,COUNTRY_INFO!F17+COUNTRY_INFO!G17), 0),0) -> 0 | H17: =IF(INTRO!$E$39<>"Endémique",0, IF(AND(COUNTRY_INFO!$I17=1,$F17<>0),IF(COUNTRY_INFO!N17>=(COUNTRY_INFO!F17+COUNTRY_INFO!G17),COUNTRY_INFO!F17+COUNTRY_INFO!G17,COUNTRY_INFO!$N17), 0)) -> 0 | J17: 0 | K17: 0 | L17: 0 | M17: 0 | N17: 0 | P17: 0 | Q17: 0
A18: =IF(INTRO!$E$39="Non endémique"," ",IF(COUNTRY_INFO!A18=0," ",COUNTRY_INFO!A18)) -> CAR | B18: =IF(INTRO!$E$39="Non endémique"," ",IF(COUNTRY_INFO!B18=0," ",COUNTRY_INFO!B18)) -> RS N° 2 | C18: =IF(INTRO!$E$39="Non endémique"," ",IF(COUNTRY_INFO!C18=0," ",COUNTRY_INFO!C18)) -> BOUAR-BAORO | D18: =IF(INTRO!$E$39="Non endémique",0,IF(INTRO!$E$39="Endémique mais pas de CP",IF(COUNTRY_INFO!$H18=1,COUNTRY_INFO!F18+COUNTRY_INFO!G18,0),IF(COUNTRY_INFO!$H18=1,COUNTRY_INFO!F18+COUNTRY_INFO!G18,IF(COUNTRY_INFO!$I18=1,IF(COUNTRY_INFO!N18>=(COUNTRY_INFO!F18+COUNTRY_INFO!G18),COUNTRY_INFO!F18+COUNTRY_INFO!G18,COUNTRY_INFO!$N18),0)))) -> 181401 | E18: =IF(AND(INTRO!$E$39="Non endémique",INTRO!$E$37="Non endémique"),"Non requis",IF(INTRO!$E$39="Non endémique","Traiter avec DEC",COUNTRY_INFO!Q18)) -> 1 | F18: =IF(INTRO!$E$39<>"Non endémique",COUNTRY_INFO!R18,"Non requis") -> 0 | G18: =IF(COUNTRY_INFO!H18=1, IF($E18=1,IF(ALB_MBD!$J18<>" ",COUNTRY_INFO!F18+COUNTRY_INFO!G18-ALB_MBD!$J18,COUNTRY_INFO!F18+COUNTRY_INFO!G18), 0),0) -> 0 | H18: =IF(INTRO!$E$39<>"Endémique",0, IF(AND(COUNTRY_INFO!$I18=1,$F18<>0),IF(COUNTRY_INFO!N18>=(COUNTRY_INFO!F18+COUNTRY_INFO!G18),COUNTRY_INFO!F18+COUNTRY_INFO!G18,COUNTRY_INFO!$N18), 0)) -> 0 | J18: 0 | K18: 0 | L18: 0 | M18: 0 | N18: 0 | P18: 0 | Q18: 0
A19: =IF(INTRO!$E$39="Non endémique"," ",IF(COUNTRY_INFO!A19=0," ",COUNTRY_INFO!A19)) -> CAR | B19: =IF(INTRO!$E$39="Non endémique"," ",IF(COUNTRY_INFO!B19=0," ",COUNTRY_INFO!B19)) -> RS N° 2 | C19: =IF(INTRO!$E$39="Non endémique"," ",IF(COUNTRY_INFO!C19=0," ",COUNTRY_INFO!C19)) -> SANGHA-MBAERE | D19: =IF(INTRO!$E$39="Non endémique",0,IF(INTRO!$E$39="Endémique mais pas de CP",IF(COUNTRY_INFO!$H19=1,COUNTRY_INFO!F19+COUNTRY_INFO!G19,0),IF(COUNTRY_INFO!$H19=1,COUNTRY_INFO!F19+COUNTRY_INFO!G19,IF(COUNTRY_INFO!$I19=1,IF(COUNTRY_INFO!N19>=(COUNTRY_INFO!F19+COUNTRY_INFO!G19),COUNTRY_INFO!F19+COUNTRY_INFO!G19,COUNTRY_INFO!$N19),0)))) -> 116102 | E19: =IF(AND(INTRO!$E$39="Non endémique",INTRO!$E$37="Non endémique"),"Non requis",IF(INTRO!$E$39="Non endémique","Traiter avec DEC",COUNTRY_INFO!Q19)) -> 1 | F19: =IF(INTRO!$E$39<>"Non endémique",COUNTRY_INFO!R19,"Non requis") -> 0 | G19: =IF(COUNTRY_INFO!H19=1, IF($E19=1,IF(ALB_MBD!$J19<>" ",COUNTRY_INFO!F19+COUNTRY_INFO!G19-ALB_MBD!$J19,COUNTRY_INFO!F19+COUNTRY_INFO!G19), 0),0) -> 0 | H19: =IF(INTRO!$E$39<>"Endémique",0, IF(AND(COUNTRY_INFO!$I19=1,$F19<>0),IF(COUNTRY_INFO!N19>=(COUNTRY_INFO!F19+COUNTRY_INFO!G19),COUNTRY_INFO!F19+COUNTRY_INFO!G19,COUNTRY_INFO!$N19), 0)) -> 0 | J19: 0 | K19: 0 | L19: 0 | M19: 0 | N19: 0 | P19: 0 | Q19: 0
A20: =IF(INTRO!$E$39="Non endémique"," ",IF(COUNTRY_INFO!A20=0," ",COUNTRY_INFO!A20)) -> CAR | B20: =IF(INTRO!$E$39="Non endémique"," ",IF(COUNTRY_INFO!B20=0," ",COUNTRY_INFO!B20)) -> RS N° 3 | C20: =IF(INTRO!$E$39="Non endémique"," ",IF(COUNTRY_INFO!C20=0," ",COUNTRY_INFO!C20)) -> BATANGAFO | D20: =IF(INTRO!$E$39="Non endémique",0,IF(INTRO!$E$39="Endémique mais pas de CP",IF(COUNTRY_INFO!$H20=1,COUNTRY_INFO!F20+COUNTRY_INFO!G20,0),IF(COUNTRY_INFO!$H20=1,COUNTRY_INFO!F20+COUNTRY_INFO!G20,IF(COUNTRY_INFO!$I20=1,IF(COUNTRY_INFO!N20>=(COUNTRY_INFO!F20+COUNTRY_INFO!G20),COUNTRY_INFO!F20+COUNTRY_INFO!G20,COUNTRY_INFO!$N20),0)))) -> 118437 | E20: =IF(AND(INTRO!$E$39="Non endémique",INTRO!$E$37="Non endémique"),"Non requis",IF(INTRO!$E$39="Non endémique","Traiter avec DEC",COUNTRY_INFO!Q20)) -> 1 | F20: =IF(INTRO!$E$39<>"Non endémique",COUNTRY_INFO!R20,"Non requis") -> 1 | G20: =IF(COUNTRY_INFO!H20=1, IF($E20=1,IF(ALB_MBD!$J20<>" ",COUNTRY_INFO!F20+COUNTRY_INFO!G20-ALB_MBD!$J20,COUNTRY_INFO!F20+COUNTRY_INFO!G20), 0),0) -> 118437 | H20: =IF(INTRO!$E$39<>"Endémique",0, IF(AND(COUNTRY_INFO!$I20=1,$F20<>0),IF(COUNTRY_INFO!N20>=(COUNTRY_INFO!F20+COUNTRY_INFO!G20),COUNTRY_INFO!F20+COUNTRY_INFO!G20,COUNTRY_INFO!$N20), 0)) -> 118437 | J20: 118437 | K20: 0 | L20: 0 | M20: 331623.6 | N20: 331623.6 | P20: 331623.6 | Q20: 664
A21: =IF(INTRO!$E$39="Non endémique"," ",IF(COUNTRY_INFO!A21=0," ",COUNTRY_INFO!A21)) -> CAR | B21: =IF(INTRO!$E$39="Non endémique"," ",IF(COUNTRY_INFO!B21=0," ",COUNTRY_INFO!B21)) -> RS N° 3 | C21: =IF(INTRO!$E$39="Non endémique"," ",IF(COUNTRY_INFO!C21=0," ",COUNTRY_INFO!C21)) -> BOUCA | D21: =IF(INTRO!$E$39="Non endémique",0,IF(INTRO!$E$39="Endémique mais pas de CP",IF(COUNTRY_INFO!$H21=1,COUNTRY_INFO!F21+COUNTRY_INFO!G21,0),IF(COUNTRY_INFO!$H21=1,COUNTRY_INFO!F21+COUNTRY_INFO!G21,IF(COUNTRY_INFO!$I21=1,IF(COUNTRY_INFO!N21>=(COUNTRY_INFO!F21+COUNTRY_INFO!G21),COUNTRY_INFO!F21+COUNTRY_INFO!G21,COUNTRY_INFO!$N21),0)))) -> 64290 | E21: =IF(AND(INTRO!$E$39="Non endémique",INTRO!$E$37="Non endémique"),"Non requis",IF(INTRO!$E$39="Non endémique","Traiter avec DEC",COUNTRY_INFO!Q21)) -> 1 | F21: =IF(INTRO!$E$39<>"Non endémique",COUNTRY_INFO!R21,"Non requis") -> 1 | G21: =IF(COUNTRY_INFO!H21=1, IF($E21=1,IF(ALB_MBD!$J21<>" ",COUNTRY_INFO!F21+COUNTRY_INFO!G21-ALB_MBD!$J21,COUNTRY_INFO!F21+COUNTRY_INFO!G21), 0),0) -> 64290 | H21: =IF(INTRO!$E$39<>"Endémique",0, IF(AND(COUNTRY_INFO!$I21=1,$F21<>0),IF(COUNTRY_INFO!N21>=(COUNTRY_INFO!F21+COUNTRY_INFO!G21),COUNTRY_INFO!F21+COUNTRY_INFO!G21,COUNTRY_INFO!$N21), 0)) -> 64290 | J21: 64290 | K21: 0 | L21: 0 | M21: 180012 | N21: 180012 | P21: 180012 | Q21: 361
A22: =IF(INTRO!$E$39="Non endémique"," ",IF(COUNTRY_INFO!A22=0," ",COUNTRY_INFO!A22)) -> CAR | B22: =IF(INTRO!$E$39="Non endémique"," ",IF(COUNTRY_INFO!B22=0," ",COUNTRY_INFO!B22)) -> RS N° 3 | C22: =IF(INTRO!$E$39="Non endémique"," ",IF(COUNTRY_INFO!C22=0," ",COUNTRY_INFO!C22)) -> BOSSANGOA | D22: =IF(INTRO!$E$39="Non endémique",0,IF(INTRO!$E$39="Endémique mais pas de CP",IF(COUNTRY_INFO!$H22=1,COUNTRY_INFO!F22+COUNTRY_INFO!G22,0),IF(COUNTRY_INFO!$H22=1,COUNTRY_INFO!F22+COUNTRY_INFO!G22,IF(COUNTRY_INFO!$I22=1,IF(COUNTRY_INFO!N22>=(COUNTRY_INFO!F22+COUNTRY_INFO!G22),COUNTRY_INFO!F22+COUNTRY_INFO!G22,COUNTRY_INFO!$N22),0)))) -> 144045 | E22: =IF(AND(INTRO!$E$39="Non endémique",INTRO!$E$37="Non endémique"),"Non requis",IF(INTRO!$E$39="Non endémique","Traiter avec DEC",COUNTRY_INFO!Q22)) -> 1 | F22: =IF(INTRO!$E$39<>"Non endémique",COUNTRY_INFO!R22,"Non requis") -> 1 | G22: =IF(COUNTRY_INFO!H22=1, IF($E22=1,IF(ALB_MBD!$J22<>" ",COUNTRY_INFO!F22+COUNTRY_INFO!G22-ALB_MBD!$J22,COUNTRY_INFO!F22+COUNTRY_INFO!G22), 0),0) -> 144045 | H22: =IF(INTRO!$E$39<>"Endémique",0, IF(AND(COUNTRY_INFO!$I22=1,$F22<>0),IF(COUNTRY_INFO!N22>=(COUNTRY_INFO!F22+COUNTRY_INFO!G22),COUNTRY_INFO!F22+COUNTRY_INFO!G22,COUNTRY_INFO!$N22), 0)) -> 144045 | J22: 144045 | K22: 0 | L22: 0 | M22: 403326 | N22: 403326 | P22: 403326 | Q22: 807
A23: =IF(INTRO!$E$39="Non endémique"," ",IF(COUNTRY_INFO!A23=0," ",COUNTRY_INFO!A23)) -> CAR | B23: =IF(INTRO!$E$39="Non endémique"," ",IF(COUNTRY_INFO!B23=0," ",COUNTRY_INFO!B23)) -> RS N° 3 | C23: =IF(INTRO!$E$39="Non endémique"," ",IF(COUNTRY_INFO!C23=0," ",COUNTRY_INFO!C23)) -> NANGA-BOGUILA | D23: =IF(INTRO!$E$39="Non endémique",0,IF(INTRO!$E$39="Endémique mais pas de CP",IF(COUNTRY_INFO!$H23=1,COUNTRY_INFO!F23+COUNTRY_INFO!G23,0),IF(COUNTRY_INFO!$H23=1,COUNTRY_INFO!F23+COUNTRY_INFO!G23,IF(COUNTRY_INFO!$I23=1,IF(COUNTRY_INFO!N23>=(COUNTRY_INFO!F23+COUNTRY_INFO!G23),COUNTRY_INFO!F23+COUNTRY_INFO!G23,COUNTRY_INFO!$N23),0)))) -> 97341 | E23: =IF(AND(INTRO!$E$39="Non endémique",INTRO!$E$37="Non endémique"),"Non requis",IF(INTRO!$E$39="Non endémique","Traiter avec DEC",COUNTRY_INFO!Q23)) -> 1 | F23: =IF(INTRO!$E$39<>"Non endémique",COUNTRY_INFO!R23,"Non requis") -> 1 | G23: =IF(COUNTRY_INFO!H23=1, IF($E23=1,IF(ALB_MBD!$J23<>" ",COUNTRY_INFO!F23+COUNTRY_INFO!G23-ALB_MBD!$J23,COUNTRY_INFO!F23+COUNTRY_INFO!G23), 0),0) -> 97341 | H23: =IF(INTRO!$E$39<>"Endémique",0, IF(AND(COUNTRY_INFO!$I23=1,$F23<>0),IF(COUNTRY_INFO!N23>=(COUNTRY_INFO!F23+COUNTRY_INFO!G23),COUNTRY_INFO!F23+COUNTRY_INFO!G23,COUNTRY_INFO!$N23), 0)) -> 97341 | J23: 97341 | K23: 0 | L23: 0 | M23: 272554.8 | N23: 272554.8 | P23: 272554.8 | Q23: 546
A24: =IF(INTRO!$E$39="Non endémique"," ",IF(COUNTRY_INFO!A24=0," ",COUNTRY_INFO!A24)) -> CAR | B24: =IF(INTRO!$E$39="Non endémique"," ",IF(COUNTRY_INFO!B24=0," ",COUNTRY_INFO!B24)) -> RS N° 3 | C24: =IF(INTRO!$E$39="Non endémique"," ",IF(COUNTRY_INFO!C24=0," ",COUNTRY_INFO!C24)) -> BOCARANGA-KOUI | D24: =IF(INTRO!$E$39="Non endémique",0,IF(INTRO!$E$39="Endémique mais pas de CP",IF(COUNTRY_INFO!$H24=1,COUNTRY_INFO!F24+COUNTRY_INFO!G24,0),IF(COUNTRY_INFO!$H24=1,COUNTRY_INFO!F24+COUNTRY_INFO!G24,IF(COUNTRY_INFO!$I24=1,IF(COUNTRY_INFO!N24>=(COUNTRY_INFO!F24+COUNTRY_INFO!G24),COUNTRY_INFO!F24+COUNTRY_INFO!G24,COUNTRY_INFO!$N24),0)))) -> 126280 | E24: =IF(AND(INTRO!$E$39="Non endémique",INTRO!$E$37="Non endémique"),"Non requis",IF(INTRO!$E$39="Non endémique","Traiter avec DEC",COUNTRY_INFO!Q24)) -> 1 | F24: =IF(INTRO!$E$39<>"Non endémique",COUNTRY_INFO!R24,"Non requis") -> 1 | G24: =IF(COUNTRY_INFO!H24=1, IF($E24=1,IF(ALB_MBD!$J24<>" ",COUNTRY_INFO!F24+COUNTRY_INFO!G24-ALB_MBD!$J24,COUNTRY_INFO!F24+COUNTRY_INFO!G24), 0),0) -> 126280 | H24: =IF(INTRO!$E$39<>"Endémique",0, IF(AND(COUNTRY_INFO!$I24=1,$F24<>0),IF(COUNTRY_INFO!N24>=(COUNTRY_INFO!F24+COUNTRY_INFO!G24),COUNTRY_INFO!F24+COUNTRY_INFO!G24,COUNTRY_INFO!$N24), 0)) -> 126280 | J24: 126280 | K24: 0 | L24: 0 | M24: 353584 | N24: 353584 | P24: 353584 | Q24: 708
A25: =IF(INTRO!$E$39="Non endémique"," ",IF(COUNTRY_INFO!A25=0," ",COUNTRY_INFO!A25)) -> CAR | B25: =IF(INTRO!$E$39="Non endémique"," ",IF(COUNTRY_INFO!B25=0," ",COUNTRY_INFO!B25)) -> RS N° 3 | C25: =IF(INTRO!$E$39="Non endémique"," ",IF(COUNTRY_INFO!C25=0," ",COUNTRY_INFO!C25)) -> BOZOUM-BOSSEMPTELE | D25: =IF(INTRO!$E$39="Non endémique",0,IF(INTRO!$E$39="Endémique mais pas de CP",IF(COUNTRY_INFO!$H25=1,COUNTRY_INFO!F25+COUNTRY_INFO!G25,0),IF(COUNTRY_INFO!$H25=1,COUNTRY_INFO!F25+COUNTRY_INFO!G25,IF(COUNTRY_INFO!$I25=1,IF(COUNTRY_INFO!N25>=(COUNTRY_INFO!F25+COUNTRY_INFO!G25),COUNTRY_INFO!F25+COUNTRY_INFO!G25,COUNTRY_INFO!$N25),0)))) -> 82837 | E25: =IF(AND(INTRO!$E$39="Non endémique",INTRO!$E$37="Non endémique"),"Non requis",IF(INTRO!$E$39="Non endémique","Traiter avec DEC",COUNTRY_INFO!Q25)) -> 1 | F25: =IF(INTRO!$E$39<>"Non endémique",COUNTRY_INFO!R25,"Non requis") -> 1 | G25: =IF(COUNTRY_INFO!H25=1, IF($E25=1,IF(ALB_MBD!$J25<>" ",COUNTRY_INFO!F25+COUNTRY_INFO!G25-ALB_MBD!$J25,COUNTRY_INFO!F25+COUNTRY_INFO!G25), 0),0) -> 82837 | H25: =IF(INTRO!$E$39<>"Endémique",0, IF(AND(COUNTRY_INFO!$I25=1,$F25<>0),IF(COUNTRY_INFO!N25>=(COUNTRY_INFO!F25+COUNTRY_INFO!G25),COUNTRY_INFO!F25+COUNTRY_INFO!G25,COUNTRY_INFO!$N25), 0)) -> 82837 | J25: 82837 | K25: 0 | L25: 0 | M25: 231943.6 | N25: 231943.6 | P25: 231943.6 | Q25: 464
A26: =IF(INTRO!$E$39="Non endémique"," ",IF(COUNTRY_INFO!A26=0," ",COUNTRY_INFO!A26)) -> CAR | B26: =IF(INTRO!$E$39="Non endémique"," ",IF(COUNTRY_INFO!B26=0," ",COUNTRY_INFO!B26)) -> RS N° 3 | C26: =IF(INTRO!$E$39="Non endémique"," ",IF(COUNTRY_INFO!C26=0," ",COUNTRY_INFO!C26)) -> NGAOUNDAYE | D26: =IF(INTRO!$E$39="Non endémique",0,IF(INTRO!$E$39="Endémique mais pas de CP",IF(COUNTRY_INFO!$H26=1,COUNTRY_INFO!F26+COUNTRY_INFO!G26,0),IF(COUNTRY_INFO!$H26=1,COUNTRY_INFO!F26+COUNTRY_INFO!G26,IF(COUNTRY_INFO!$I26=1,IF(COUNTRY_INFO!N26>=(COUNTRY_INFO!F26+COUNTRY_INFO!G26),COUNTRY_INFO!F26+COUNTRY_INFO!G26,COUNTRY_INFO!$N26),0)))) -> 102227 | E26: =IF(AND(INTRO!$E$39="Non endémique",INTRO!$E$37="Non endémique"),"Non requis",IF(INTRO!$E$39="Non endémique","Traiter avec DEC",COUNTRY_INFO!Q26)) -> 1 | F26: =IF(INTRO!$E$39<>"Non endémique",COUNTRY_INFO!R26,"Non requis") -> 1 | G26: =IF(COUNTRY_INFO!H26=1, IF($E26=1,IF(ALB_MBD!$J26<>" ",COUNTRY_INFO!F26+COUNTRY_INFO!G26-ALB_MBD!$J26,COUNTRY_INFO!F26+COUNTRY_INFO!G26), 0),0) -> 102227 | H26: =IF(INTRO!$E$39<>"Endémique",0, IF(AND(COUNTRY_INFO!$I26=1,$F26<>0),IF(COUNTRY_INFO!N26>=(COUNTRY_INFO!F26+COUNTRY_INFO!G26),COUNTRY_INFO!F26+COUNTRY_INFO!G26,COUNTRY_INFO!$N26), 0)) -> 102227 | J26: 102227 | K26: 0 | L26: 0 | M26: 286235.6 | N26: 286235.6 | P26: 286235.6 | Q26: 573
A27: =IF(INTRO!$E$39="Non endémique"," ",IF(COUNTRY_INFO!A27=0," ",COUNTRY_INFO!A27)) -> CAR | B27: =IF(INTRO!$E$39="Non endémique"," ",IF(COUNTRY_INFO!B27=0," ",COUNTRY_INFO!B27)) -> RS N° 3 | C27: =IF(INTRO!$E$39="Non endémique"," ",IF(COUNTRY_INFO!C27=0," ",COUNTRY_INFO!C27)) -> PAOUA | D27: =IF(INTRO!$E$39="Non endémique",0,IF(INTRO!$E$39="Endémique mais pas de CP",IF(COUNTRY_INFO!$H27=1,COUNTRY_INFO!F27+COUNTRY_INFO!G27,0),IF(COUNTRY_INFO!$H27=1,COUNTRY_INFO!F27+COUNTRY_INFO!G27,IF(COUNTRY_INFO!$I27=1,IF(COUNTRY_INFO!N27>=(COUNTRY_INFO!F27+COUNTRY_INFO!G27),COUNTRY_INFO!F27+COUNTRY_INFO!G27,COUNTRY_INFO!$N27),0)))) -> 183167 | E27: =IF(AND(INTRO!$E$39="Non endémique",INTRO!$E$37="Non endémique"),"Non requis",IF(INTRO!$E$39="Non endémique","Traiter avec DEC",COUNTRY_INFO!Q27)) -> 1 | F27: =IF(INTRO!$E$39<>"Non endémique",COUNTRY_INFO!R27,"Non requis") -> 1 | G27: =IF(COUNTRY_INFO!H27=1, IF($E27=1,IF(ALB_MBD!$J27<>" ",COUNTRY_INFO!F27+COUNTRY_INFO!G27-ALB_MBD!$J27,COUNTRY_INFO!F27+COUNTRY_INFO!G27), 0),0) -> 183167 | H27: =IF(INTRO!$E$39<>"Endémique",0, IF(AND(COUNTRY_INFO!$I27=1,$F27<>0),IF(COUNTRY_INFO!N27>=(COUNTRY_INFO!F27+COUNTRY_INFO!G27),COUNTRY_INFO!F27+COUNTRY_INFO!G27,COUNTRY_INFO!$N27), 0)) -> 183167 | J27: 183167 | K27: 0 | L27: 0 | M27: 512867.6 | N27: 512867.6 | P27: 512867.6 | Q27: 1026
A28: =IF(INTRO!$E$39="Non endémique"," ",IF(COUNTRY_INFO!A28=0," ",COUNTRY_INFO!A28)) -> CAR | B28: =IF(INTRO!$E$39="Non endémique"," ",IF(COUNTRY_INFO!B28=0," ",COUNTRY_INFO!B28)) -> RS N° 4 | C28: =IF(INTRO!$E$39="Non endémique"," ",IF(COUNTRY_INFO!C28=0," ",COUNTRY_INFO!C28)) -> KEMO | D28: =IF(INTRO!$E$39="Non endémique",0,IF(INTRO!$E$39="Endémique mais pas de CP",IF(COUNTRY_INFO!$H28=1,COUNTRY_INFO!F28+COUNTRY_INFO!G28,0),IF(COUNTRY_INFO!$H28=1,COUNTRY_INFO!F28+COUNTRY_INFO!G28,IF(COUNTRY_INFO!$I28=1,IF(COUNTRY_INFO!N28>=(COUNTRY_INFO!F28+COUNTRY_INFO!G28),COUNTRY_INFO!F28+COUNTRY_INFO!G28,COUNTRY_INFO!$N28),0)))) -> 136026 | E28: =IF(AND(INTRO!$E$39="Non endémique",INTRO!$E$37="Non endémique"),"Non requis",IF(INTRO!$E$39="Non endémique","Traiter avec DEC",COUNTRY_INFO!Q28)) -> 1 | F28: =IF(INTRO!$E$39<>"Non endémique",COUNTRY_INFO!R28,"Non requis") -> 1 | G28: =IF(COUNTRY_INFO!H28=1, IF($E28=1,IF(ALB_MBD!$J28<>" ",COUNTRY_INFO!F28+COUNTRY_INFO!G28-ALB_MBD!$J28,COUNTRY_INFO!F28+COUNTRY_INFO!G28), 0),0) -> 136026 | H28: =IF(INTRO!$E$39<>"Endémique",0, IF(AND(COUNTRY_INFO!$I28=1,$F28<>0),IF(COUNTRY_INFO!N28>=(COUNTRY_INFO!F28+COUNTRY_INFO!G28),COUNTRY_INFO!F28+COUNTRY_INFO!G28,COUNTRY_INFO!$N28), 0)) -> 136026 | J28: 136026 | K28: 0 | L28: 0 | M28: 380872.8 | N28: 380872.8 | P28: 380872.8 | Q28: 762
A29: =IF(INTRO!$E$39="Non endémique"," ",IF(COUNTRY_INFO!A29=0," ",COUNTRY_INFO!A29)) -> CAR | B29: =IF(INTRO!$E$39="Non endémique"," ",IF(COUNTRY_INFO!B29=0," ",COUNTRY_INFO!B29)) -> RS N° 4 | C29: =IF(INTRO!$E$39="Non endémique"," ",IF(COUNTRY_INFO!C29=0," ",COUNTRY_INFO!C29)) -> NANA-GRIBIZI | D29: =IF(INTRO!$E$39="Non endémique",0,IF(INTRO!$E$39="Endémique mais pas de CP",IF(COUNTRY_INFO!$H29=1,COUNTRY_INFO!F29+COUNTRY_INFO!G29,0),IF(COUNTRY_INFO!$H29=1,COUNTRY_INFO!F29+COUNTRY_INFO!G29,IF(COUNTRY_INFO!$I29=1,IF(COUNTRY_INFO!N29>=(COUNTRY_INFO!F29+COUNTRY_INFO!G29),COUNTRY_INFO!F29+COUNTRY_INFO!G29,COUNTRY_INFO!$N29),0)))) -> 135332 | E29: =IF(AND(INTRO!$E$39="Non endémique",INTRO!$E$37="Non endémique"),"Non requis",IF(INTRO!$E$39="Non endémique","Traiter avec DEC",COUNTRY_INFO!Q29)) -> 1 | F29: =IF(INTRO!$E$39<>"Non endémique",COUNTRY_INFO!R29,"Non requis") -> 1 | G29: =IF(COUNTRY_INFO!H29=1, IF($E29=1,IF(ALB_MBD!$J29<>" ",COUNTRY_INFO!F29+COUNTRY_INFO!G29-ALB_MBD!$J29,COUNTRY_INFO!F29+COUNTRY_INFO!G29), 0),0) -> 135332 | H29: =IF(INTRO!$E$39<>"Endémique",0, IF(AND(COUNTRY_INFO!$I29=1,$F29<>0),IF(COUNTRY_INFO!N29>=(COUNTRY_INFO!F29+COUNTRY_INFO!G29),COUNTRY_INFO!F29+COUNTRY_INFO!G29,COUNTRY_INFO!$N29), 0)) -> 135332 | J29: 135332 | K29: 0 | L29: 0 | M29: 378929.6 | N29: 378929.6 | P29: 378929.6 | Q29: 758
A30: =IF(INTRO!$E$39="Non endémique"," ",IF(COUNTRY_INFO!A30=0," ",COUNTRY_INFO!A30)) -> CAR | B30: =IF(INTRO!$E$39="Non endémique"," ",IF(COUNTRY_INFO!B30=0," ",COUNTRY_INFO!B30)) -> RS N° 4 | C30: =IF(INTRO!$E$39="Non endémique"," ",IF(COUNTRY_INFO!C30=0," ",COUNTRY_INFO!C30)) -> BAMBARI | D30: =IF(INTRO!$E$39="Non endémique",0,IF(INTRO!$E$39="Endémique mais pas de CP",IF(COUNTRY_INFO!$H30=1,COUNTRY_INFO!F30+COUNTRY_INFO!G30,0),IF(COUNTRY_INFO!$H30=1,COUNTRY_INFO!F30+COUNTRY_INFO!G30,IF(COUNTRY_INFO!$I30=1,IF(COUNTRY_INFO!N30>=(COUNTRY_INFO!F30+COUNTRY_INFO!G30),COUNTRY_INFO!F30+COUNTRY_INFO!G30,COUNTRY_INFO!$N30),0)))) -> 191779 | E30: =IF(AND(INTRO!$E$39="Non endémique",INTRO!$E$37="Non endémique"),"Non requis",IF(INTRO!$E$39="Non endémique","Traiter avec DEC",COUNTRY_INFO!Q30)) -> 1 | F30: =IF(INTRO!$E$39<>"Non endémique",COUNTRY_INFO!R30,"Non requis") -> 1 | G30: =IF(COUNTRY_INFO!H30=1, IF($E30=1,IF(ALB_MBD!$J30<>" ",COUNTRY_INFO!F30+COUNTRY_INFO!G30-ALB_MBD!$J30,COUNTRY_INFO!F30+COUNTRY_INFO!G30), 0),0) -> 191779 | H30: =IF(INTRO!$E$39<>"Endémique",0, IF(AND(COUNTRY_INFO!$I30=1,$F30<>0),IF(COUNTRY_INFO!N30>=(COUNTRY_INFO!F30+COUNTRY_INFO!G30),COUNTRY_INFO!F30+COUNTRY_INFO!G30,COUNTRY_INFO!$N30), 0)) -> 191779 | J30: 191779 | K30: 0 | L30: 0 | M30: 536981.2 | N30: 536981.2 | P30: 536981.2 | Q30: 1074
A31: =IF(INTRO!$E$39="Non endémique"," ",IF(COUNTRY_INFO!A31=0," ",COUNTRY_INFO!A31)) -> CAR | B31: =IF(INTRO!$E$39="Non endémique"," ",IF(COUNTRY_INFO!B31=0," ",COUNTRY_INFO!B31)) -> RS N° 4 | C31: =IF(INTRO!$E$39="Non endémique"," ",IF(COUNTRY_INFO!C31=0," ",COUNTRY_INFO!C31)) -> KOUANGO-GRIMARI | D31: =IF(INTRO!$E$39="Non endémique",0,IF(INTRO!$E$39="Endémique mais pas de CP",IF(COUNTRY_INFO!$H31=1,COUNTRY_INFO!F31+COUNTRY_INFO!G31,0),IF(COUNTRY_INFO!$H31=1,COUNTRY_INFO!F31+COUNTRY_INFO!G31,IF(COUNTRY_INFO!$I31=1,IF(COUNTRY_INFO!N31>=(COUNTRY_INFO!F31+COUNTRY_INFO!G31),COUNTRY_INFO!F31+COUNTRY_INFO!G31,COUNTRY_INFO!$N31),0)))) -> 126070 | E31: =IF(AND(INTRO!$E$39="Non endémique",INTRO!$E$37="Non endémique"),"Non requis",IF(INTRO!$E$39="Non endémique","Traiter avec DEC",COUNTRY_INFO!Q31)) -> 1 | F31: =IF(INTRO!$E$39<>"Non endémique",COUNTRY_INFO!R31,"Non requis") -> 1 | G31: =IF(COUNTRY_INFO!H31=1, IF($E31=1,IF(ALB_MBD!$J31<>" ",COUNTRY_INFO!F31+COUNTRY_INFO!G31-ALB_MBD!$J31,COUNTRY_INFO!F31+COUNTRY_INFO!G31), 0),0) -> 126070 | H31: =IF(INTRO!$E$39<>"Endémique",0, IF(AND(COUNTRY_INFO!$I31=1,$F31<>0),IF(COUNTRY_INFO!N31>=(COUNTRY_INFO!F31+COUNTRY_INFO!G31),COUNTRY_INFO!F31+COUNTRY_INFO!G31,COUNTRY_INFO!$N31), 0)) -> 126070 | J31: 126070 | K31: 0 | L31: 0 | M31: 352996 | N31: 352996 | P31: 352996 | Q31: 706
A32: =IF(INTRO!$E$39="Non endémique"," ",IF(COUNTRY_INFO!A32=0," ",COUNTRY_INFO!A32)) -> CAR | B32: =IF(INTRO!$E$39="Non endémique"," ",IF(COUNTRY_INFO!B32=0," ",COUNTRY_INFO!B32)) -> RS N° 5 | C32: =IF(INTRO!$E$39="Non endémique"," ",IF(COUNTRY_INFO!C32=0," ",COUNTRY_INFO!C32)) -> BAMINGUI-BANGORAN | D32: =IF(INTRO!$E$39="Non endémique",0,IF(INTRO!$E$39="Endémique mais pas de CP",IF(COUNTRY_INFO!$H32=1,COUNTRY_INFO!F32+COUNTRY_INFO!G32,0),IF(COUNTRY_INFO!$H32=1,COUNTRY_INFO!F32+COUNTRY_INFO!G32,IF(COUNTRY_INFO!$I32=1,IF(COUNTRY_INFO!N32>=(COUNTRY_INFO!F32+COUNTRY_INFO!G32),COUNTRY_INFO!F32+COUNTRY_INFO!G32,COUNTRY_INFO!$N32),0)))) -> 49657 | E32: =IF(AND(INTRO!$E$39="Non endémique",INTRO!$E$37="Non endémique"),"Non requis",IF(INTRO!$E$39="Non endémique","Traiter avec DEC",COUNTRY_INFO!Q32)) -> 1 | F32: =IF(INTRO!$E$39<>"Non endémique",COUNTRY_INFO!R32,"Non requis") -> 1 | G32: =IF(COUNTRY_INFO!H32=1, IF($E32=1,IF(ALB_MBD!$J32<>" ",COUNTRY_INFO!F32+COUNTRY_INFO!G32-ALB_MBD!$J32,COUNTRY_INFO!F32+COUNTRY_INFO!G32), 0),0) -> 49657 | H32: =IF(INTRO!$E$39<>"Endémique",0, IF(AND(COUNTRY_INFO!$I32=1,$F32<>0),IF(COUNTRY_INFO!N32>=(COUNTRY_INFO!F32+COUNTRY_INFO!G32),COUNTRY_INFO!F32+COUNTRY_INFO!G32,COUNTRY_INFO!$N32), 0)) -> 49657 | J32: 49657 | K32: 0 | L32: 0 | M32: 139039.6 | N32: 139039.6 | P32: 139039.6 | Q32: 279
A33: =IF(INTRO!$E$39="Non endémique"," ",IF(COUNTRY_INFO!A33=0," ",COUNTRY_INFO!A33)) -> CAR | B33: =IF(INTRO!$E$39="Non endémique"," ",IF(COUNTRY_INFO!B33=0," ",COUNTRY_INFO!B33)) -> RS N° 5 | C33: =IF(INTRO!$E$39="Non endémique"," ",IF(COUNTRY_INFO!C33=0," ",COUNTRY_INFO!C33)) -> HAUTE-KOTTO | D33: =IF(INTRO!$E$39="Non endémique",0,IF(INTRO!$E$39="Endémique mais pas de CP",IF(COUNTRY_INFO!$H33=1,COUNTRY_INFO!F33+COUNTRY_INFO!G33,0),IF(COUNTRY_INFO!$H33=1,COUNTRY_INFO!F33+COUNTRY_INFO!G33,IF(COUNTRY_INFO!$I33=1,IF(COUNTRY_INFO!N33>=(COUNTRY_INFO!F33+COUNTRY_INFO!G33),COUNTRY_INFO!F33+COUNTRY_INFO!G33,COUNTRY_INFO!$N33),0)))) -> 103744 | E33: =IF(AND(INTRO!$E$39="Non endémique",INTRO!$E$37="Non endémique"),"Non requis",IF(INTRO!$E$39="Non endémique","Traiter avec DEC",COUNTRY_INFO!Q33)) -> 1 | F33: =IF(INTRO!$E$39<>"Non endémique",COUNTRY_INFO!R33,"Non requis") -> 1 | G33: =IF(COUNTRY_INFO!H33=1, IF($E33=1,IF(ALB_MBD!$J33<>" ",COUNTRY_INFO!F33+COUNTRY_INFO!G33-ALB_MBD!$J33,COUNTRY_INFO!F33+COUNTRY_INFO!G33), 0),0) -> 103744 | H33: =IF(INTRO!$E$39<>"Endémique",0, IF(AND(COUNTRY_INFO!$I33=1,$F33<>0),IF(COUNTRY_INFO!N33>=(COUNTRY_INFO!F33+COUNTRY_INFO!G33),COUNTRY_INFO!F33+COUNTRY_INFO!G33,COUNTRY_INFO!$N33), 0)) -> 103744 | J33: 103744 | K33: 0 | L33: 0 | M33: 290483.2 | N33: 290483.2 | P33: 290483.2 | Q33: 581
A34: =IF(INTRO!$E$39="Non endémique"," ",IF(COUNTRY_INFO!A34=0," ",COUNTRY_INFO!A34)) -> CAR | B34: =IF(INTRO!$E$39="Non endémique"," ",IF(COUNTRY_INFO!B34=0," ",COUNTRY_INFO!B34)) -> RS N° 5 | C34: =IF(INTRO!$E$39="Non endémique"," ",IF(COUNTRY_INFO!C34=0," ",COUNTRY_INFO!C34)) -> VAKAGA | D34: =IF(INTRO!$E$39="Non endémique",0,IF(INTRO!$E$39="Endémique mais pas de CP",IF(COUNTRY_INFO!$H34=1,COUNTRY_INFO!F34+COUNTRY_INFO!G34,0),IF(COUNTRY_INFO!$H34=1,COUNTRY_INFO!F34+COUNTRY_INFO!G34,IF(COUNTRY_INFO!$I34=1,IF(COUNTRY_INFO!N34>=(COUNTRY_INFO!F34+COUNTRY_INFO!G34),COUNTRY_INFO!F34+COUNTRY_INFO!G34,COUNTRY_INFO!$N34),0)))) -> 60024 | E34: =IF(AND(INTRO!$E$39="Non endémique",INTRO!$E$37="Non endémique"),"Non requis",IF(INTRO!$E$39="Non endémique","Traiter avec DEC",COUNTRY_INFO!Q34)) -> 1 | F34: =IF(INTRO!$E$39<>"Non endémique",COUNTRY_INFO!R34,"Non requis") -> 0 | G34: =IF(COUNTRY_INFO!H34=1, IF($E34=1,IF(ALB_MBD!$J34<>" ",COUNTRY_INFO!F34+COUNTRY_INFO!G34-ALB_MBD!$J34,COUNTRY_INFO!F34+COUNTRY_INFO!G34), 0),0) -> 60024 | H34: =IF(INTRO!$E$39<>"Endémique",0, IF(AND(COUNTRY_INFO!$I34=1,$F34<>0),IF(COUNTRY_INFO!N34>=(COUNTRY_INFO!F34+COUNTRY_INFO!G34),COUNTRY_INFO!F34+COUNTRY_INFO!G34,COUNTRY_INFO!$N34), 0)) -> 0 | J34: 0 | K34: 168067.2 | L34: 0 | M34: 0 | N34: 168067.2 | P34: 168067.2 | Q34: 337
A35: =IF(INTRO!$E$39="Non endémique"," ",IF(COUNTRY_INFO!A35=0," ",COUNTRY_INFO!A35)) -> CAR | B35: =IF(INTRO!$E$39="Non endémique"," ",IF(COUNTRY_INFO!B35=0," ",COUNTRY_INFO!B35)) -> RS N° 6 | C35: =IF(INTRO!$E$39="Non endémique"," ",IF(COUNTRY_INFO!C35=0," ",COUNTRY_INFO!C35)) -> ALINDAO MINGALA | D35: =IF(INTRO!$E$39="Non endémique",0,IF(INTRO!$E$39="Endémique mais pas de CP",IF(COUNTRY_INFO!$H35=1,COUNTRY_INFO!F35+COUNTRY_INFO!G35,0),IF(COUNTRY_INFO!$H35=1,COUNTRY_INFO!F35+COUNTRY_INFO!G35,IF(COUNTRY_INFO!$I35=1,IF(COUNTRY_INFO!N35>=(COUNTRY_INFO!F35+COUNTRY_INFO!G35),COUNTRY_INFO!F35+COUNTRY_INFO!G35,COUNTRY_INFO!$N35),0)))) -> 105576 | E35: =IF(AND(INTRO!$E$39="Non endémique",INTRO!$E$37="Non endémique"),"Non requis",IF(INTRO!$E$39="Non endémique","Traiter avec DEC",COUNTRY_INFO!Q35)) -> 1 | F35: =IF(INTRO!$E$39<>"Non endémique",COUNTRY_INFO!R35,"Non requis") -> 1 | G35: =IF(COUNTRY_INFO!H35=1, IF($E35=1,IF(ALB_MBD!$J35<>" ",COUNTRY_INFO!F35+COUNTRY_INFO!G35-ALB_MBD!$J35,COUNTRY_INFO!F35+COUNTRY_INFO!G35), 0),0) -> 105576 | H35: =IF(INTRO!$E$39<>"Endémique",0, IF(AND(COUNTRY_INFO!$I35=1,$F35<>0),IF(COUNTRY_INFO!N35>=(COUNTRY_INFO!F35+COUNTRY_INFO!G35),COUNTRY_INFO!F35+COUNTRY_INFO!G35,COUNTRY_INFO!$N35), 0)) -> 105576 | J35: 105576 | K35: 0 | L35: 0 | M35: 295612.8 | N35: 295612.8 | P35: 295612.8 | Q35: 592
A36: =IF(INTRO!$E$39="Non endémique"," ",IF(COUNTRY_INFO!A36=0," ",COUNTRY_INFO!A36)) -> CAR | B36: =IF(INTRO!$E$39="Non endémique"," ",IF(COUNTRY_INFO!B36=0," ",COUNTRY_INFO!B36)) -> RS N° 6 | C36: =IF(INTRO!$E$39="Non endémique"," ",IF(COUNTRY_INFO!C36=0," ",COUNTRY_INFO!C36)) -> KEMBE SATEMA | D36: =IF(INTRO!$E$39="Non endémique",0,IF(INTRO!$E$39="Endémique mais pas de CP",IF(COUNTRY_INFO!$H36=1,COUNTRY_INFO!F36+COUNTRY_INFO!G36,0),IF(COUNTRY_INFO!$H36=1,COUNTRY_INFO!F36+COUNTRY_INFO!G36,IF(COUNTRY_INFO!$I36=1,IF(COUNTRY_INFO!N36>=(COUNTRY_INFO!F36+COUNTRY_INFO!G36),COUNTRY_INFO!F36+COUNTRY_INFO!G36,COUNTRY_INFO!$N36),0)))) -> 69396 | E36: =IF(AND(INTRO!$E$39="Non endémique",INTRO!$E$37="Non endémique"),"Non requis",IF(INTRO!$E$39="Non endémique","Traiter avec DEC",COUNTRY_INFO!Q36)) -> 1 | F36: =IF(INTRO!$E$39<>"Non endémique",COUNTRY_INFO!R36,"Non requis") -> 1 | G36: =IF(COUNTRY_INFO!H36=1, IF($E36=1,IF(ALB_MBD!$J36<>" ",COUNTRY_INFO!F36+COUNTRY_INFO!G36-ALB_MBD!$J36,COUNTRY_INFO!F36+COUNTRY_INFO!G36), 0),0) -> 69396 | H36: =IF(INTRO!$E$39<>"Endémique",0, IF(AND(COUNTRY_INFO!$I36=1,$F36<>0),IF(COUNTRY_INFO!N36>=(COUNTRY_INFO!F36+COUNTRY_INFO!G36),COUNTRY_INFO!F36+COUNTRY_INFO!G36,COUNTRY_INFO!$N36), 0)) -> 69396 | J36: 69396 | K36: 0 | L36: 0 | M36: 194308.8 | N36: 194308.8 | P36: 194308.8 | Q36: 389
A37: =IF(INTRO!$E$39="Non endémique"," ",IF(COUNTRY_INFO!A37=0," ",COUNTRY_INFO!A37)) -> CAR | B37: =IF(INTRO!$E$39="Non endémique"," ",IF(COUNTRY_INFO!B37=0," ",COUNTRY_INFO!B37)) -> RS N° 6 | C37: =IF(INTRO!$E$39="Non endémique"," ",IF(COUNTRY_INFO!C37=0," ",COUNTRY_INFO!C37)) -> MOBAYE-ZANGBA | D37: =IF(INTRO!$E$39="Non endémique",0,IF(INTRO!$E$39="Endémique mais pas de CP",IF(COUNTRY_INFO!$H37=1,COUNTRY_INFO!F37+COUNTRY_INFO!G37,0),IF(COUNTRY_INFO!$H37=1,COUNTRY_INFO!F37+COUNTRY_INFO!G37,IF(COUNTRY_INFO!$I37=1,IF(COUNTRY_INFO!N37>=(COUNTRY_INFO!F37+COUNTRY_INFO!G37),COUNTRY_INFO!F37+COUNTRY_INFO!G37,COUNTRY_INFO!$N37),0)))) -> 111220 | E37: =IF(AND(INTRO!$E$39="Non endémique",INTRO!$E$37="Non endémique"),"Non requis",IF(INTRO!$E$39="Non endémique","Traiter avec DEC",COUNTRY_INFO!Q37)) -> 1 | F37: =IF(INTRO!$E$39<>"Non endémique",COUNTRY_INFO!R37,"Non requis") -> 1 | G37: =IF(COUNTRY_INFO!H37=1, IF($E37=1,IF(ALB_MBD!$J37<>" ",COUNTRY_INFO!F37+COUNTRY_INFO!G37-ALB_MBD!$J37,COUNTRY_INFO!F37+COUNTRY_INFO!G37), 0),0) -> 111220 | H37: =IF(INTRO!$E$39<>"Endémique",0, IF(AND(COUNTRY_INFO!$I37=1,$F37<>0),IF(COUNTRY_INFO!N37>=(COUNTRY_INFO!F37+COUNTRY_INFO!G37),COUNTRY_INFO!F37+COUNTRY_INFO!G37,COUNTRY_INFO!$N37), 0)) -> 111220 | J37: 111220 | K37: 0 | L37: 0 | M37: 311416 | N37: 311416 | P37: 311416 | Q37: 623
A38: =IF(INTRO!$E$39="Non endémique"," ",IF(COUNTRY_INFO!A38=0," ",COUNTRY_INFO!A38)) -> CAR | B38: =IF(INTRO!$E$39="Non endémique"," ",IF(COUNTRY_INFO!B38=0," ",COUNTRY_INFO!B38)) -> RS N° 6 | C38: =IF(INTRO!$E$39="Non endémique"," ",IF(COUNTRY_INFO!C38=0," ",COUNTRY_INFO!C38)) -> BANGASSOU | D38: =IF(INTRO!$E$39="Non endémique",0,IF(INTRO!$E$39="Endémique mais pas de CP",IF(COUNTRY_INFO!$H38=1,COUNTRY_INFO!F38+COUNTRY_INFO!G38,0),IF(COUNTRY_INFO!$H38=1,COUNTRY_INFO!F38+COUNTRY_INFO!G38,IF(COUNTRY_INFO!$I38=1,IF(COUNTRY_INFO!N38>=(COUNTRY_INFO!F38+COUNTRY_INFO!G38),COUNTRY_INFO!F38+COUNTRY_INFO!G38,COUNTRY_INFO!$N38),0)))) -> 115234 | E38: =IF(AND(INTRO!$E$39="Non endémique",INTRO!$E$37="Non endémique"),"Non requis",IF(INTRO!$E$39="Non endémique","Traiter avec DEC",COUNTRY_INFO!Q38)) -> 1 | F38: =IF(INTRO!$E$39<>"Non endémique",COUNTRY_INFO!R38,"Non requis") -> 1 | G38: =IF(COUNTRY_INFO!H38=1, IF($E38=1,IF(ALB_MBD!$J38<>" ",COUNTRY_INFO!F38+COUNTRY_INFO!G38-ALB_MBD!$J38,COUNTRY_INFO!F38+COUNTRY_INFO!G38), 0),0) -> 115234 | H38: =IF(INTRO!$E$39<>"Endémique",0, IF(AND(COUNTRY_INFO!$I38=1,$F38<>0),IF(COUNTRY_INFO!N38>=(COUNTRY_INFO!F38+COUNTRY_INFO!G38),COUNTRY_INFO!F38+COUNTRY_INFO!G38,COUNTRY_INFO!$N38), 0)) -> 115234 | J38: 115234 | K38: 0 | L38: 0 | M38: 322655.2 | N38: 322655.2 | P38: 322655.2 | Q38: 646
A39: =IF(INTRO!$E$39="Non endémique"," ",IF(COUNTRY_INFO!A39=0," ",COUNTRY_INFO!A39)) -> CAR | B39: =IF(INTRO!$E$39="Non endémique"," ",IF(COUNTRY_INFO!B39=0," ",COUNTRY_INFO!B39)) -> RS N° 6 | C39: =IF(INTRO!$E$39="Non endémique"," ",IF(COUNTRY_INFO!C39=0," ",COUNTRY_INFO!C39)) -> OUANGO-GAMBO | D39: =IF(INTRO!$E$39="Non endémique",0,IF(INTRO!$E$39="Endémique mais pas de CP",IF(COUNTRY_INFO!$H39=1,COUNTRY_INFO!F39+COUNTRY_INFO!G39,0),IF(COUNTRY_INFO!$H39=1,COUNTRY_INFO!F39+COUNTRY_INFO!G39,IF(COUNTRY_INFO!$I39=1,IF(COUNTRY_INFO!N39>=(COUNTRY_INFO!F39+COUNTRY_INFO!G39),COUNTRY_INFO!F39+COUNTRY_INFO!G39,COUNTRY_INFO!$N39),0)))) -> 73157 | E39: =IF(AND(INTRO!$E$39="Non endémique",INTRO!$E$37="Non endémique"),"Non requis",IF(INTRO!$E$39="Non endémique","Traiter avec DEC",COUNTRY_INFO!Q39)) -> 1 | F39: =IF(INTRO!$E$39<>"Non endémique",COUNTRY_INFO!R39,"Non requis") -> 1 | G39: =IF(COUNTRY_INFO!H39=1, IF($E39=1,IF(ALB_MBD!$J39<>" ",COUNTRY_INFO!F39+COUNTRY_INFO!G39-ALB_MBD!$J39,COUNTRY_INFO!F39+COUNTRY_INFO!G39), 0),0) -> 73157 | H39: =IF(INTRO!$E$39<>"Endémique",0, IF(AND(COUNTRY_INFO!$I39=1,$F39<>0),IF(COUNTRY_INFO!N39>=(COUNTRY_INFO!F39+COUNTRY_INFO!G39),COUNTRY_INFO!F39+COUNTRY_INFO!G39,COUNTRY_INFO!$N39), 0)) -> 73157 | J39: 73157 | K39: 0 | L39: 0 | M39: 204839.6 | N39: 204839.6 | P39: 204839.6 | Q39: 410
A40: =IF(INTRO!$E$39="Non endémique"," ",IF(COUNTRY_INFO!A40=0," ",COUNTRY_INFO!A40)) -> CAR | B40: =IF(INTRO!$E$39="Non endémique"," ",IF(COUNTRY_INFO!B40=0," ",COUNTRY_INFO!B40)) -> RS N° 6 | C40: =IF(INTRO!$E$39="Non endémique"," ",IF(COUNTRY_INFO!C40=0," ",COUNTRY_INFO!C40)) -> HAUT-MBOMOU | D40: =IF(INTRO!$E$39="Non endémique",0,IF(INTRO!$E$39="Endémique mais pas de CP",IF(COUNTRY_INFO!$H40=1,COUNTRY_INFO!F40+COUNTRY_INFO!G40,0),IF(COUNTRY_INFO!$H40=1,COUNTRY_INFO!F40+COUNTRY_INFO!G40,IF(COUNTRY_INFO!$I40=1,IF(COUNTRY_INFO!N40>=(COUNTRY_INFO!F40+COUNTRY_INFO!G40),COUNTRY_INFO!F40+COUNTRY_INFO!G40,COUNTRY_INFO!$N40),0)))) -> 66166 | E40: =IF(AND(INTRO!$E$39="Non endémique",INTRO!$E$37="Non endémique"),"Non requis",IF(INTRO!$E$39="Non endémique","Traiter avec DEC",COUNTRY_INFO!Q40)) -> 1 | F40: =IF(INTRO!$E$39<>"Non endémique",COUNTRY_INFO!R40,"Non requis") -> 1 | G40: =IF(COUNTRY_INFO!H40=1, IF($E40=1,IF(ALB_MBD!$J40<>" ",COUNTRY_INFO!F40+COUNTRY_INFO!G40-ALB_MBD!$J40,COUNTRY_INFO!F40+COUNTRY_INFO!G40), 0),0) -> 66166 | H40: =IF(INTRO!$E$39<>"Endémique",0, IF(AND(COUNTRY_INFO!$I40=1,$F40<>0),IF(COUNTRY_INFO!N40>=(COUNTRY_INFO!F40+COUNTRY_INFO!G40),COUNTRY_INFO!F40+COUNTRY_INFO!G40,COUNTRY_INFO!$N40), 0)) -> 66166 | J40: 66166 | K40: 0 | L40: 0 | M40: 185264.8 | N40: 185264.8 | P40: 185264.8 | Q40: 371
A41: =IF(INTRO!$E$39="Non endémique"," ",IF(COUNTRY_INFO!A41=0," ",COUNTRY_INFO!A41)) -> CAR | B41: =IF(INTRO!$E$39="Non endémique"," ",IF(COUNTRY_INFO!B41=0," ",COUNTRY_INFO!B41)) -> RS N° 7 | C41: =IF(INTRO!$E$39="Non endémique"," ",IF(COUNTRY_INFO!C41=0," ",COUNTRY_INFO!C41)) -> BANGUI I (lakouanga) | D41: =IF(INTRO!$E$39="Non endémique",0,IF(INTRO!$E$39="Endémique mais pas de CP",IF(COUNTRY_INFO!$H41=1,COUNTRY_INFO!F41+COUNTRY_INFO!G41,0),IF(COUNTRY_INFO!$H41=1,COUNTRY_INFO!F41+COUNTRY_INFO!G41,IF(COUNTRY_INFO!$I41=1,IF(COUNTRY_INFO!N41>=(COUNTRY_INFO!F41+COUNTRY_INFO!G41),COUNTRY_INFO!F41+COUNTRY_INFO!G41,COUNTRY_INFO!$N41),0)))) -> 0 | E41: =IF(AND(INTRO!$E$39="Non endémique",INTRO!$E$37="Non endémique"),"Non requis",IF(INTRO!$E$39="Non endémique","Traiter avec DEC",COUNTRY_INFO!Q41)) -> 0 | F41: =IF(INTRO!$E$39<>"Non endémique",COUNTRY_INFO!R41,"Non requis") -> 0 | G41: =IF(COUNTRY_INFO!H41=1, IF($E41=1,IF(ALB_MBD!$J41<>" ",COUNTRY_INFO!F41+COUNTRY_INFO!G41-ALB_MBD!$J41,COUNTRY_INFO!F41+COUNTRY_INFO!G41), 0),0) -> 0 | H41: =IF(INTRO!$E$39<>"Endémique",0, IF(AND(COUNTRY_INFO!$I41=1,$F41<>0),IF(COUNTRY_INFO!N41>=(COUNTRY_INFO!F41+COUNTRY_INFO!G41),COUNTRY_INFO!F41+COUNTRY_INFO!G41,COUNTRY_INFO!$N41), 0)) -> 0 | J41: 0 | K41: 0 | L41: 0 | M41: 0 | N41: 0 | P41: 0 | Q41: 0
A42: =IF(INTRO!$E$39="Non endémique"," ",IF(COUNTRY_INFO!A42=0," ",COUNTRY_INFO!A42)) -> CAR | B42: =IF(INTRO!$E$39="Non endémique"," ",IF(COUNTRY_INFO!B42=0," ",COUNTRY_INFO!B42)) -> RS N° 7 | C42: =IF(INTRO!$E$39="Non endémique"," ",IF(COUNTRY_INFO!C42=0," ",COUNTRY_INFO!C42)) -> BANGUI II (Castors) | D42: =IF(INTRO!$E$39="Non endémique",0,IF(INTRO!$E$39="Endémique mais pas de CP",IF(COUNTRY_INFO!$H42=1,COUNTRY_INFO!F42+COUNTRY_INFO!G42,0),IF(COUNTRY_INFO!$H42=1,COUNTRY_INFO!F42+COUNTRY_INFO!G42,IF(COUNTRY_INFO!$I42=1,IF(COUNTRY_INFO!N42>=(COUNTRY_INFO!F42+COUNTRY_INFO!G42),COUNTRY_INFO!F42+COUNTRY_INFO!G42,COUNTRY_INFO!$N42),0)))) -> 0 | E42: =IF(AND(INTRO!$E$39="Non endémique",INTRO!$E$37="Non endémique"),"Non requis",IF(INTRO!$E$39="Non endémique","Traiter avec DEC",COUNTRY_INFO!Q42)) -> 0 | F42: =IF(INTRO!$E$39<>"Non endémique",COUNTRY_INFO!R42,"Non requis") -> 0 | G42: =IF(COUNTRY_INFO!H42=1, IF($E42=1,IF(ALB_MBD!$J42<>" ",COUNTRY_INFO!F42+COUNTRY_INFO!G42-ALB_MBD!$J42,COUNTRY_INFO!F42+COUNTRY_INFO!G42), 0),0) -> 0 | H42: =IF(INTRO!$E$39<>"Endémique",0, IF(AND(COUNTRY_INFO!$I42=1,$F42<>0),IF(COUNTRY_INFO!N42>=(COUNTRY_INFO!F42+COUNTRY_INFO!G42),COUNTRY_INFO!F42+COUNTRY_INFO!G42,COUNTRY_INFO!$N42), 0)) -> 0 | J42: 0 | K42: 0 | L42: 0 | M42: 0 | N42: 0 | P42: 0 | Q42: 0
A43: =IF(INTRO!$E$39="Non endémique"," ",IF(COUNTRY_INFO!A43=0," ",COUNTRY_INFO!A43)) -> CAR | B43: =IF(INTRO!$E$39="Non endémique"," ",IF(COUNTRY_INFO!B43=0," ",COUNTRY_INFO!B43)) -> RS N° 7 | C43: =IF(INTRO!$E$39="Non endémique"," ",IF(COUNTRY_INFO!C43=0," ",COUNTRY_INFO!C43)) -> BANGUI III (Bédé-Combattant) | D43: =IF(INTRO!$E$39="Non endémique",0,IF(INTRO!$E$39="Endémique mais pas de CP",IF(COUNTRY_INFO!$H43=1,COUNTRY_INFO!F43+COUNTRY_INFO!G43,0),IF(COUNTRY_INFO!$H43=1,COUNTRY_INFO!F43+COUNTRY_INFO!G43,IF(COUNTRY_INFO!$I43=1,IF(COUNTRY_INFO!N43>=(COUNTRY_INFO!F43+COUNTRY_INFO!G43),COUNTRY_INFO!F43+COUNTRY_INFO!G43,COUNTRY_INFO!$N43),0)))) -> 0 | E43: =IF(AND(INTRO!$E$39="Non endémique",INTRO!$E$37="Non endémique"),"Non requis",IF(INTRO!$E$39="Non endémique","Traiter avec DEC",COUNTRY_INFO!Q43)) -> 0 | F43: =IF(INTRO!$E$39<>"Non endémique",COUNTRY_INFO!R43,"Non requis") -> 0 | G43: =IF(COUNTRY_INFO!H43=1, IF($E43=1,IF(ALB_MBD!$J43<>" ",COUNTRY_INFO!F43+COUNTRY_INFO!G43-ALB_MBD!$J43,COUNTRY_INFO!F43+COUNTRY_INFO!G43), 0),0) -> 0 | H43: =IF(INTRO!$E$39<>"Endémique",0, IF(AND(COUNTRY_INFO!$I43=1,$F43<>0),IF(COUNTRY_INFO!N43>=(COUNTRY_INFO!F43+COUNTRY_INFO!G43),COUNTRY_INFO!F43+COUNTRY_INFO!G43,COUNTRY_INFO!$N43), 0)) -> 0 | J43: 0 | K43: 0 | L43: 0 | M43: 0 | N43: 0 | P43: 0 | Q43: 0

Sheet SUMMARY
C1: Cette version sera utilisée par les pays endémiques à la Loase
B2: Formulaire de demande commune de médicaments pour CP v.3.1 (L)
B4: Ce formulaire constitue une demande officielle du Gouvernement à l'OMS pour l'approvisionnement des médicaments mentionnés ci-dessus. Ce formulaire peut-être soumis à n'importe quel moment, avant le 15 août de l'année en cours, pour une livraison de médicaments au courant de l'année suivante, mais au moins 6-8 mois avant l’intervention planifiée afin de laisser le temps nécessaire pour réviser et approuver la demande, placer la commande, élaborer les médicaments et les expédier vers les pays.
B6: Pays | C6: =IF(INTRO!$E$33<>0,INTRO!$E$33," ") -> CAR | G6: Année | H6: =IF(INTRO!$E$35<>0,INTRO!$E$35," ") -> 2020
B8: Informations concernant les médicaments CP demandés à l’OMS
B10: Le médicament | C10: Nombre de comprimés | G10: Nombre total de flacons
C11: Requis | D11: En stock | E11: En cours de demande | F11: Demandés | G11: Requis | H11: Demandés
B12: Ivermectine | C12: 6333614 | D12: 327676 | F12: =IF(C12>(D12+E12),C12-D12-E12, 0) -> 6005938 | G12: =IF($C12=0,0,IF($B12="Albendazole pour FL",IF($C12=(ALB_MBD!$U$4+ALB_MBD!$V$4),ALB_MBD!$W$4,ROUNDUP($C12/200,0)),IF($B12="Albendazole pour STH (EAS)",IF($C12=ALB_MBD!$N$4,ALB_MBD!$Z$4,ROUNDUP($C12/200,0)),IF($B12="Mebendazole (EAS)",IF($C12=ALB_MBD!$R$4,ALB_MBD!$AC$4,ROUNDUP($C12/150,0)),IF($B12="Praziquantel (EAS)",IF($C12=PZQ!$O$4,PZQ!$R$4,ROUNDUP($C12/1000,0)),IF($B12="Ivermectine",IF($C12=IVM!$N$4,IVM!$Q$4,$C12/500+0.49),0)))))) -> 12677 | H12: =IF($F12=0,0,IF(OR($B12="Albendazole pour FL",$B12="Albendazole pour STH (EAS)"),$G12-ROUNDUP(($E12+$D12)/200,0),IF($B12="Ivermectine",$G12-ROUNDUP(($E12+$D12)/500,0),IF($B12="Mebendazole (EAS)",$G12-ROUNDUP(($E12+$D12)/150,0),$G12-ROUNDUP(($E12+$D12)/1000,0))))) -> 12021
B13: Albendazole pour FL | C13: 5255759 | D13: 2374936 | F13: 2880823 | G13: =IF($C13=0,0,IF($B13="Albendazole pour FL",IF($C13=(ALB_MBD!$U$4+ALB_MBD!$V$4),ALB_MBD!$W$4,ROUNDUP($C13/200,0)),IF($B13="Albendazole pour STH (EAS)",IF($C13=ALB_MBD!$N$4,ALB_MBD!$Z$4,ROUNDUP($C13/200,0)),IF($B13="Mebendazole (EAS)",IF($C13=ALB_MBD!$R$4,ALB_MBD!$AC$4,ROUNDUP($C13/150,0)),IF($B13="Praziquantel (EAS)",IF($C13=PZQ!$O$4,PZQ!$R$4,ROUNDUP($C13/1000,0)),IF($B13="Ivermectine",IF($C13=IVM!$N$4,IVM!$Q$4,$C13/500+0.49),0)))))) -> 26297 | H13: 14422
B14: Praziquantel (EAS) | C14: 1357630 | D14: 662676 | F14: 694954 | G14: =IF($C14=0,0,IF($B14="Albendazole pour FL",IF($C14=(ALB_MBD!$U$4+ALB_MBD!$V$4),ALB_MBD!$W$4,ROUNDUP($C14/200,0)),IF($B14="Albendazole pour STH (EAS)",IF($C14=ALB_MBD!$N$4,ALB_MBD!$Z$4,ROUNDUP($C14/200,0)),IF($B14="Mebendazole (EAS)",IF($C14=ALB_MBD!$R$4,ALB_MBD!$AC$4,ROUNDUP($C14/150,0)),IF($B14="Praziquantel (EAS)",IF($C14=PZQ!$O$4,PZQ!$R$4,ROUNDUP($C14/1000,0)),IF($B14="Ivermectine",IF($C14=IVM!$N$4,IVM!$Q$4,$C14/500+0.49),0)))))) -> 1368 | H14: 705
B15: Albendazole pour STH (EAS) | C15: 19051 | D15: 0 | F15: 19051 | G15: =IF($C15=0,0,IF($B15="Albendazole pour FL",IF($C15=(ALB_MBD!$U$4+ALB_MBD!$V$4),ALB_MBD!$W$4,ROUNDUP($C15/200,0)),IF($B15="Albendazole pour STH (EAS)",IF($C15=ALB_MBD!$N$4,ALB_MBD!$Z$4,ROUNDUP($C15/200,0)),IF($B15="Mebendazole (EAS)",IF($C15=ALB_MBD!$R$4,ALB_MBD!$AC$4,ROUNDUP($C15/150,0)),IF($B15="Praziquantel (EAS)",IF($C15=PZQ!$O$4,PZQ!$R$4,ROUNDUP($C15/1000,0)),IF($B15="Ivermectine",IF($C15=IVM!$N$4,IVM!$Q$4,$C15/500+0.49),0)))))) -> 96 | H15: 96
C16: 0 | D16: 0 | F16: 0 | G16: =IF($C16=0,0,IF($B16="Albendazole pour FL",IF($C16=(ALB_MBD!$U$4+ALB_MBD!$V$4),ALB_MBD!$W$4,ROUNDUP($C16/200,0)),IF($B16="Albendazole pour STH (EAS)",IF($C16=ALB_MBD!$N$4,ALB_MBD!$Z$4,ROUNDUP($C16/200,0)),IF($B16="Mebendazole (EAS)",IF($C16=ALB_MBD!$R$4,ALB_MBD!$AC$4,ROUNDUP($C16/150,0)),IF($B16="Praziquantel (EAS)",IF($C16=PZQ!$O$4,PZQ!$R$4,ROUNDUP($C16/1000,0)),IF($B16="Ivermectine",IF($C16=IVM!$N$4,IVM!$Q$4,$C16/500+0.49),0)))))) -> 0 | H16: 0
C17: 0 | D17: 0 | F17: 0 | G17: =IF($C17=0,0,IF($B17="Albendazole pour FL",IF($C17=(ALB_MBD!$U$4+ALB_MBD!$V$4),ALB_MBD!$W$4,ROUNDUP($C17/200,0)),IF($B17="Albendazole pour STH (EAS)",IF($C17=ALB_MBD!$N$4,ALB_MBD!$Z$4,ROUNDUP($C17/200,0)),IF($B17="Mebendazole (EAS)",IF($C17=ALB_MBD!$R$4,ALB_MBD!$AC$4,ROUNDUP($C17/150,0)),IF($B17="Praziquantel (EAS)",IF($C17=PZQ!$O$4,PZQ!$R$4,ROUNDUP($C17/1000,0)),IF($B17="Ivermectine",IF($C17=IVM!$N$4,IVM!$Q$4,$C17/500+0.49),0)))))) -> 0 | H17: 0
B19: Nombre de personnes devant être traitées avec le médicament donné
B21: Veuillez sélectionner la maladie | G21: 1er tour | H21: 2ème tour
B22: Filariose lymphatique | C22: Ces chiffres sont estimés uniquement pour les goupes d'âge ciblés pour le traitement avec les médicaments donnés, dans les régions où le traitement de maladies spécifiques est requis | G22: 3758882
B23: Onchocercose | G23: 2201981 | H23: 0
B24: Géohelminthiases | G24: 620965 | H24: 141307
B25: Schistosomiase | G25: 543052
B29: Informations sur les interventions CP planifiées
B31: Le médicament | C31: Veuillez sélectionner une date (mois et année) pour la 1ère tournée de CP | E31: Veuillez sélectionner une date (mois et année) pour la 2ème tournée de CP | G31: Date à laquelle les médicaments devraient atteindre l’entrepôt national
B32: Albendazole pour FL | C32: Juin | D32: 2020 | E32: Décembre | F32: 2020 | G32: Avril | H32: 2020
B33: Ivermectine | C33: Novembre | D33: 2020 | G33: Août | H33: 2020
B34: Praziquantel (EAS) | C34: Novembre | D34: 2020 | G34: Août | H34: 2020
B39: Informations sur les médicaments de chimiothérapie préventive pour le traitement de populations non ciblées par la donation en cours via l’OMS
B41: Le médicament | C41: Groupe d'âge | D41: # de personnes | E41: # de comprimés | F41: Source | H41: Statut
B42: Praziquantel (EAS) | C42: Adults | D42: =PZQ!K4 -> 661122 | E42: =D42*3 -> 1983366 | F42: ESPEN/OMS | H42: Demandés
B53: Récapitulatif - Checklist
B54: Submission
B55: Que faut-il soumettre ?
B56: L'approvisionnement des médicaments demandés doit être basé sur des données épidémiologiques à jour, des plans d'utilisation des médicaments spécifiques et sur la capacité de mise en oeuvre. La liste suivante permet d'assurer que tous les formulaires et toutes les informations sont fournis à l'OMS (en format électronique).
B57: Formulaire de demande commune de médicaments pour chimioprévention
B58: Formulaire de rapport commun
B59: Déclaration des données épidémiologiques pour la CP
B61: Disponibilité de financement pour la mise en oeuvre de tournées pendant l’année pour laquelle les medicaments ont été demandés
B63: Maladies ciblées pour la mise en oeuvre | C63: # de traitements | D63: Financement assuré pour | E63: Origine | H63: Montant
B64: =B22 -> Filariose lymphatique | C64: =SUM(G22:H22) -> 3758882 | D64: 3852859 | E64: CBM
B65: =B23 -> Onchocercose | C65: =SUM(G23:H23) -> 2201981 | D65: 2257035 | E65: CBM
B66: =B24 -> Géohelminthiases | C66: =SUM(G24:H24) -> 762272 | D66: 683949 | E66: CBM
B67: =B25 -> Schistosomiase | C67: =SUM(G25:H25) -> 543052 | D67: 351485 | E67: CBM
B69: Qui doit remplir le formulaire ?
B70: Le Coordonnateur national MTN doit compiler toutes les informations nécessaires pour compléter le formulaire de demande. En l'absence d'un coordonnateur, les gestionnaires de programmes spécifiques devraient coordonner leurs sections respectives. Une fois finalisée, chaque demande individuelle doit être approuvée par le Ministère de la Santé.
B72: Informations concernant la (les) personne(s) ayant rempli le formulaire
B74: Titre/fonction | C74: Nom | E74: Téléphone | G74: Email | H74: Date
B75: Coordonnateur MTN/CP | C75: Valery-Kevin NDORAM-DOMBOR | E75: 0023672332434 /75058207 | G75: ndoramk@yahoo.fr | H75: 2020-03-17
B76: autre
B77: Gestionnaire de données
B80: L’OMS recommende que tous les effets secondaires graves suspectés d’être associés à l’ingestion de médicaments de CP soient rapportés en suivant les lignes directrices nationales de pharmacovigilance. En l’absence d’un système de pharmacovigilance national, contactez le département de Contrôle des Maladies Tropicales Négligées pour être conseillé.
B81: L’OMS s’est engagée à rendre possible la donation de médicaments en fournissant gratuitement: a) albendazole, mebendazole et praziquantel à l’entrepôt national du Ministère de la Santé et b) diethylcarbamazine au port d’entrée du pays receveur.
B82: L’institution soumettant la présente requête est responsable de: a) l’organisation du déchargement des médicaments du camion, du stockage dans l’entrepôt national et de l’expédition vers les centres où aura lieu la distribution finale; b) de l’enregistrement, si nécessaire, des médicaments donnés, auprès des autorités nationales en charge; et de c) de l’information de n’importe quels changements ayant trait à leurs campagnes de traitement (par exemple le report d’une date planifiée de distribution en masse de médicaments, le remplacement d’un coordonateur MTN, etc.).
B83: J’ai pris connaissance et accepté la politique de la communication de données de l’OMS
B84: Nom et signature du Coordonnateur MTN ou du Représentant du Ministère de la Santé
B85: Date
B87: Si vous avez plus d'un destinataire final pour les médicaments de chimioprévention demandés, veuillez compléter les informations de la rubrique "Informations concernant l'envoi et le destinataire" dans la feuille de travail SHIPMENT.
B88: Veuillez envoyer le rapport national (signé et sous format électronique) au représentant de I'OMS du pays en mettant en copie:
B89: Siège de l'OMS | C89: PC_JointForms@who.int
B90: Bureau régional de l'OMS | C90: Conseiller régional MTN
B91: Mectizan donation programme | C91: Dr Yao Sodahlon, email: ysodahlon@taskforce.org
B93: Veuillez noter que votre demande sera examinée par un panel d'experts indépendants (Comité ad hoc d’évaluation conjointe). Les informations contenues dans ce formulaire, le rapport commun d'activités (ou rapport national d'activités) et le plan d'action annuel sont essentiels à l'OMS pour assurer un usage optimal des médicaments. Dans le cadre de ses activités courantes de suivi et d'évaluation, et afin d'honorer ses obligations contractuelles envers les bailleurs de fonds et autres partenaires, l'OMS et ses agents affiliés se réservent le droit d'inspecter, périodiquement, les stocks de médicaments au niveau national.

Sheet SHIPMENT
C1: Cette version sera utilisée par les pays endémiques à la Loase
B2: Formulaire de demande commune de médicaments pour CP v.3.1 (L)
B4: Pays | C4: =IF(INTRO!$E$33<>0,INTRO!$E$33," ") -> CAR | G4: Année | H4: =IF(INTRO!$E$35<>0,INTRO!$E$35," ") -> 2020
B6: Informations sur l'envoi et le destinataire
B8: Albendazole pour FL | C8: Destinataire | F8: Destinataire final si différent du destinaire précédent
B9: Nom | C9: Dr Severin von XYLANDER | F9: Dr Valery Kevin NDORAM DOMBOR
B10: Département/Unité | F10: Ministère de la Santé/Coordination Programme MTN
B11: Organisation | C11: Organisation Mondiale de la Santé (OMS)
B12: Téléphone | C12: 00 (236) 21 61 02 88 | F12: 00 (236) 72 332434
B13: Fax | C13: 00 (236) 21 61 01 37 | F13: Néant
B14: E-mail | C14: afwcoc@who.int | F14: ndoramk@yahoo.fr
B15: Adresse postale | C15: B.P 1416 Bangui/République Centrafricaine | F15: Bangui/République Centrafricaine (RCA)
B17: Praziquantel | C17: Destinataire | F17: Destinataire final si différent du destinaire précédent
B18: Nom | C18: Dr Severin von XYLANDER | F18: Dr Valery Kevin NDORAM DOMBOR
B19: Département/Unité | F19: Ministère de la Santé/Coordination Programme MTN
B20: Organisation | C20: Organisation Mondiale de la Santé (OMS)
B21: Téléphone | C21: 00 (236) 21 61 02 88 | F21: 00 (236) 72 332434
B22: Fax | C22: 00 (236) 21 61 01 37 | F22: Néant
B23: E-mail | C23: afwcoc@who.int | F23: ndoramk@yahoo.fr
B24: Adresse postale | C24: B.P 1416 Bangui/République Centrafricaine | F24: Bangui/République Centrafricaine (RCA)
B26: Ivermectine | C26: Destinataire | F26: Destinataire final si différent du destinaire précédent
B27: Nom | C27: Dr Severin von XYLANDER | F27: Dr Valery Kevin NDORAM DOMBOR
B28: Département/Unité | F28: Ministère de la Santé/Coordination Programme MTN
B29: Organisation | C29: Organisation Mondiale de la Santé (OMS)
B30: Téléphone | C30: 00 (236) 21 61 02 88 | F30: 00 (236) 72 332434
B31: Fax | C31: 00 (236) 21 61 01 37 | F31: Néant
B32: E-mail | C32: afwcoc@who.int | F32: ndoramk@yahoo.fr
B33: Adresse postale | C33: B.P 1416 Bangui/République Centrafricaine | F33: Bangui/République Centrafricaine (RCA)
B35: Information concernant les obligations légales d’importation
B37: Est le permis d'importation nécessaire? | H37: Oui
B38: Combien de temps cela prend-il pour obtenir le permis d’importation? | G38: 2 | H38: Semaines
B39: Avez vous besoin que certains documents soient remis en même temps que la demande de permis d’importation? | H39: Oui
B40: Certificat de donnation, liste des Collissage et la LTA ou tout autre document lié au don de médicaments.
B41: Est-ce que le destinataire doit procéder au dédouanement avant que l’expédition puisse avoir lieu? | H41: No
B42: Y a-t-il des informations supplémentaires qui pourraient être utiles afin d’assurer un dédouanement et une livraison rapide des médicaments dans votre pays? | H42: No
B43: Si oui, merci de bien vouloir spécifier lesquels ici
B46: Remarques supplémentaires éventuelles liées à cette requête
B48: Les 662676 comprimés de praziquantel arriveront en expiration au moi de septembre 2020 prière d'en tenir compte pour la furure livraison,

Sheet DATA_POLICY (hidden)
B2: Formulaire de demande commune de médicaments pour CP v.3.1
B4: Pays | D4: =IF(INTRO!$E$33<>0,INTRO!$E$33," ") -> CAR | G4: Année | H4: =IF(INTRO!$E$35<>0,INTRO!$E$35," ") -> 2020
B7: Déclaration de principe sur la communication de données par l’OMS
B9: Les données sont le fondement de toutes les mesures rationnelles de santé publique et les avantages de la communication de données, y compris pour la science et la santé publique, sont largement reconnus. L’OMS souhaite promouvoir autant que possible la communication de données sanitaires, y compris, mais pas uniquement, de données épidémiologiques et de surveillance.
B14: ="À cet égard, et sans préjudice des instruments juridiquement contraignants régissant la communication et la publication d’informations, le Ministère de la santé de " & D4 & ", en fournissant des données à l’OMS :" -> À cet égard, et sans préjudice des instruments juridiquement contraignants régissant la communication et la publication d’informations, le Ministère de la santé de CAR, en fournissant des données à l’OMS :
B18: confirme que toutes les données à fournir à l’OMS, ont été collectées conformément à la législation nationale applicable, y compris aux lois de protection des données visant à préserver l’anonymat des personnes identifiables ;
B23: ="convient que l’OMS aura le droit, toujours sous réserve des mesures visant à garantir l’utilisation éthique et sécurisée des données et toujours sous réserve d’une reconnaissance appropriée de la part de "&D4&":" -> convient que l’OMS aura le droit, toujours sous réserve des mesures visant à garantir l’utilisation éthique et sécurisée des données et toujours sous réserve d’une reconnaissance appropriée de la part de CAR:
C27: de publier les données, dépourvues de tout élément d’identification personnelle (ci-après dénommées « les données ») et de les mettre à la disposition de toute partie intéressée, sur demande (dans la mesure où elles n’ont pas, ou pas encore, été publiées par l’OMS), selon des modalités autorisant leur utilisation non commerciale et sans but lucratif à des fins de santé publique (pour autant que l’OMS garde la maîtrise de la publication des données) ; d’utiliser, de compiler, d’agréger, d’évaluer et d’analyser les données et de publier et de diffuser les résultats obtenus grâce à ces données en rapport avec des travaux de l’OMS et conformément aux politiques et pratiques de l’Organisation.
B39: =CONCATENATE("Sauf lorsque des instruments juridiquement contraignants (RSI, Règlement de Nomenclature de l’OMS, de 1967, etc.) disposent que les données doivent être communiquées et publiées, le Ministère de la santé de ", D4," peut, pour certaines données, décider de ne pas appliquer (tout ou partie des) (les) dispositions qui précèdent," & " en informant l’OMS par écrit à l’adresse suivante, à condition que cette notification précise clairement les données, " & "dont il s’agit et indique clairement lesquelles des dispositions qui précèdent ne seront pas appliquées, et pour quels motifs.") -> Sauf lorsque des instruments juridiquement contraignants (RSI, Règlement de Nomenclature de l’OMS, de 1967, etc.) disposent que les données doivent être communiquées et publiées, le Ministère de la santé de CAR peut, pour certaines données, décider de ne pas appliquer (tout ou partie des) (les) dispositions qui précèdent, en informant l’OMS par écrit à l’adresse suivante, à condition que cette notification précise clairement les données, dont il s’agit et indique clairement lesquelles des dispositions qui précèdent ne seront pas appliquées, et pour quels motifs.
